Body Name,P Card Transaction,Transaction Date,Period,Transaction Reference,VAT amount,Exclusive amount,Inclusive amount,Supplier Name,Service Area,Subjective Account,Expense Type,Cost Centre Name
Cambridge City Council,GPC,01/04/2019,1,PC002849, -   , 17.25 , 17.25 ,MARKS&SPENCER PLC SACA,Chief Executive,62900,Events,Civic Affairs and Twinning
Cambridge City Council,GPC,01/04/2019,1,PC002823, -   , 141.59 , 141.59 ,HEDGENURSERY,Strategic Director 2,60503,Grounds Maintenance,City Homes Estate Management
Cambridge City Council,GPC,01/04/2019,2,PC002824, -   , 141.59 , 141.59 ,HEDGENURSERY,Strategic Director 2,60503,Grounds Maintenance,City Homes Estate Management
Cambridge City Council,GPC,01/04/2019,2,PC002779, -   , 62.98 , 62.98 ,AMZNMKTPLACE AMAZON.CO.UK,Strategic Director 2,61703,"Purchase - Equipment, Furniture And Materials",Building Maintenance Response - Direct
Cambridge City Council,GPC,01/04/2019,1,PC002702, -   , 22.50 , 22.50 ,TESCO STORES 4483,Strategic Director 2,62900,Events,The Meadows Community Centre
Cambridge City Council,GPC,01/04/2019,2,PC002856, -   , 66.71 , 66.71 ,TESCO STORE 2065,Strategic Director 2,61900,Catering And Vending Supplies,The Meadows Community Centre
Cambridge City Council,GPC,02/04/2019,1,PC002767, -   , 27.98 , 27.98 ,AMZNMktplace,Chief Executive,61703,"Purchase - Equipment, Furniture And Materials",Civic Affairs and Twinning
Cambridge City Council,GPC,02/04/2019,1,PC002768, -   , 6.45 , 6.45 ,AMZNMktplace,Chief Executive,61703,"Purchase - Equipment, Furniture And Materials",Civic Affairs and Twinning
Cambridge City Council,GPC,02/04/2019,1,PC002769, -   , 12.98 , 12.98 ,AMZN Mktp UK*MZ4316J64,Chief Executive,61703,"Purchase - Equipment, Furniture And Materials",Civic Affairs and Twinning
Cambridge City Council,GPC,02/04/2019,2,PC002764, 3.00 , 14.98 , 17.98 ,SCREWFIX CAMBRIDGE KINGS,Strategic Director 1,61703,"Purchase - Equipment, Furniture And Materials",Bereavement Services - Burials & Grounds
Cambridge City Council,GPC,02/04/2019,2,PC002765, 4.75 , 23.72 , 28.47 ,SCREWFIX CAMBRIDGE KINGS,Strategic Director 1,61703,"Purchase - Equipment, Furniture And Materials",Bereavement Services - Burials & Grounds
Cambridge City Council,GPC,02/04/2019,1,PC002785, -   , 59.99 , 59.99 ,AMZNMktplace,Strategic Director 2,61703,"Purchase - Equipment, Furniture And Materials",Children & Young People's Service
Cambridge City Council,GPC,02/04/2019,1,PC002786, -   , 21.46 , 21.46 ,AMZNMKTPLACE AMAZON.CO.UK,Strategic Director 2,61703,"Purchase - Equipment, Furniture And Materials",Children & Young People's Service
Cambridge City Council,GPC,02/04/2019,1,PC002787, -   , 4.79 , 4.79 ,AMZNMKTPLACE AMAZON.CO.UK,Strategic Director 2,61703,"Purchase - Equipment, Furniture And Materials",Children & Young People's Service
Cambridge City Council,GPC,02/04/2019,1,PC002788, 1.92 , 9.57 , 11.49 ,AMZNMKTPLACE AMAZON.CO.UK,Strategic Director 2,61703,"Purchase - Equipment, Furniture And Materials",Children & Young People's Service
Cambridge City Council,GPC,02/04/2019,1,PC002790, -   , 2.07 , 2.07 ,AMZNMKTPLACE AMAZON.CO.UK,Strategic Director 2,61703,"Purchase - Equipment, Furniture And Materials",Children & Young People's Service
Cambridge City Council,GPC,02/04/2019,1,PC002703, 3.66 , 18.29 , 21.95 ,AMZN MKTP UK*MZ6PE5T84 AM,Strategic Director 2,64073,ICT Maintenance and Support,The Meadows Community Centre
Cambridge City Council,GPC,02/04/2019,2,PC002857, -   , 7.00 , 7.00 ,PARK AND RIDE,Strategic Director 2,61100,Mileage Allowances,The Meadows Community Centre
Cambridge City Council,GPC,02/04/2019,1,PC002720, -   , 56.19 , 56.19 ,AMZNMKTPLACE AMAZON.CO.UK,Strategic Director 2,60207,Health And Safety Supplies And Services,Environmental Health Operational Support
Cambridge City Council,GPC,02/04/2019,1,PC002722, -   , 69.90 , 69.90 ,AMZN MKTP UK*MZ3AE6TH4 AM,Strategic Director 2,60207,Health And Safety Supplies And Services,Environmental Health Operational Support
Cambridge City Council,GPC,02/04/2019,1,PC002723, -   , 79.19 , 79.19 ,AMAZON.CO.UK*MZ67Q1T34 AM,Strategic Director 2,60207,Health And Safety Supplies And Services,Environmental Health Operational Support
Cambridge City Council,GPC,02/04/2019,1,PC002724, -   , 63.77 , 63.77 ,AMAZON.CO.UK*MZ5766T24 AM,Strategic Director 2,60207,Health And Safety Supplies And Services,Environmental Health Operational Support
Cambridge City Council,GPC,02/04/2019,1,PC002727, -   , 59.75 , 59.75 ,AMZN MKTP UK*MZ91X3TN4 AM,Strategic Director 2,60207,Health And Safety Supplies And Services,Environmental Health Operational Support
Cambridge City Council,GPC,02/04/2019,1,PC002719, -   , 41.26 , 41.26 ,AMZNMKTPLACE AMAZON.CO.UK,Strategic Director 2,64200,Subsistence,Environmental Health Operational Support
Cambridge City Council,GPC,02/04/2019,1,PC002721, -   , 50.00 , 50.00 ,WWW.IOA.ORG.UK,Strategic Director 2,64300,Conference Expenses,Environmental Health Operational Support
Cambridge City Council,GPC,02/04/2019,2,PC002753, -   , 96.00 , 96.00 ,STAGECOACH SERVICE,Strategic Director 2,60914,Public Transport For Staff And Members,Syrian Resettlement
Cambridge City Council,GPC,03/04/2019,1,PC002789, -   , 41.99 , 41.99 ,AMZNMktplace,Strategic Director 2,61703,"Purchase - Equipment, Furniture And Materials",Children & Young People's Service
Cambridge City Council,GPC,03/04/2019,2,PC002761, -   , 408.30 , 408.30 ,FACEBK *8UZYCJ2C92,Strategic Director 2,61931,Cambridge Live Social Media,Corn Exchange and Guildhalls
Cambridge City Council,GPC,03/04/2019,2,PC002761, -   , 292.87 , 292.87 ,FACEBK *8UZYCJ2C92,Strategic Director 2,61931,Cambridge Live Social Media,Folk Festival
Cambridge City Council,GPC,03/04/2019,1,PC002725, -   , 29.95 , 29.95 ,AMZNMKTPLACE AMAZON.CO.UK,Strategic Director 2,60207,Health And Safety Supplies And Services,Environmental Health Operational Support
Cambridge City Council,GPC,03/04/2019,1,PC002726, -   , 64.99 , 64.99 ,AMZNMKTPLACE AMAZON.CO.UK,Strategic Director 2,60207,Health And Safety Supplies And Services,Environmental Health Operational Support
Cambridge City Council,GPC,03/04/2019,1,PC002728, -   ,-64.99 ,-64.99 ,AMZNMKTPLACE AMAZON.CO.UK,Strategic Director 2,60207,Health And Safety Supplies And Services,Environmental Health Operational Support
Cambridge City Council,GPC,03/04/2019,2,PC002825, -   , 11.95 , 11.95 ,HOMEBASE LTD,Strategic Director 2,60503,Grounds Maintenance,City Homes Estate Management
Cambridge City Council,GPC,04/04/2019,2,PC002780, -   ,-2.28 ,-2.28 ,WWW.COMPUTINGPLUS.CO.UK,Chief Executive,61702,"Maintenance - Equipment, Furniture And Materials",Corporate Policy
Cambridge City Council,GPC,04/04/2019,1,PC002770, -   , 30.12 , 30.12 ,DEPORVILLAGE,Chief Executive,62000,"Clothes, Uniform And Laundry",Civic Affairs and Twinning
Cambridge City Council,GPC,04/04/2019,1,PC002850, -   , 5.20 , 5.20 ,MARKS&SPENCER PLC SACA,Chief Executive,62900,Events,Civic Affairs and Twinning
Cambridge City Council,GPC,04/04/2019,2,PC002715, -   , 70.27 , 70.27 ,LINKEDIN-457*3473803,Strategic Director 1,60116,Staff Recruitment Costs,Human Resources - Recruitment
Cambridge City Council,GPC,04/04/2019,1,PC002732, -   , 70.00 , 70.00 ,AMAZON.CO.UK*MZ0QG5EZ4 AM,Strategic Director 2,60207,Health And Safety Supplies And Services,Environmental Health Operational Support
Cambridge City Council,GPC,04/04/2019,2,PC002729, -   , 45.60 , 45.60 ,Amazon.co.uk*MZ02C7E84,Strategic Director 2,60207,Health And Safety Supplies And Services,Environmental Health Operational Support
Cambridge City Council,GPC,04/04/2019,2,PC002730, -   , 65.00 , 65.00 ,Amazon.co.uk*MZ5QS2EQ4,Strategic Director 2,60207,Health And Safety Supplies And Services,Environmental Health Operational Support
Cambridge City Council,GPC,04/04/2019,1,PC002816, -   , 49.00 , 49.00 ,CO-OP GROUP 019959,Strategic Director 2,60303,Electricity,Temporary Accommodation
Cambridge City Council,GPC,04/04/2019,1,PC002818, -   , 49.00 , 49.00 ,CO-OP GROUP 019959,Strategic Director 2,60303,Electricity,Temporary Accommodation
Cambridge City Council,GPC,04/04/2019,1,PC002819, -   , 49.00 , 49.00 ,CO-OP GROUP 019959,Strategic Director 2,60303,Electricity,Temporary Accommodation
Cambridge City Council,GPC,04/04/2019,1,PC002814, -   , 49.00 , 49.00 ,CO-OP GROUP 019959,Strategic Director 2,60305,Gas,Temporary Accommodation
Cambridge City Council,GPC,04/04/2019,1,PC002815, -   , 49.00 , 49.00 ,CO-OP GROUP 019959,Strategic Director 2,60305,Gas,Temporary Accommodation
Cambridge City Council,GPC,04/04/2019,1,PC002817, -   , 49.00 , 49.00 ,CO-OP GROUP 019959,Strategic Director 2,60305,Gas,Temporary Accommodation
Cambridge City Council,GPC,04/04/2019,1,PC002791, 32.80 , 164.00 , 196.80 ,WWW.WBC.CO.UK,Strategic Director 2,61703,"Purchase - Equipment, Furniture And Materials",Children & Young People's Service
Cambridge City Council,GPC,04/04/2019,1,PC002792, 13.16 , 65.78 , 78.94 ,WWW.FINEMESHMETALS.CO.UK,Strategic Director 2,61703,"Purchase - Equipment, Furniture And Materials",Children & Young People's Service
Cambridge City Council,GPC,05/04/2019,1,PC002773, 7.68 , 38.41 , 46.09 ,CUPSDIRECT.CO.UK,Strategic Director 1,64200,Subsistence,Business Support - Centralised Overheads
Cambridge City Council,GPC,05/04/2019,1,PC002793, 26.66 , 133.31 , 159.97 ,Amazon.co.uk*MZ35V50A4,Strategic Director 2,61703,"Purchase - Equipment, Furniture And Materials",Children & Young People's Service
Cambridge City Council,GPC,05/04/2019,1,PC002831, 52.89 , 264.45 , 317.34 ,WWW.BISHOPSPORT.CO.UK,Strategic Director 2,61703,"Purchase - Equipment, Furniture And Materials",Active Lifestyles - Communities (ex Sports Development)
Cambridge City Council,GPC,05/04/2019,2,PC002731, -   , 63.45 , 63.45 ,Amazon.co.uk*MZ1K530C4,Strategic Director 2,60207,Health And Safety Supplies And Services,Environmental Health Operational Support
Cambridge City Council,GPC,05/04/2019,1,PC002688, 1.76 , 8.80 , 10.56 ,CAPITA GAS,Strategic Director 2,60225,Housing Repairs - Gas Maintenance Contract,Gas Servicing
Cambridge City Council,GPC,07/04/2019,1,PC002704, 3.33 , 16.67 , 20.00 ,SIMPSONS NURSERIES,Strategic Director 2,60503,Grounds Maintenance,The Meadows Community Centre
Cambridge City Council,GPC,07/04/2019,1,PC002675, -   , 8.00 , 8.00 ,FARMFOODS-WISBECH,Strategic Director 2,62900,Events,Clay Farm Community Centre
Cambridge City Council,GPC,08/04/2019,1,PC002771, -   , 10.79 , 10.79 ,REGAL,Chief Executive,64200,Subsistence,Civic Affairs and Twinning
Cambridge City Council,GPC,08/04/2019,1,PC002772, -   , 48.00 , 48.00 ,REGAL,Chief Executive,64200,Subsistence,Civic Affairs and Twinning
Cambridge City Council,GPC,08/04/2019,2,PC002716, 80.38 , 401.91 , 482.29 ,LINKEDIN-373*2724326,Strategic Director 1,60116,Staff Recruitment Costs,Human Resources - Recruitment
Cambridge City Council,GPC,08/04/2019,1,PC002794, -   , 40.00 , 40.00 ,PETES QUALITY MEATS,Strategic Director 2,61900,Catering And Vending Supplies,Children & Young People's Service
Cambridge City Council,GPC,08/04/2019,1,PC002797, 7.41 , 37.05 , 44.46 ,BOOKER LIMITED CAMBRIDGE,Strategic Director 2,61900,Catering And Vending Supplies,Children & Young People's Service
Cambridge City Council,GPC,08/04/2019,1,PC002797, -   , 76.61 , 76.61 ,BOOKER LIMITED CAMBRIDGE,Strategic Director 2,61900,Catering And Vending Supplies,Children & Young People's Service
Cambridge City Council,GPC,08/04/2019,1,PC002795, 1.73 , 8.65 , 10.38 ,MYHERMES.CO.UK,Strategic Director 2,63900,Miscellaneous Expenses,Children & Young People's Service
Cambridge City Council,GPC,08/04/2019,1,PC002796, 1.32 , 6.57 , 7.89 ,MYHERMES.CO.UK,Strategic Director 2,63900,Miscellaneous Expenses,Children & Young People's Service
Cambridge City Council,GPC,08/04/2019,2,PC002858, 303.29 , -   , 303.29 ,WWW.NISBETS.COM,Strategic Director 2,61703,"Purchase - Equipment, Furniture And Materials",The Meadows Community Centre
Cambridge City Council,GPC,08/04/2019,2,PC002859, -   , 83.37 , 83.37 ,TESCO STORE 2065,Strategic Director 2,61900,Catering And Vending Supplies,The Meadows Community Centre
Cambridge City Council,GPC,08/04/2019,1,PC002677, 15.16 , 75.80 , 90.96 ,CUPSDIRECT.CO.UK,Strategic Director 2,61702,"Maintenance - Equipment, Furniture And Materials",Clay Farm Community Centre
Cambridge City Council,GPC,08/04/2019,1,PC002676, 2.33 , 11.66 , 13.99 ,AMZNMktplace,Strategic Director 2,61703,"Purchase - Equipment, Furniture And Materials",Clay Farm Community Centre
Cambridge City Council,GPC,09/04/2019,1,PC002735, -   , 6.60 , 6.60 ,POSTOFFICE SELFSERVICE,Strategic Director 1,64100,Postage And Courier Services,Accountancy and Support Services
Cambridge City Council,GPC,09/04/2019,1,PC002798, -   , 23.15 , 23.15 ,TESCO STORE 2889,Strategic Director 2,61900,Catering And Vending Supplies,Children & Young People's Service
Cambridge City Council,GPC,09/04/2019,1,PC002705, -   , 183.95 , 183.95 ,WWW.ARGOS.CO.UK,Strategic Director 2,61703,"Purchase - Equipment, Furniture And Materials",The Meadows Community Centre
Cambridge City Council,GPC,09/04/2019,1,PC002678, 3.17 , 15.82 , 18.99 ,AMZNMktplace,Strategic Director 2,61702,"Maintenance - Equipment, Furniture And Materials",Clay Farm Community Centre
Cambridge City Council,GPC,09/04/2019,1,PC002862, 37.00 , 185.00 , 222.00 ,DUNELM LTD,Strategic Director 2,61703,"Purchase - Equipment, Furniture And Materials",Street Cleaning - Old
Cambridge City Council,GPC,09/04/2019,1,PC002686, -   , 154.95 , 154.95 ,BHPS TRADING LTD,Strategic Director 2,60300,Signs Erecting & Removal,S&OS Community Engagement
Cambridge City Council,GPC,09/04/2019,2,PC002781, -   , 62.98 , 62.98 ,AMZNMktplace,Strategic Director 2,61703,"Purchase - Equipment, Furniture And Materials",Building Maintenance Response - Direct
Cambridge City Council,GPC,10/04/2019,1,PC002744, -   , 72.93 , 72.93 ,TESCO STORE 2065,Strategic Director 2,64200,Subsistence,Buchan Street Community Facility
Cambridge City Council,GPC,10/04/2019,1,PC002679, -   , 27.73 , 27.73 ,AMZNMKTPLACE AMAZON.CO.UK,Strategic Director 2,61702,"Maintenance - Equipment, Furniture And Materials",Clay Farm Community Centre
Cambridge City Council,GPC,10/04/2019,1,PC002680, 1.02 , 5.12 , 6.14 ,Amazon.co.uk*MZ4K10V14,Strategic Director 2,61702,"Maintenance - Equipment, Furniture And Materials",Clay Farm Community Centre
Cambridge City Council,GPC,10/04/2019,2,PC002826, -   , 28.50 , 28.50 ,AMZNMktplace,Strategic Director 2,60503,Grounds Maintenance,Estate Management (North) Closed
Cambridge City Council,GPC,10/04/2019,2,PC002827, -   , 169.98 , 169.98 ,AMZN Mktp UK*MZ5CU2VS4,Strategic Director 2,60503,Grounds Maintenance,Estate Management (North) Closed
Cambridge City Council,GPC,11/04/2019,2,PC002672, -   , 82.06 , 82.06 ,CHEF CENTRAL CAMBRIDGE,Strategic Director 1,61300,Cleaning Materials,Cambridge Crematorium
Cambridge City Council,GPC,11/04/2019,1,PC002706, -   , 16.00 , 16.00 ,TESCO STORES 4483,Strategic Director 2,62900,Events,The Meadows Community Centre
Cambridge City Council,GPC,11/04/2019,1,PC002869, -   , 13.94 , 13.94 ,AMZNMktplace,Strategic Director 2,61703,"Purchase - Equipment, Furniture And Materials",Neighbourhood Community Development
Cambridge City Council,GPC,11/04/2019,1,PC002832, 3.80 , 19.00 , 22.80 ,BOOKWHEN.COM - BOOKING,Strategic Director 2,64800,Membership And Subscriptions,Active Lifestyles - Communities (ex Sports Development)
Cambridge City Council,GPC,11/04/2019,1,PC002749, -   , 4.00 , 4.00 ,SAINSBURYS S/MKTS,Strategic Director 2,61703,"Purchase - Equipment, Furniture And Materials",Town Hall Lettings
Cambridge City Council,GPC,11/04/2019,1,PC002748, -   , 9.40 , 9.40 ,HALLS OF CAMBRIDGE,Strategic Director 2,60804,Other Premises Related Costs,Town Hall Lettings
Cambridge City Council,GPC,11/04/2019,1,PC002863, 1.33 , 6.65 , 7.98 ,SCREWFIX CAMBRIDGE KINGS,Strategic Director 2,61703,"Purchase - Equipment, Furniture And Materials",Grounds Maintenance & Street Cleaning
Cambridge City Council,GPC,11/04/2019,1,PC002822, -   , 49.00 , 49.00 ,CO-OP GROUP 019959,Strategic Director 2,60303,Electricity,Temporary Accommodation
Cambridge City Council,GPC,11/04/2019,1,PC002820, -   , 49.00 , 49.00 ,CO-OP GROUP 019959,Strategic Director 2,60305,Gas,Temporary Accommodation
Cambridge City Council,GPC,11/04/2019,1,PC002821, -   , 49.00 , 49.00 ,CO-OP GROUP 019959,Strategic Director 2,60305,Gas,Temporary Accommodation
Cambridge City Council,GPC,11/04/2019,1,PC002874, -   , 26.56 , 26.56 ,SCREWFIX CAMBRIDGE CLIFTO,Strategic Director 2,60201,Cyclical/Planned Maintenance - Building,Mandela House
Cambridge City Council,GPC,12/04/2019,1,PC002760, -   , 256.25 , 256.25 ,DVSA,Strategic Director 1,61703,"Purchase - Equipment, Furniture And Materials",Fleet Management - Operational
Cambridge City Council,GPC,12/04/2019,1,PC002707, -   , 8.45 , 8.45 ,HOMEBASE,Strategic Director 2,61702,"Maintenance - Equipment, Furniture And Materials",The Meadows Community Centre
Cambridge City Council,GPC,12/04/2019,1,PC002733, -   , 380.00 , 380.00 ,M&C RESRVTION SVCS LTD,Strategic Director 2,64200,Subsistence,Environmental Health Operational Support
Cambridge City Council,GPC,13/04/2019,2,PC002860, -   , 174.97 , 174.97 ,TESCO STORE 2065,Strategic Director 2,61900,Catering And Vending Supplies,The Meadows Community Centre
Cambridge City Council,GPC,13/04/2019,2,PC002754, -   , 57.60 , 57.60 ,STAGECOACH SERVICE,Strategic Director 2,60914,Public Transport For Staff And Members,Syrian Resettlement
Cambridge City Council,GPC,15/04/2019,1,PC002799, -   , 10.20 , 10.20 ,TESCO STORES 2228,Strategic Director 2,61900,Catering And Vending Supplies,Children & Young People's Service
Cambridge City Council,GPC,15/04/2019,1,PC002800, -   , 139.75 , 139.75 ,BOOKER LIMITED CAMBRIDGE,Strategic Director 2,61900,Catering And Vending Supplies,Children & Young People's Service
Cambridge City Council,GPC,15/04/2019,2,PC002861, -   , 42.11 , 42.11 ,TESCO STORE 2065,Strategic Director 2,61900,Catering And Vending Supplies,The Meadows Community Centre
Cambridge City Council,GPC,15/04/2019,1,PC002681, -   , 154.50 , 154.50 ,TVLICENSING.CO.UK,Strategic Director 2,60413,TV Licences,Clay Farm Community Centre
Cambridge City Council,GPC,15/04/2019,1,PC002774, 41.99 , 209.93 , 251.92 ,AMZNMktplace,Strategic Director 2,61703,"Purchase - Equipment, Furniture And Materials",Building Maintenance Response - Direct
Cambridge City Council,GPC,16/04/2019,1,PC002691, -   , 73.20 , 73.20 ,WWW.LGSS.CO.UK,Strategic Director 1,63200,Legal Fees,Park Street Car Park Development
Cambridge City Council,GPC,16/04/2019,3,PC002943, 14.40 , 72.00 , 86.40 ,Wix.com,Strategic Director 2,62005,"Advertising, Publicity And Marketing",Culture and Community
Cambridge City Council,GPC,16/04/2019,1,PC002801, -   , 8.50 , 8.50 ,TESCO STORE 2889,Strategic Director 2,61900,Catering And Vending Supplies,Children & Young People's Service
Cambridge City Council,GPC,17/04/2019,1,PC002747, -   , 4.00 , 4.00 ,MARKS&SPENCER PLC SACA,Strategic Director 1,64200,Subsistence,Business Support - Centralised Overheads
Cambridge City Council,GPC,17/04/2019,1,PC002745, -   , 83.87 , 83.87 ,TESCO STORE 2065,Strategic Director 2,64200,Subsistence,Buchan Street Community Facility
Cambridge City Council,GPC,17/04/2019,1,PC002708, 6.33 , 31.67 , 38.00 ,CAMBRIDGE MASTER LOCKS,Strategic Director 2,61702,"Maintenance - Equipment, Furniture And Materials",The Meadows Community Centre
Cambridge City Council,GPC,17/04/2019,1,PC002709, -   , 59.35 , 59.35 ,WWW.DORRINGTONS.COM,Strategic Director 2,64300,Conference Expenses,The Meadows Community Centre
Cambridge City Council,GPC,17/04/2019,1,PC002833, -   , 40.00 , 40.00 ,Amazon.co.uk*MZ4N20QG4,Strategic Director 2,62005,"Advertising, Publicity And Marketing",Active Lifestyles - Communities (ex Sports Development)
Cambridge City Council,GPC,17/04/2019,1,PC002750, -   , 10.00 , 10.00 ,TIMPSON LTD,Strategic Director 2,60804,Other Premises Related Costs,Town Hall Lettings
Cambridge City Council,GPC,17/04/2019,1,PC002864, 6.64 , 33.20 , 39.84 ,SCREWFIX CAMBRIDGE KINGS,Strategic Director 2,61703,"Purchase - Equipment, Furniture And Materials",Grounds Maintenance & Street Cleaning
Cambridge City Council,GPC,17/04/2019,2,PC002843, 1.49 , 7.43 , 8.92 ,AMZNMktplace,Strategic Director 2,61703,"Purchase - Equipment, Furniture And Materials",Building Maintenance Response - Direct
Cambridge City Council,GPC,18/04/2019,1,PC002782, -   , 110.00 , 110.00 ,UNI CAM ESALES,Chief Executive,64300,Conference Expenses,Corporate Policy
Cambridge City Council,GPC,18/04/2019,2,PC002956, -   , 898.35 , 898.35 ,HOMERTON COLLEGE CAMBR,Strategic Director 1,63900,Miscellaneous Expenses,Cambridge Northern Fringe East (CNFE)
Cambridge City Council,GPC,18/04/2019,1,PC002802, -   , 10.80 , 10.80 ,PAYPAL *MYHERMES,Strategic Director 2,63900,Miscellaneous Expenses,Children & Young People's Service
Cambridge City Council,GPC,18/04/2019,1,PC002710, -   , 7.00 , 7.00 ,TESCO STORES 4483,Strategic Director 2,62900,Events,The Meadows Community Centre
Cambridge City Council,GPC,18/04/2019,1,PC002682,-2.33 ,-11.66 ,-13.99 ,AMZ*RetevisDirect,Strategic Director 2,61703,"Purchase - Equipment, Furniture And Materials",Clay Farm Community Centre
Cambridge City Council,GPC,18/04/2019,1,PC002834, 2.67 , 13.32 , 15.99 ,AMZN Mktp UK*MZ2TB1DG4,Strategic Director 2,61703,"Purchase - Equipment, Furniture And Materials",Active Lifestyles - Communities (ex Sports Development)
Cambridge City Council,GPC,18/04/2019,2,PC002828, -   ,-141.59 ,-141.59 ,HEDGENURSERY,Strategic Director 2,60503,Grounds Maintenance,City Homes Estate Management
Cambridge City Council,GPC,18/04/2019,2,PC002845, 3.33 , 16.66 , 19.99 ,AMZNMktplace,Strategic Director 2,61703,"Purchase - Equipment, Furniture And Materials",Building Maintenance Response - Direct
Cambridge City Council,GPC,18/04/2019,2,PC002844, 9.98 , 49.88 , 59.86 ,AMZNMktplace,Strategic Director 2,61703,"Purchase - Equipment, Furniture And Materials",Building Maintenance Response - Direct
Cambridge City Council,GPC,18/04/2019,2,PC002846, 3.16 , 15.79 , 18.95 ,AMZNMktplace,Strategic Director 2,61703,"Purchase - Equipment, Furniture And Materials",Building Maintenance Response - Direct
Cambridge City Council,GPC,18/04/2019,2,PC002847, 7.65 , 38.24 , 45.89 ,NRS HEALTHCARE,Strategic Director 2,60234,Housing Repairs - Servicing Specialist Disabled Equipment,Repairs Day to Day
Cambridge City Council,GPC,19/04/2019,3,PC002925, 41.35 , 206.77 , 248.12 ,AMZNMktplace,Strategic Director 1,61702,"Maintenance - Equipment, Furniture And Materials",Parking Administration
Cambridge City Council,GPC,19/04/2019,2,PC003011, -   , 7.99 , 7.99 ,AMAZON PRIME*MZ7NH8SE4 AM,Strategic Director 2,61703,"Purchase - Equipment, Furniture And Materials",Building Maintenance Response - Direct
Cambridge City Council,GPC,19/04/2019,2,PC002928, -   , 57.60 , 57.60 ,STAGECOACH SERVICE,Strategic Director 2,60914,Public Transport For Staff And Members,Syrian Resettlement
Cambridge City Council,GPC,19/04/2019,2,PC002929, -   , 57.60 , 57.60 ,STAGECOACH SERVICE,Strategic Director 2,60914,Public Transport For Staff And Members,Syrian Resettlement
Cambridge City Council,GPC,19/04/2019,2,PC002930, -   , 57.60 , 57.60 ,STAGECOACH SERVICE,Strategic Director 2,60914,Public Transport For Staff And Members,Syrian Resettlement
Cambridge City Council,GPC,20/04/2019,2,PC002931, -   , 57.60 , 57.60 ,STAGECOACH SERVICE,Strategic Director 2,60914,Public Transport For Staff And Members,Syrian Resettlement
Cambridge City Council,GPC,20/04/2019,2,PC002932, -   , 57.60 , 57.60 ,STAGECOACH SERVICE,Strategic Director 2,60914,Public Transport For Staff And Members,Syrian Resettlement
Cambridge City Council,GPC,21/04/2019,2,PC002915, -   , 49.00 , 49.00 ,FACEBK *LQ7TTJWB72,Strategic Director 1,62005,"Advertising, Publicity And Marketing",Cambridge Northern Fringe East (CNFE)
Cambridge City Council,GPC,22/04/2019,2,PC003014, -   , 24.99 , 24.99 ,AMZN Mktp UK*MZ2CY0KW4,Strategic Director 2,61703,"Purchase - Equipment, Furniture And Materials",Building Maintenance Response - Direct
Cambridge City Council,GPC,22/04/2019,2,PC003012, -   , 63.99 , 63.99 ,AMZNMktplace,Strategic Director 2,61703,"Purchase - Equipment, Furniture And Materials",Building Maintenance Response - Direct
Cambridge City Council,GPC,22/04/2019,2,PC003013, -   , 13.95 , 13.95 ,AMZNMktplace,Strategic Director 2,62000,"Clothes, Uniform And Laundry",Technical Services
Cambridge City Council,GPC,23/04/2019,2,PC002941, -   , 13.98 , 13.98 ,SCREWFIX DIR.LTD,Strategic Director 1,62000,"Clothes, Uniform And Laundry",Fleet Management - Operational
Cambridge City Council,GPC,23/04/2019,3,PC002900, 77.43 , 387.16 , 464.59 ,LINKEDIN-376*3844386,Strategic Director 1,60116,Staff Recruitment Costs,Human Resources - Recruitment
Cambridge City Council,GPC,23/04/2019,2,PC003050, -   , 35.58 , 35.58 ,TESCO STORE 2065,Strategic Director 2,61900,Catering And Vending Supplies,The Meadows Community Centre
Cambridge City Council,GPC,23/04/2019,3,PC003004, -   , 5.81 , 5.81 ,POSTOFFICE SELFSERVICE,Strategic Director 2,64100,Postage And Courier Services,Leisure Contract Client Costs
Cambridge City Council,GPC,23/04/2019,2,PC002912, -   ,-29.95 ,-29.95 ,AMZNMKTPLACE AMAZON.CO.UK,Strategic Director 2,60207,Health And Safety Supplies And Services,Environmental Health Operational Support
Cambridge City Council,GPC,23/04/2019,2,PC002911, -   , 140.00 , 140.00 ,CHARTERED INSTITUTE OF EN,Strategic Director 2,64300,Conference Expenses,Environmental Health Operational Support
Cambridge City Council,GPC,24/04/2019,2,PC002885, -   , 16.48 , 16.48 ,AMZN Mktp UK*MZ5QE7U84,Strategic Director 1,61703,"Purchase - Equipment, Furniture And Materials",Bereavement Services
Cambridge City Council,GPC,24/04/2019,4,PC003046, -   , 26.19 , 26.19 ,Trainline.com,Strategic Director 1,60914,Public Transport For Staff And Members,Procurement
Cambridge City Council,GPC,24/04/2019,3,PC002910, -   , 578.00 , 578.00 ,EB *HOW SAFE ARE OUR C,Strategic Director 2,64300,Conference Expenses,Community Development - Admin
Cambridge City Council,GPC,24/04/2019,2,PC002914, -   ,-34.95 ,-34.95 ,AMZN MKTP UK AMAZON.CO.UK,Strategic Director 2,60207,Health And Safety Supplies And Services,Environmental Health Operational Support
Cambridge City Council,GPC,24/04/2019,2,PC002913, -   , 34.95 , 34.95 ,AMZNMktplace,Strategic Director 2,61703,"Purchase - Equipment, Furniture And Materials",Environmental Health Operational Support
Cambridge City Council,GPC,25/04/2019,4,PC003047, -   , 121.50 , 121.50 ,TRAINLINE,Strategic Director 1,60914,Public Transport For Staff And Members,Procurement
Cambridge City Council,GPC,25/04/2019,2,PC002958, 14.17 , 70.83 , 85.00 ,WICKES BUILDING,Strategic Director 2,61703,"Purchase - Equipment, Furniture And Materials",Children & Young People's Service
Cambridge City Council,GPC,25/04/2019,2,PC002959, -   , 10.99 , 10.99 ,AMZN MKTP UK*MZ7LY4IR4 AM,Strategic Director 2,61703,"Purchase - Equipment, Furniture And Materials",Children & Young People's Service
Cambridge City Council,GPC,25/04/2019,2,PC002970, -   , 49.00 , 49.00 ,CO-OP GROUP 019959,Strategic Director 2,60303,Electricity,Temporary Accommodation
Cambridge City Council,GPC,25/04/2019,2,PC002972, -   , 49.00 , 49.00 ,CO-OP GROUP 019959,Strategic Director 2,60303,Electricity,Temporary Accommodation
Cambridge City Council,GPC,25/04/2019,2,PC002969, -   , 49.00 , 49.00 ,CO-OP GROUP 019959,Strategic Director 2,60305,Gas,Temporary Accommodation
Cambridge City Council,GPC,25/04/2019,2,PC002971, -   , 49.00 , 49.00 ,CO-OP GROUP 019959,Strategic Director 2,60305,Gas,Temporary Accommodation
Cambridge City Council,GPC,25/04/2019,2,PC002973, -   , 49.00 , 49.00 ,CO-OP GROUP 019959,Strategic Director 2,60305,Gas,Temporary Accommodation
Cambridge City Council,GPC,25/04/2019,3,PC002995, -   , 19.99 , 19.99 ,TOOLSTATION LTD,Strategic Director 2,60503,Grounds Maintenance,City Homes Estate Management
Cambridge City Council,GPC,25/04/2019,2,PC003015, -   , 105.48 , 105.48 ,PAYPAL *HOWSAFE LTD,Strategic Director 2,62000,"Clothes, Uniform And Laundry",Technical Services
Cambridge City Council,GPC,26/04/2019,3,PC002901, 10.16 , 50.82 , 60.98 ,LINKEDIN-461*2698083,Strategic Director 1,60116,Staff Recruitment Costs,Human Resources - Recruitment
Cambridge City Council,GPC,26/04/2019,2,PC003016, -   , 616.56 , 616.56 ,TERRYS TIMBER LTD,Strategic Director 1,11312,Assets Under Construction Cost,Housing Revenue Account Balance Sheet
Cambridge City Council,GPC,26/04/2019,3,PC002996, -   , 5.00 , 5.00 ,HALLS OF CAMBRIDGE,Strategic Director 2,60503,Grounds Maintenance,City Homes Estate Management
Cambridge City Council,GPC,26/04/2019,3,PC002997, -   , 31.50 , 31.50 ,B & Q 1239,Strategic Director 2,60503,Grounds Maintenance,City Homes Estate Management
Cambridge City Council,GPC,26/04/2019,2,PC003017, -   , 39.99 , 39.99 ,AMZNMktplace,Strategic Director 2,61703,"Purchase - Equipment, Furniture And Materials",Building Maintenance Response - Direct
Cambridge City Council,GPC,26/04/2019,2,PC003019, -   , 97.80 , 97.80 ,PAYPAL *HOWSAFE LTD,Strategic Director 2,62000,"Clothes, Uniform And Laundry",Building Maintenance Response - Direct
Cambridge City Council,GPC,26/04/2019,2,PC003018, -   , 59.94 , 59.94 ,PAYPAL *HOWSAFE LTD,Strategic Director 2,62000,"Clothes, Uniform And Laundry",Technical Services
Cambridge City Council,GPC,27/04/2019,2,PC002886, -   , 65.40 , 65.40 ,LUCIDCHART.COM/CHARGE,Chief Executive,60914,Public Transport For Staff And Members,Corporate Policy
Cambridge City Council,GPC,27/04/2019,2,PC002933, -   , 57.60 , 57.60 ,STAGECOACH SERVICE,Strategic Director 2,60914,Public Transport For Staff And Members,Syrian Resettlement
Cambridge City Council,GPC,28/04/2019,2,PC002893, -   , 13.19 , 13.19 ,TESCO STORES 4483,Strategic Director 2,61900,Catering And Vending Supplies,The Meadows Community Centre
Cambridge City Council,GPC,29/04/2019,2,PC002887, -   ,-65.40 ,-65.40 ,LUCIDCHART.COM/CHARGE,Chief Executive,60914,Public Transport For Staff And Members,Corporate Policy
Cambridge City Council,GPC,29/04/2019,2,PC002949, -   , 3.95 , 3.95 ,WH SMITH,Chief Executive,62003,"Books, Publications And Resources",Civic Affairs and Twinning
Cambridge City Council,GPC,29/04/2019,2,PC002921, -   , 31.50 , 31.50 ,TIMPSON LTD,Strategic Director 2,61703,"Purchase - Equipment, Furniture And Materials",Town Hall Lettings
Cambridge City Council,GPC,29/04/2019,2,PC002953, 11.00 , 55.00 , 66.00 ,AMAZON.CO.UK*MN2RV5CB4 AM,Strategic Director 2,60201,Cyclical/Planned Maintenance - Building,Markets
Cambridge City Council,GPC,29/04/2019,2,PC003051, -   , 73.91 , 73.91 ,TESCO STORE 2065,Strategic Director 2,61900,Catering And Vending Supplies,The Meadows Community Centre
Cambridge City Council,GPC,30/04/2019,2,PC002942, -   , 439.94 , 439.94 ,SCREWFIX DIRECT,Strategic Director 1,62000,"Clothes, Uniform And Laundry",Fleet Management - Operational
Cambridge City Council,GPC,30/04/2019,2,PC002975, -   , 316.00 , 316.00 ,ARGOS RETAIL GROUP,Strategic Director 1,61703,"Purchase - Equipment, Furniture And Materials",Housing Revenue Account - Net Cost of Service
Cambridge City Council,GPC,30/04/2019,2,PC002974, -   , 131.00 , 131.00 ,POST OFFICE COUNTER,Strategic Director 2,62002,Stationery,Temporary Accommodation
Cambridge City Council,GPC,30/04/2019,2,PC003020, -   , 13.98 , 13.98 ,AMZNMktplace,Strategic Director 2,61703,"Purchase - Equipment, Furniture And Materials",Building Maintenance Response - Direct
Cambridge City Council,GPC,30/04/2019,2,PC003025, -   , 20.99 , 20.99 ,AMZN Mktp UK*MN2YQ9FN4,Strategic Director 2,64073,ICT Maintenance and Support,Building Services - Indirect
Cambridge City Council,GPC,30/04/2019,2,PC003021, -   , 22.99 , 22.99 ,AMZNMktplace,Strategic Director 2,64200,Subsistence,Technical Services
Cambridge City Council,GPC,30/04/2019,2,PC003022, -   , 8.96 , 8.96 ,AMZNMktplace,Strategic Director 2,64200,Subsistence,Technical Services
Cambridge City Council,GPC,30/04/2019,2,PC003023, -   , 23.40 , 23.40 ,AMZNMktplace,Strategic Director 2,64200,Subsistence,Technical Services
Cambridge City Council,GPC,30/04/2019,3,PC002944, 97.16 , 485.80 , 582.96 ,FACEBK *FMLHEJEC92,Strategic Director 2,61931,Cambridge Live Social Media,Cambridge Live - Central
Cambridge City Council,GPC,30/04/2019,2,PC002961, 6.67 , 33.32 , 39.99 ,AMZN MKTP UK*MN2T30OD4 AM,Strategic Director 2,61703,"Purchase - Equipment, Furniture And Materials",Children & Young People's Service
Cambridge City Council,GPC,30/04/2019,2,PC002894, 1.42 , 7.08 , 8.50 ,CAMBRIDGE MASTER LOCKS,Strategic Director 2,61702,"Maintenance - Equipment, Furniture And Materials",The Meadows Community Centre
Cambridge City Council,GPC,30/04/2019,3,PC003055, 1.83 , 9.16 , 10.99 ,AMZNMKTPLACE AMAZON.CO.UK,Strategic Director 2,62900,Events,Neighbourhood Community Development
Cambridge City Council,GPC,30/04/2019,2,PC002960, 2.38 , 11.89 , 14.27 ,Amazon.co.uk*MN2K84O94,Strategic Director 2,61703,"Purchase - Equipment, Furniture And Materials",Brown's Field Youth and Community Centre
Cambridge City Council,GPC,30/04/2019,2,PC003024, -   , 149.42 , 149.42 ,CONCORDE GLASS LTD V/T,Strategic Director 2,60201,Cyclical/Planned Maintenance - Building,Leisure Contract Client Costs
Cambridge City Council,GPC,30/04/2019,3,PC003005, -   , 20.00 , 20.00 ,FACEBK TXR4CMNHR2,Strategic Director 2,62005,"Advertising, Publicity And Marketing",Active Lifestyles - Communities (ex Sports Development)
Cambridge City Council,GPC,30/04/2019,3,PC003005, -   , 93.46 , 93.46 ,FACEBK TXR4CMNHR2,Strategic Director 2,62005,"Advertising, Publicity And Marketing",Active Lifestyles - Communities (ex Sports Development)
Cambridge City Council,GPC,30/04/2019,3,PC003005, -   , 10.00 , 10.00 ,FACEBK TXR4CMNHR2,Strategic Director 2,62005,"Advertising, Publicity And Marketing",Active Lifestyles - Communities (ex Sports Development)
Cambridge City Council,GPC,30/04/2019,3,PC003005, -   , 4.74 , 4.74 ,FACEBK TXR4CMNHR2,Strategic Director 2,62005,"Advertising, Publicity And Marketing",Active Lifestyles - Projects
Cambridge City Council,GPC,30/04/2019,2,PC002888, -   , 339.00 , 339.00 ,WWW.MEMBERS.LANDSCAPEI,Strategic Director 2,64800,Membership And Subscriptions,Head of Streets & Open Spaces
Cambridge City Council,GPC,01/05/2019,2,PC003033, -   ,-10.00 ,-10.00 ,TERRYS TIMBER LTD,Strategic Director 1,11312,Assets Under Construction Cost,Housing Revenue Account Balance Sheet
Cambridge City Council,GPC,01/05/2019,2,PC002876, 3.33 , 16.65 , 19.98 ,BAKER ROSS,Strategic Director 2,62900,Events,Clay Farm Community Centre
Cambridge City Council,GPC,01/05/2019,2,PC002876, -   , 1.99 , 1.99 ,BAKER ROSS,Strategic Director 2,62900,Events,Clay Farm Community Centre
Cambridge City Council,GPC,01/05/2019,2,PC002922, -   , 17.00 , 17.00 ,B&Q DIRECT,Strategic Director 2,61703,"Purchase - Equipment, Furniture And Materials",Town Hall Lettings
Cambridge City Council,GPC,01/05/2019,2,PC003028, -   , 5.89 , 5.89 ,AMZN Mktp UK*MN5ZG44Q4,Strategic Director 2,62002,Stationery,Building Services - Indirect
Cambridge City Council,GPC,01/05/2019,2,PC003029, -   , 5.89 , 5.89 ,AMZN Mktp UK*MN6J45464,Strategic Director 2,62002,Stationery,Building Services - Indirect
Cambridge City Council,GPC,01/05/2019,2,PC003030, -   , 5.89 , 5.89 ,AMZN Mktp UK*MN5P364A4,Strategic Director 2,62002,Stationery,Building Services - Indirect
Cambridge City Council,GPC,01/05/2019,2,PC003031, -   , 5.89 , 5.89 ,AMZN Mktp UK*MN96Q04Y4,Strategic Director 2,62002,Stationery,Building Services - Indirect
Cambridge City Council,GPC,01/05/2019,2,PC003032, -   , 5.89 , 5.89 ,AMZN Mktp UK*MN8ZS04G4,Strategic Director 2,62002,Stationery,Building Services - Indirect
Cambridge City Council,GPC,01/05/2019,2,PC003026, -   , 11.23 , 11.23 ,AMZNMktplace,Strategic Director 2,64200,Subsistence,Technical Services
Cambridge City Council,GPC,01/05/2019,2,PC003056, -   , 143.99 , 143.99 ,SCREWFIX CAMBRIDGE CLIFTO,Strategic Director 2,61703,"Purchase - Equipment, Furniture And Materials",Facilities Management
Cambridge City Council,GPC,01/05/2019,2,PC003027, -   , 427.68 , 427.68 ,AMZ*Pipelagging/ACS,Strategic Director 2,60201,Cyclical/Planned Maintenance - Building,130 Cowley Road
Cambridge City Council,GPC,02/05/2019,2,PC002916, -   , 49.24 , 49.24 ,TESCO STORE 2065,Strategic Director 2,61400,Goods For Resale,Buchan Street Community Facility
Cambridge City Council,GPC,02/05/2019,3,PC003006, -   , 49.86 , 49.86 ,AMZN Mktp UK*MN4YI2LL4,Strategic Director 2,61703,"Purchase - Equipment, Furniture And Materials",Active Lifestyles - Projects
Cambridge City Council,GPC,02/05/2019,2,PC002934, -   , 96.00 , 96.00 ,STAGECOACH SERVICE,Strategic Director 2,60914,Public Transport For Staff And Members,Syrian Resettlement
Cambridge City Council,GPC,02/05/2019,3,PC002998, -   , 88.09 , 88.09 ,WWW.HALL-FAST.COM,Strategic Director 2,60503,Grounds Maintenance,City Homes Estate Management
Cambridge City Council,GPC,02/05/2019,2,PC003057, -   , 30.00 , 30.00 ,SCREWFIX ST NEOTS,Strategic Director 2,60201,Cyclical/Planned Maintenance - Building,Guildhall
Cambridge City Council,GPC,02/05/2019,2,PC003044, -   , 15.25 , 15.25 ,WILKO CAMBRIDGE,Director of Planning,61703,"Purchase - Equipment, Furniture And Materials",3C Building Control
Cambridge City Council,GPC,03/05/2019,3,PC002902, 98.08 , 490.41 , 588.49 ,DRINKS DIRECT LTD,Strategic Director 1,60117,Staff Other Expenses,Human Resources Operations (Staff-General)
Cambridge City Council,GPC,03/05/2019,2,PC002957, -   , 258.00 , 258.00 ,ST JOHN AMBULANCE,Strategic Director 2,60115,Staff Development And Training,Community Development - Admin
Cambridge City Council,GPC,03/05/2019,2,PC003034, -   , 597.20 , 597.20 ,CONCORDE GLASS LTD V/T,Strategic Director 2,60201,Cyclical/Planned Maintenance - Building,Leisure Contract Client Costs
Cambridge City Council,GPC,05/05/2019,2,PC002877, 2.00 , 10.00 , 12.00 ,MATALAN,Strategic Director 2,61703,"Purchase - Equipment, Furniture And Materials",Clay Farm Community Centre
Cambridge City Council,GPC,07/05/2019,2,PC002950, -   , 2.40 , 2.40 ,PARKING CHARGE,Chief Executive,60914,Public Transport For Staff And Members,Civic Affairs and Twinning
Cambridge City Council,GPC,07/05/2019,3,PC002903, 96.62 , 483.09 , 579.71 ,MAJESTIC WINE,Strategic Director 1,60117,Staff Other Expenses,Human Resources Operations (Staff-General)
Cambridge City Council,GPC,07/05/2019,2,PC003059, -   , 95.22 , 95.22 ,SCREWFIX CAMBRIDGE CLIFTO,Strategic Director 2,61702,"Maintenance - Equipment, Furniture And Materials",Facilities Management
Cambridge City Council,GPC,07/05/2019,2,PC003058, -   , 28.87 , 28.87 ,SCREWFIX CAMBRIDGE CLIFTO,Strategic Director 2,61703,"Purchase - Equipment, Furniture And Materials",Facilities Management
Cambridge City Council,GPC,07/05/2019,2,PC002962, -   , 3.24 , 3.24 ,CO-OP GROUP 019451,Strategic Director 2,61900,Catering And Vending Supplies,Children & Young People's Service
Cambridge City Council,GPC,07/05/2019,2,PC003052, -   , 36.63 , 36.63 ,TESCO STORE 2065,Strategic Director 2,61900,Catering And Vending Supplies,The Meadows Community Centre
Cambridge City Council,GPC,07/05/2019,2,PC002895, -   , 7.78 , 7.78 ,RJP LTD,Strategic Director 2,61900,Catering And Vending Supplies,The Meadows Community Centre
Cambridge City Council,GPC,07/05/2019,3,PC002926, 6.00 , 29.99 , 35.99 ,ALAMY.COM LIMITED,Strategic Director 2,62400,Consultancy Fees,Market Square Project
Cambridge City Council,GPC,07/05/2019,2,PC002955, 33.33 , 166.63 , 199.96 ,AMZNMktplace,Strategic Director 2,61703,"Purchase - Equipment, Furniture And Materials",S&OS Community Engagement
Cambridge City Council,GPC,08/05/2019,3,PC002904, -   , 140.40 , 140.40 ,GUMTREE COM,Strategic Director 1,60116,Staff Recruitment Costs,Human Resources - Recruitment
Cambridge City Council,GPC,08/05/2019,2,PC002896, -   , 62.81 , 62.81 ,TESCO STORES 4483,Strategic Director 2,61900,Catering And Vending Supplies,The Meadows Community Centre
Cambridge City Council,GPC,08/05/2019,2,PC002878, 8.33 , 41.66 , 49.99 ,AMZNMKTPLACE AMAZON.CO.UK,Strategic Director 2,61703,"Purchase - Equipment, Furniture And Materials",Clay Farm Community Centre
Cambridge City Council,GPC,08/05/2019,2,PC003060, -   , 93.27 , 93.27 ,SCREWFIX CAMBRIDGE CLIFTO,Strategic Director 2,61702,"Maintenance - Equipment, Furniture And Materials",Facilities Management
Cambridge City Council,GPC,08/05/2019,2,PC003045, -   , 21.63 , 21.63 ,WM MORRISONS STORE,Director of Planning,64300,Conference Expenses,3C Building Control
Cambridge City Council,GPC,09/05/2019,2,PC002918, -   , 321.36 , 321.36 ,WIZZ AIR HUN0000000B89T9C,Chief Executive,62900,Events,Civic Affairs and Twinning
Cambridge City Council,GPC,09/05/2019,2,PC002919, -   , 61.98 , 61.98 ,WWW.HXPAYMENTS.COM,Chief Executive,62900,Events,Civic Affairs and Twinning
Cambridge City Council,GPC,09/05/2019,2,PC002948, 2.33 , 11.65 , 13.98 ,SCREWFIX CAMBRIDGE KINGS,Strategic Director 1,61703,"Purchase - Equipment, Furniture And Materials",Bereavement Services
Cambridge City Council,GPC,09/05/2019,2,PC002979, -   , 49.00 , 49.00 ,CO-OP GROUP 019959,Strategic Director 2,60303,Electricity,Temporary Accommodation
Cambridge City Council,GPC,09/05/2019,2,PC002981, -   , 49.00 , 49.00 ,CO-OP GROUP 019959,Strategic Director 2,60303,Electricity,Temporary Accommodation
Cambridge City Council,GPC,09/05/2019,2,PC002982, -   , 49.00 , 49.00 ,CO-OP GROUP 019959,Strategic Director 2,60303,Electricity,Temporary Accommodation
Cambridge City Council,GPC,09/05/2019,2,PC002976, -   , 49.00 , 49.00 ,CO-OP GROUP 019959,Strategic Director 2,60305,Gas,Temporary Accommodation
Cambridge City Council,GPC,09/05/2019,2,PC002977, -   , 49.00 , 49.00 ,CO-OP GROUP 019959,Strategic Director 2,60305,Gas,Temporary Accommodation
Cambridge City Council,GPC,09/05/2019,2,PC002978, -   , 49.00 , 49.00 ,CO-OP GROUP 019959,Strategic Director 2,60305,Gas,Temporary Accommodation
Cambridge City Council,GPC,09/05/2019,2,PC002980, -   , 49.00 , 49.00 ,CO-OP GROUP 019959,Strategic Director 2,60305,Gas,Temporary Accommodation
Cambridge City Council,GPC,09/05/2019,3,PC002999, -   , 3.00 , 3.00 ,POST OFFICE COUNTER,Strategic Director 2,60503,Grounds Maintenance,City Homes Estate Management
Cambridge City Council,GPC,09/05/2019,3,PC003000, -   , 63.94 , 63.94 ,WWW.HALL-FAST.COM,Strategic Director 2,60503,Grounds Maintenance,City Homes Estate Management
Cambridge City Council,GPC,09/05/2019,2,PC003035, -   , 299.63 , 299.63 ,CBJLTD.CO.UK,Strategic Director 2,61703,"Purchase - Equipment, Furniture And Materials",Building Maintenance Response - Direct
Cambridge City Council,GPC,09/05/2019,2,PC003036, -   , 532.80 , 532.80 ,WWW.OFFICEFURNITUREONL,Strategic Director 2,61703,"Purchase - Equipment, Furniture And Materials",Building Maintenance Response - Direct
Cambridge City Council,GPC,09/05/2019,2,PC003061, -   , 89.95 , 89.95 ,AMZNMKTPLACE AMAZON.CO.UK,Strategic Director 2,62000,"Clothes, Uniform And Laundry",Facilities Management
Cambridge City Council,GPC,09/05/2019,2,PC003062, -   , 81.49 , 81.49 ,Amazon.co.uk*MN9ET7EW4,Strategic Director 2,62000,"Clothes, Uniform And Laundry",Facilities Management
Cambridge City Council,GPC,09/05/2019,2,PC002879, 14.92 , 74.57 , 89.49 ,AMAZON.CO.UK*MN8HR7E84 AM,Strategic Director 2,61703,"Purchase - Equipment, Furniture And Materials",Clay Farm Community Centre
Cambridge City Council,GPC,10/05/2019,3,PC002905, -   , 12.00 , 12.00 ,MARKS&SPENCER PLC SACA,Strategic Director 1,60117,Staff Other Expenses,Human Resources Operations (Staff-General)
Cambridge City Council,GPC,10/05/2019,3,PC002906, -   , 4.25 , 4.25 ,MARKS&SPENCER PLC SACA,Strategic Director 1,60117,Staff Other Expenses,Human Resources Operations (Staff-General)
Cambridge City Council,GPC,10/05/2019,3,PC002927, 14.38 , 71.90 , 86.28 ,WWW.SIGN-HOLDERS.CO.UK,Strategic Director 1,60300,Signs Erecting & Removal,Parking Administration
Cambridge City Council,GPC,10/05/2019,2,PC002898, -   , 86.85 , 86.85 ,WWW.DORRINGTONS.COM,Strategic Director 2,64200,Subsistence,The Meadows Community Centre
Cambridge City Council,GPC,10/05/2019,2,PC002897, 8.19 , 40.94 , 49.13 ,BOOKER LIMITED CAMBRIDGE,Strategic Director 2,61703,"Purchase - Equipment, Furniture And Materials",The Meadows Community Centre
Cambridge City Council,GPC,10/05/2019,3,PC003001, -   , 23.74 , 23.74 ,SCREWFIX DIRECT,Strategic Director 2,60503,Grounds Maintenance,City Homes Estate Management
Cambridge City Council,GPC,10/05/2019,3,PC003002, -   , 50.00 , 50.00 ,WWW.LGSS.CO.UK,Strategic Director 2,60503,Grounds Maintenance,City Homes Estate Management
Cambridge City Council,GPC,10/05/2019,2,PC003037, -   , 38.35 , 38.35 ,The metal store,Strategic Director 2,61703,"Purchase - Equipment, Furniture And Materials",Building Maintenance Response - Direct
Cambridge City Council,GPC,11/05/2019,3,PC003007, -   , 65.30 , 65.30 ,BOOKWHEN.COM - BOOKING,Strategic Director 2,64800,Membership And Subscriptions,Active Lifestyles - Communities (ex Sports Development)
Cambridge City Council,GPC,12/05/2019,2,PC002875, -   , 8.50 , 8.50 ,HIGHGATE COUNTRY STORES L,Strategic Director 1,61300,Cleaning Materials,Bereavement Services
Cambridge City Council,GPC,12/05/2019,3,PC002907,-98.08 ,-490.41 ,-588.49 ,DRINKS DIRECT LTD,Strategic Director 1,60117,Staff Other Expenses,Human Resources Operations (Staff-General)
Cambridge City Council,GPC,12/05/2019,2,PC002963, -   , 53.58 , 53.58 ,AMZNMKTPLACE AMAZON.CO.UK,Strategic Director 2,61300,Cleaning Materials,Brown's Field Youth and Community Centre
Cambridge City Council,GPC,13/05/2019,2,PC003053, -   , 107.77 , 107.77 ,TESCO STORE 2065,Strategic Director 2,61900,Catering And Vending Supplies,The Meadows Community Centre
Cambridge City Council,GPC,13/05/2019,2,PC002882, 11.20 , 55.98 , 67.18 ,ARCO LTD,Strategic Director 2,61300,Cleaning Materials,Clay Farm Community Centre
Cambridge City Council,GPC,13/05/2019,2,PC002881, 30.36 , 151.78 , 182.14 ,WWW.GURUPEOPLELTD.COM,Strategic Director 2,61703,"Purchase - Equipment, Furniture And Materials",Clay Farm Community Centre
Cambridge City Council,GPC,13/05/2019,2,PC002880, -   , 8.77 , 8.77 ,HERON FOODS LTD,Strategic Director 2,62900,Events,Clay Farm Community Centre
Cambridge City Council,GPC,13/05/2019,2,PC002954, -   , 72.85 , 72.85 ,ROYAL MAIL ONLINE SHOP,Strategic Director 2,64100,Postage And Courier Services,Environmental Health Operational Support
Cambridge City Council,GPC,13/05/2019,2,PC002935, -   , 57.60 , 57.60 ,STAGECOACH SERVICE,Strategic Director 2,60914,Public Transport For Staff And Members,Syrian Resettlement
Cambridge City Council,GPC,13/05/2019,2,PC003039, -   , 217.20 , 217.20 ,WWW.BROXAP.COM,Strategic Director 2,61703,"Purchase - Equipment, Furniture And Materials",Building Maintenance Response - Direct
Cambridge City Council,GPC,13/05/2019,2,PC003038, -   , 59.94 , 59.94 ,PAYPAL *HOWSAFE LTD,Strategic Director 2,62000,"Clothes, Uniform And Laundry",Technical Services
Cambridge City Council,GPC,14/05/2019,2,PC002951, -   , 44.00 , 44.00 ,PREMIER FRAMING,Chief Executive,62002,Stationery,Civic Affairs and Twinning
Cambridge City Council,GPC,14/05/2019,3,PC002908, -   , 275.24 , 275.24 ,LINKEDIN-381*0383746,Strategic Director 1,60116,Staff Recruitment Costs,Human Resources - Recruitment
Cambridge City Council,GPC,14/05/2019,4,PC003048, -   , 80.60 , 80.60 ,TRAINLINE,Strategic Director 1,60914,Public Transport For Staff And Members,Procurement
Cambridge City Council,GPC,14/05/2019,3,PC002946, -   , 70.00 , 70.00 ,EB *CAMBSEDFEST 2019,Strategic Director 2,62900,Events,Culture and Community
Cambridge City Council,GPC,14/05/2019,3,PC002945, 14.15 , 70.75 , 84.90 ,LCN.COM LTD,Strategic Director 2,62900,Events,Culture and Community
Cambridge City Council,GPC,14/05/2019,2,PC002923, -   , 42.00 , 42.00 ,TIMPSON LTD,Strategic Director 2,61703,"Purchase - Equipment, Furniture And Materials",Town Hall Lettings
Cambridge City Council,GPC,14/05/2019,2,PC003040, -   , 50.48 , 50.48 ,WWW.FIRESEALSDIRECT.COM,Strategic Director 2,61703,"Purchase - Equipment, Furniture And Materials",Building Maintenance Response - Direct
Cambridge City Council,GPC,15/05/2019,2,PC002964, 6.67 , 33.32 , 39.99 ,AMZN MKTP UK*MN8OC2VI4 AM,Strategic Director 2,61703,"Purchase - Equipment, Furniture And Materials",Children & Young People's Service
Cambridge City Council,GPC,15/05/2019,3,PC003003, -   ,-31.03 ,-31.03 ,WWW.HALL-FAST.COM,Strategic Director 2,60503,Grounds Maintenance,City Homes Estate Management
Cambridge City Council,GPC,15/05/2019,2,PC003041, -   , 35.58 , 35.58 ,Amazon.co.uk*MN9SJ8VH4,Strategic Director 2,61703,"Purchase - Equipment, Furniture And Materials",Building Maintenance Response - Direct
Cambridge City Council,GPC,15/05/2019,2,PC002889, -   , 10.56 , 10.56 ,CAPITA GAS,Strategic Director 2,60225,Housing Repairs - Gas Maintenance Contract,Gas Servicing
Cambridge City Council,GPC,15/05/2019,3,PC002947, -   , 340.00 , 340.00 ,WWW.INSTANTPRINT.C,Strategic Director 2,62001,Printing,Cambridge Live - Central
Cambridge City Council,GPC,16/05/2019,2,PC002965, 1.95 , 9.74 , 11.69 ,AMZNMktplace,Strategic Director 2,61703,"Purchase - Equipment, Furniture And Materials",Children & Young People's Service
Cambridge City Council,GPC,16/05/2019,2,PC002966, -   , 17.97 , 17.97 ,AMZNMktplace,Strategic Director 2,61703,"Purchase - Equipment, Furniture And Materials",Children & Young People's Service
Cambridge City Council,GPC,16/05/2019,2,PC002967, -   , 12.00 , 12.00 ,CO-OP GROUP 019451,Strategic Director 2,61703,"Purchase - Equipment, Furniture And Materials",Children & Young People's Service
Cambridge City Council,GPC,16/05/2019,2,PC002917, -   , 54.86 , 54.86 ,TESCO STORE 2065,Strategic Director 2,61400,Goods For Resale,Buchan Street Community Facility
Cambridge City Council,GPC,16/05/2019,2,PC002883, -   , 12.09 , 12.09 ,AMZNMktplace,Strategic Director 2,61703,"Purchase - Equipment, Furniture And Materials",Clay Farm Community Centre
Cambridge City Council,GPC,16/05/2019,3,PC003008, -   , 79.90 , 79.90 ,AMZNMktplace,Strategic Director 2,61703,"Purchase - Equipment, Furniture And Materials",Active Lifestyles - Communities (ex Sports Development)
Cambridge City Council,GPC,16/05/2019,3,PC003009, -   , 162.79 , 162.79 ,AMZNMktplace,Strategic Director 2,61703,"Purchase - Equipment, Furniture And Materials",Active Lifestyles - Communities (ex Sports Development)
Cambridge City Council,GPC,16/05/2019,2,PC002986, -   , 49.00 , 49.00 ,CO-OP GROUP 019959,Strategic Director 2,60303,Electricity,Temporary Accommodation
Cambridge City Council,GPC,16/05/2019,2,PC002987, -   , 49.00 , 49.00 ,CO-OP GROUP 019959,Strategic Director 2,60303,Electricity,Temporary Accommodation
Cambridge City Council,GPC,16/05/2019,2,PC002988, -   , 49.00 , 49.00 ,CO-OP GROUP 019959,Strategic Director 2,60303,Electricity,Temporary Accommodation
Cambridge City Council,GPC,16/05/2019,2,PC002991, -   , 49.00 , 49.00 ,CO-OP GROUP 019959,Strategic Director 2,60303,Electricity,Temporary Accommodation
Cambridge City Council,GPC,16/05/2019,2,PC002994, -   , 49.00 , 49.00 ,CO-OP GROUP 019959,Strategic Director 2,60303,Electricity,Temporary Accommodation
Cambridge City Council,GPC,16/05/2019,2,PC002983, -   , 49.00 , 49.00 ,CO-OP GROUP 019959,Strategic Director 2,60305,Gas,Temporary Accommodation
Cambridge City Council,GPC,16/05/2019,2,PC002984, -   , 49.00 , 49.00 ,CO-OP GROUP 019959,Strategic Director 2,60305,Gas,Temporary Accommodation
Cambridge City Council,GPC,16/05/2019,2,PC002985, -   , 49.00 , 49.00 ,CO-OP GROUP 019959,Strategic Director 2,60305,Gas,Temporary Accommodation
Cambridge City Council,GPC,16/05/2019,2,PC002989, -   , 49.00 , 49.00 ,CO-OP GROUP 019959,Strategic Director 2,60305,Gas,Temporary Accommodation
Cambridge City Council,GPC,16/05/2019,2,PC002990, -   , 49.00 , 49.00 ,CO-OP GROUP 019959,Strategic Director 2,60305,Gas,Temporary Accommodation
Cambridge City Council,GPC,16/05/2019,2,PC002992, -   , 49.00 , 49.00 ,CO-OP GROUP 019959,Strategic Director 2,60305,Gas,Temporary Accommodation
Cambridge City Council,GPC,16/05/2019,2,PC002993, -   , 49.00 , 49.00 ,CO-OP GROUP 019959,Strategic Director 2,60305,Gas,Temporary Accommodation
Cambridge City Council,GPC,17/05/2019,2,PC002890, 7.46 , 37.30 , 44.76 ,POSTOFFICE SELFSERVICE,Chief Executive,64100,Postage And Courier Services,Elections-European
Cambridge City Council,GPC,17/05/2019,2,PC002968, 1.29 , 6.46 , 7.75 ,AMZNMktplace,Strategic Director 2,61703,"Purchase - Equipment, Furniture And Materials",Children & Young People's Service
Cambridge City Council,GPC,17/05/2019,2,PC003042, -   , 190.20 , 190.20 ,SHOP4 ALL ELECTRICAL LTD,Strategic Director 2,61703,"Purchase - Equipment, Furniture And Materials",Building Maintenance Response - Direct
Cambridge City Council,GPC,18/05/2019,3,PC003010, -   , 10.00 , 10.00 ,SCOPE,Strategic Director 2,61703,"Purchase - Equipment, Furniture And Materials",Leisure Contract Client Costs
Cambridge City Council,GPC,19/05/2019,2,PC002899, -   , 3.98 , 3.98 ,T K MAXX,Strategic Director 2,61703,"Purchase - Equipment, Furniture And Materials",The Meadows Community Centre
Cambridge City Council,GPC,19/05/2019,2,PC002936, -   , 57.60 , 57.60 ,STAGECOACH SERVICE,Strategic Director 2,60914,Public Transport For Staff And Members,Syrian Resettlement
Cambridge City Council,GPC,19/05/2019,2,PC002937, -   , 57.60 , 57.60 ,STAGECOACH SERVICE,Strategic Director 2,60914,Public Transport For Staff And Members,Syrian Resettlement
Cambridge City Council,GPC,19/05/2019,2,PC002938, -   , 57.60 , 57.60 ,STAGECOACH SERVICE,Strategic Director 2,60914,Public Transport For Staff And Members,Syrian Resettlement
Cambridge City Council,GPC,19/05/2019,2,PC003043, -   , 7.99 , 7.99 ,Amazon Prime*MN7UL8B44,Strategic Director 2,61703,"Purchase - Equipment, Furniture And Materials",Building Maintenance Response - Direct
Cambridge City Council,GPC,20/05/2019,2,PC002952, -   , 10.00 , 10.00 ,TIMPSON LTD,Chief Executive,61703,"Purchase - Equipment, Furniture And Materials",Civic Affairs and Twinning
Cambridge City Council,GPC,20/05/2019,2,PC002920, -   , 63.70 , 63.70 ,POSTOFFICE SELFSERVICE,Chief Executive,64100,Postage And Courier Services,Elections-European
Cambridge City Council,GPC,20/05/2019,3,PC002909, -   , 25.00 , 25.00 ,DISCLOSURE AND BARRING,Strategic Director 1,60116,Staff Recruitment Costs,Human Resources - Recruitment
Cambridge City Council,GPC,20/05/2019,4,PC003049, -   , 70.60 , 70.60 ,TRAINLINE,Strategic Director 1,60914,Public Transport For Staff And Members,Procurement
Cambridge City Council,GPC,20/05/2019,3,PC002892, -   ," 1,925.40 "," 1,925.40 ",HOMERTON COLLEGE CAMBR,Strategic Director 1,63900,Miscellaneous Expenses,Cambridge Northern Fringe East (CNFE)
Cambridge City Council,GPC,20/05/2019,2,PC003054, -   , 58.69 , 58.69 ,TESCO STORE 2065,Strategic Director 2,61900,Catering And Vending Supplies,The Meadows Community Centre
Cambridge City Council,GPC,20/05/2019,2,PC002884, -   , 22.99 , 22.99 ,AMZNMKTPLACE AMAZON.CO.UK,Strategic Director 2,61703,"Purchase - Equipment, Furniture And Materials",Clay Farm Community Centre
Cambridge City Council,GPC,20/05/2019,2,PC002924, -   , 100.25 , 100.25 ,DUNELM LTD,Strategic Director 2,61703,"Purchase - Equipment, Furniture And Materials",Town Hall Lettings
Cambridge City Council,GPC,20/05/2019,2,PC002939, -   , 57.60 , 57.60 ,STAGECOACH SERVICE,Strategic Director 2,60914,Public Transport For Staff And Members,Syrian Resettlement
Cambridge City Council,GPC,20/05/2019,2,PC002940, -   , 57.60 , 57.60 ,STAGECOACH SERVICE,Strategic Director 2,60914,Public Transport For Staff And Members,Syrian Resettlement
Cambridge City Council,GPC,20/05/2019,2,PC003063, -   , 65.00 , 65.00 ,B & Q 1237,Strategic Director 2,60201,Cyclical/Planned Maintenance - Building,Cowley Road Compound
Cambridge City Council,GPC,21/05/2019,3,PC004093, -   , 18.60 , 18.60 ,MARKS&SPENCER PLC SACA,Strategic Director 1,64200,Subsistence,Business Support - Centralised Overheads
Cambridge City Council,GPC,21/05/2019,3,PC004094, -   , 2.70 , 2.70 ,MARKS&SPENCER PLC SACA,Strategic Director 1,64200,Subsistence,Business Support - Centralised Overheads
Cambridge City Council,GPC,21/05/2019,4,PC003916, -   , 21.00 , 21.00 ,HOBBYCRAFT,Strategic Director 1,61703,"Purchase - Equipment, Furniture And Materials",Cambridge Crematorium
Cambridge City Council,GPC,21/05/2019,4,PC003917, -   , 5.28 , 5.28 ,B&M RETAIL LTD,Strategic Director 1,61703,"Purchase - Equipment, Furniture And Materials",Cambridge Crematorium
Cambridge City Council,GPC,21/05/2019,3,PC004027, -   , 6.18 , 6.18 ,CO-OP GROUP 019451,Strategic Director 2,61900,Catering And Vending Supplies,Children & Young People's Service
Cambridge City Council,GPC,21/05/2019,4,PC003938, -   , 12.99 , 12.99 ,T K MAXX,Strategic Director 2,61703,"Purchase - Equipment, Furniture And Materials",The Meadows Community Centre
Cambridge City Council,GPC,21/05/2019,4,PC004109, 77.24 , 386.18 , 463.42 ,WWW.NISBETS.COM,Strategic Director 2,61703,"Purchase - Equipment, Furniture And Materials",The Meadows Community Centre
Cambridge City Council,GPC,21/05/2019,5,PC003981, -   , 1.50 , 1.50 ,FACEBK CSDY9LABX2,Strategic Director 2,61931,Cambridge Live Social Media,Folk Festival
Cambridge City Council,GPC,21/05/2019,5,PC003982, -   , 2.00 , 2.00 ,FACEBK AQQEQLEAX2,Strategic Director 2,61931,Cambridge Live Social Media,Folk Festival
Cambridge City Council,GPC,21/05/2019,5,PC003983, -   , 1.50 , 1.50 ,FACEBK WL8W2L6BX2,Strategic Director 2,61931,Cambridge Live Social Media,Folk Festival
Cambridge City Council,GPC,21/05/2019,5,PC003984, -   , 1.50 , 1.50 ,FACEBK AZLSJLNAX2,Strategic Director 2,61931,Cambridge Live Social Media,Folk Festival
Cambridge City Council,GPC,21/05/2019,5,PC003980, 8.50 , 42.49 , 50.99 ,WWW.INSTANTPRINT.C,Strategic Director 2,62001,Printing,Cambridge Live - Central
Cambridge City Council,GPC,21/05/2019,3,PC004121, -   , 20.99 , 20.99 ,AMZN Mktp UK*MN3550QI4,Strategic Director 2,60804,Other Premises Related Costs,City Homes Expenditure
Cambridge City Council,GPC,21/05/2019,4,PC004069, 8.16 , 40.79 , 48.95 ,AMZNMKTPLACE AMAZON.CO.UK,Strategic Director 2,61703,"Purchase - Equipment, Furniture And Materials",Building Maintenance Response - Direct
Cambridge City Council,GPC,21/05/2019,4,PC004070, 4.36 , 21.77 , 26.13 ,AMZNMKTPLACE AMAZON.CO.UK,Strategic Director 2,61703,"Purchase - Equipment, Furniture And Materials",Building Maintenance Response - Direct
Cambridge City Council,GPC,21/05/2019,4,PC004071, 16.36 , 81.78 , 98.14 ,PLUMBNATION LTD,Strategic Director 2,61703,"Purchase - Equipment, Furniture And Materials",Building Maintenance Response - Direct
Cambridge City Council,GPC,22/05/2019,4,PC003960, -   , 6.60 , 6.60 ,POST OFFICE COUNTER,Chief Executive,64100,Postage And Courier Services,Elections-European
Cambridge City Council,GPC,22/05/2019,3,PC004023, -   , 12.96 , 12.96 ,POSTOFFICE SELFSERVICE,Strategic Director 1,64100,Postage And Courier Services,Business Support - Centralised Overheads
Cambridge City Council,GPC,22/05/2019,4,PC003958, -   , 101.81 , 101.81 ,TESCO STORE 2065,Strategic Director 2,64200,Subsistence,Buchan Street Community Facility
Cambridge City Council,GPC,22/05/2019,3,PC003926, -   , 32.28 , 32.28 ,BOOKER LIMITED CAMBRIDGE,Strategic Director 2,62900,Events,Clay Farm Community Centre
Cambridge City Council,GPC,22/05/2019,3,PC003926, 10.46 , 52.30 , 62.76 ,BOOKER LIMITED CAMBRIDGE,Strategic Director 2,62900,Events,Clay Farm Community Centre
Cambridge City Council,GPC,22/05/2019,5,PC003986, -   , 3.00 , 3.00 ,FACEBK VGLF3MEBX2,Strategic Director 2,61931,Cambridge Live Social Media,Folk Festival
Cambridge City Council,GPC,22/05/2019,5,PC003987, -   , 3.00 , 3.00 ,FACEBK QFFBALABX2,Strategic Director 2,61931,Cambridge Live Social Media,Folk Festival
Cambridge City Council,GPC,22/05/2019,5,PC003988, -   , 5.00 , 5.00 ,FACEBK 2AAFNLJAX2,Strategic Director 2,61931,Cambridge Live Social Media,Folk Festival
Cambridge City Council,GPC,22/05/2019,5,PC003989, -   , 7.00 , 7.00 ,FACEBK ZNVC3LWAX2,Strategic Director 2,61931,Cambridge Live Social Media,Folk Festival
Cambridge City Council,GPC,22/05/2019,5,PC003985, 16.00 , 80.00 , 96.00 ,WWW.INSTANTPRINT.C,Strategic Director 2,62001,Printing,Cambridge Live - Central
Cambridge City Council,GPC,22/05/2019,4,PC004072, 2.42 , 12.07 , 14.49 ,AMZNMktplace,Strategic Director 2,61703,"Purchase - Equipment, Furniture And Materials",Building Maintenance Response - Direct
Cambridge City Council,GPC,23/05/2019,4,PC003944, -   , 163.00 , 163.00 ,CIPD MEMBERSHIP RENEWA,Strategic Director 1,64800,Membership And Subscriptions,Human Resources Operations (Staff-General)
Cambridge City Council,GPC,23/05/2019,4,PC003945, -   , 216.00 , 216.00 ,CIPD MEMBERSHIP RENEWA,Strategic Director 1,64800,Membership And Subscriptions,Human Resources Operations (Staff-General)
Cambridge City Council,GPC,23/05/2019,4,PC003946, -   , 190.00 , 190.00 ,CIPD MEMBERSHIP RENEWA,Strategic Director 1,64800,Membership And Subscriptions,Human Resources Operations (Staff-General)
Cambridge City Council,GPC,23/05/2019,4,PC004123, -   , 29.99 , 29.99 ,AMZNMKTPLACE AMAZON.CO.UK,Strategic Director 2,61703,"Purchase - Equipment, Furniture And Materials",Admin Building Allocation
Cambridge City Council,GPC,23/05/2019,3,PC003927, -   , 24.86 , 24.86 ,SAFETYSIGNSUP.COUK,Strategic Director 2,60205,Fire Assessment And Safety,Clay Farm Community Centre
Cambridge City Council,GPC,23/05/2019,5,PC003990, -   , 12.00 , 12.00 ,FACEBK BP3N3L6BX2,Strategic Director 2,61931,Cambridge Live Social Media,Folk Festival
Cambridge City Council,GPC,23/05/2019,3,PC003950, -   , 326.00 , 326.00 ,TRAVELODGE GB0000,Strategic Director 2,63200,Legal Fees,Environmental Health Operational Support
Cambridge City Council,GPC,23/05/2019,3,PC003970, -   , 57.60 , 57.60 ,STAGECOACH SERVICE,Strategic Director 2,60914,Public Transport For Staff And Members,Syrian Resettlement
Cambridge City Council,GPC,23/05/2019,3,PC004122, -   , 20.48 , 20.48 ,TOOLSTATION LTD,Strategic Director 2,60272,Eviction And Repossession Costs,City Homes Estate Management
Cambridge City Council,GPC,24/05/2019,5,PC004016, -   , 550.00 , 550.00 ,PAYPAL *DATAFORPOLI,Chief Executive,64300,Conference Expenses,Corporate Policy
Cambridge City Council,GPC,24/05/2019,5,PC004018, -   , 145.00 , 145.00 ,UNI CAM ESALES,Chief Executive,64300,Conference Expenses,Corporate Policy
Cambridge City Council,GPC,24/05/2019,4,PC004015, -   , 2.40 , 2.40 ,JOHN LEWIS,Chief Executive,62002,Stationery,Civic Affairs and Twinning
Cambridge City Council,GPC,24/05/2019,4,PC004102, -   ,-28.20 ,-28.20 ,TRAINLINE,Strategic Director 1,60914,Public Transport For Staff And Members,Procurement
Cambridge City Council,GPC,24/05/2019,3,PC004029, -   , 10.43 , 10.43 ,BOOKER LIMITED CAMBRIDGE,Strategic Director 2,61900,Catering And Vending Supplies,Children & Young People's Service
Cambridge City Council,GPC,24/05/2019,4,PC004110, -   , 12.00 , 12.00 ,ONE STOP  5026,Strategic Director 2,61900,Catering And Vending Supplies,The Meadows Community Centre
Cambridge City Council,GPC,24/05/2019,3,PC004028, -   , 9.36 , 9.36 ,TESCO STORES 2228,Strategic Director 2,61900,Catering And Vending Supplies,Neighbourhood Community Development
Cambridge City Council,GPC,24/05/2019,3,PC004029, -   , 126.60 , 126.60 ,BOOKER LIMITED CAMBRIDGE,Strategic Director 2,61900,Catering And Vending Supplies,Neighbourhood Community Development
Cambridge City Council,GPC,24/05/2019,3,PC003952, -   , 50.00 , 50.00 ,WWW.LGSS.CO.UK,Strategic Director 2,60905,Vehicle Licensing,Control of Disease
Cambridge City Council,GPC,24/05/2019,3,PC003951, -   , 477.00 , 477.00 ,WWW.JARDINELEATHERGOOD,Strategic Director 2,63200,Legal Fees,Environmental Health Operational Support
Cambridge City Council,GPC,24/05/2019,5,PC004017, 35.00 , 175.00 , 210.00 ,PREMIER INN44023605,Strategic Director 2,64300,Conference Expenses,Quality/Health & Safety Management - Indirect
Cambridge City Council,GPC,24/05/2019,4,PC003992, 23.17 , 115.83 , 139.00 ,PREMIER INN 44536445,Strategic Director 2,61911,Artist Expenses,City Events
Cambridge City Council,GPC,24/05/2019,5,PC003995, 24.21 , 121.03 , 145.24 ,B.com 177924-JBOWL Ramada,Strategic Director 2,61911,Artist Expenses,City Events
Cambridge City Council,GPC,24/05/2019,5,PC003999,-23.17 ,-115.83 ,-139.00 ,PREMIER INN 44536445,Strategic Director 2,61911,Artist Expenses,City Events
Cambridge City Council,GPC,24/05/2019,5,PC003993, 56.92 , 284.58 , 341.50 ,PREMIER INN 44536445,Strategic Director 2,62400,Consultancy Fees,City Events
Cambridge City Council,GPC,24/05/2019,5,PC003994, 62.75 , 313.75 , 376.50 ,PREMIER INN 44536445,Strategic Director 2,62400,Consultancy Fees,City Events
Cambridge City Council,GPC,24/05/2019,5,PC003996, -   , 17.00 , 17.00 ,FACEBK PTSFRLEAX2,Strategic Director 2,61931,Cambridge Live Social Media,Folk Festival
Cambridge City Council,GPC,24/05/2019,5,PC003991, 7.50 , 37.49 , 44.99 ,WWW.INSTANTPRINT.C,Strategic Director 2,62001,Printing,Cambridge Live - Central
Cambridge City Council,GPC,24/05/2019,4,PC004073,-1.33 ,-6.66 ,-7.99 ,Amazon Prime,Strategic Director 2,61703,"Purchase - Equipment, Furniture And Materials",Building Maintenance Response - Direct
Cambridge City Council,GPC,24/05/2019,4,PC004074,-1.33 ,-6.66 ,-7.99 ,AMAZON PRIME AMZN.CO.UK/P,Strategic Director 2,61703,"Purchase - Equipment, Furniture And Materials",Building Maintenance Response - Direct
Cambridge City Council,GPC,24/05/2019,4,PC004096, -   , 97.92 , 97.92 ,WP-THE INSTITUTION,Director of Planning,64800,Membership And Subscriptions,3C Building Control
Cambridge City Council,GPC,25/05/2019,5,PC003997, -   , 25.00 , 25.00 ,FACEBK 553LLLNAX2,Strategic Director 2,61931,Cambridge Live Social Media,Folk Festival
Cambridge City Council,GPC,26/05/2019,5,PC003998, -   , 25.00 , 25.00 ,FACEBK 2NHN5MEBX2,Strategic Director 2,61931,Cambridge Live Social Media,Folk Festival
Cambridge City Council,GPC,27/05/2019,3,PC003971, -   , 57.60 , 57.60 ,STAGECOACH SERVICE,Strategic Director 2,60914,Public Transport For Staff And Members,Syrian Resettlement
Cambridge City Council,GPC,27/05/2019,4,PC004075, 31.46 , 157.30 , 188.76 ,AMZNMktplace,Strategic Director 2,61703,"Purchase - Equipment, Furniture And Materials",Building Maintenance Response - Direct
Cambridge City Council,GPC,28/05/2019,4,PC003961, 39.99 , 199.95 , 239.94 ,EB *LGIU WORKSHOP EFFE,Chief Executive,64300,Conference Expenses,Members Support
Cambridge City Council,GPC,28/05/2019,3,PC003957, -   , 74.00 , 74.00 ,PAYPAL *ACCA,Strategic Director 1,60115,Staff Development And Training,Accountancy and Support Services
Cambridge City Council,GPC,28/05/2019,3,PC003956, -   , 202.00 , 202.00 ,PAYPAL *ACCA,Strategic Director 1,64800,Membership And Subscriptions,Accountancy and Support Services
Cambridge City Council,GPC,28/05/2019,4,PC004103, -   , 14.55 , 14.55 ,TRAINLINE,Strategic Director 1,60914,Public Transport For Staff And Members,Procurement
Cambridge City Council,GPC,28/05/2019,4,PC003918, -   , 25.00 , 25.00 ,ASDA STORES,Strategic Director 1,61703,"Purchase - Equipment, Furniture And Materials",Cambridge Crematorium
Cambridge City Council,GPC,28/05/2019,3,PC004030, -   , 21.98 , 21.98 ,TESCO STORE 2889,Strategic Director 2,61900,Catering And Vending Supplies,Children & Young People's Service
Cambridge City Council,GPC,28/05/2019,4,PC004111, -   , 34.49 , 34.49 ,TESCO STORE 2065,Strategic Director 2,61900,Catering And Vending Supplies,The Meadows Community Centre
Cambridge City Council,GPC,28/05/2019,3,PC004063, -   , 50.00 , 50.00 ,AMAZON.CO.UK*MN37L9984 AM,Strategic Director 2,62005,"Advertising, Publicity And Marketing",Active Lifestyles - Communities (ex Sports Development)
Cambridge City Council,GPC,28/05/2019,5,PC004000, 6.67 , 33.33 , 40.00 ,FACEBK U4QADLABX2,Strategic Director 2,61931,Cambridge Live Social Media,Folk Festival
Cambridge City Council,GPC,29/05/2019,5,PC004019, 3.36 , 16.77 , 20.13 ,AMZNMktplace,Strategic Director 1,64073,ICT Maintenance and Support,Corporate Business Support
Cambridge City Council,GPC,29/05/2019,4,PC003959, -   , 119.16 , 119.16 ,TESCO STORE 2065,Strategic Director 2,64200,Subsistence,Buchan Street Community Facility
Cambridge City Council,GPC,29/05/2019,4,PC004112, 49.00 , 244.98 , 293.98 ,WWW.NISBETS.COM,Strategic Director 2,61703,"Purchase - Equipment, Furniture And Materials",The Meadows Community Centre
Cambridge City Council,GPC,29/05/2019,3,PC003928, 1.55 , 7.74 , 9.29 ,AMZNMktplace,Strategic Director 2,61300,Cleaning Materials,Clay Farm Community Centre
Cambridge City Council,GPC,29/05/2019,3,PC003929, 0.66 , 3.30 , 3.96 ,AMZNMktplace,Strategic Director 2,61702,"Maintenance - Equipment, Furniture And Materials",Clay Farm Community Centre
Cambridge City Council,GPC,29/05/2019,4,PC004076, 59.96 , 299.80 , 359.76 ,HEATROD ELEMENTS,Strategic Director 2,61703,"Purchase - Equipment, Furniture And Materials",Building Maintenance Response - Direct
Cambridge City Council,GPC,30/05/2019,3,PC003949, -   , 190.00 , 190.00 ,ALLEY CAT CAR & VA,Strategic Director 2,60909,Vehicle Hire,Children & Young People's Service
Cambridge City Council,GPC,30/05/2019,3,PC004031, -   , 64.45 , 64.45 ,TESCO STORE 2877,Strategic Director 2,61900,Catering And Vending Supplies,Children & Young People's Service
Cambridge City Council,GPC,30/05/2019,4,PC004113, -   , 16.98 , 16.98 ,CHEF CENTRAL CAMBRIDGE,Strategic Director 2,61900,Catering And Vending Supplies,The Meadows Community Centre
Cambridge City Council,GPC,31/05/2019,4,PC003919, -   , 122.00 , 122.00 ,POST OFFICE COUNTER,Strategic Director 1,64100,Postage And Courier Services,Cambridge Crematorium
Cambridge City Council,GPC,31/05/2019,3,PC004025, -   , 408.00 , 408.00 ,HOMERTON COLLEGE CAMBR,Strategic Director 1,63900,Miscellaneous Expenses,Cambridge Northern Fringe East (CNFE)
Cambridge City Council,GPC,31/05/2019,3,PC004021, -   , 750.00 , 750.00 ,HOMERTON COLLEGE CAMBR,Strategic Director 1,63900,Miscellaneous Expenses,Cambridge Northern Fringe East (CNFE)
Cambridge City Council,GPC,31/05/2019,5,PC004020, 125.00 , 625.00 , 750.00 ,HOMERTON COLLEGE CAMBR,Strategic Director 1,63900,Miscellaneous Expenses,Cambridge Northern Fringe East (CNFE)
Cambridge City Council,GPC,31/05/2019,4,PC004104, -   , 295.00 , 295.00 ,UNIVERSITY OF NOTTINGHAM,Strategic Director 1,64300,Conference Expenses,Procurement
Cambridge City Council,GPC,31/05/2019,3,PC004032, -   , 26.07 , 26.07 ,CO-OP GROUP 019451,Strategic Director 2,61900,Catering And Vending Supplies,Children & Young People's Service
Cambridge City Council,GPC,31/05/2019,3,PC004064, -   , 10.00 , 10.00 ,FACEBK NCMJSMNHR2,Strategic Director 2,62005,"Advertising, Publicity And Marketing",Active Lifestyles - Communities (ex Sports Development)
Cambridge City Council,GPC,31/05/2019,3,PC004064, -   , 10.00 , 10.00 ,FACEBK NCMJSMNHR2,Strategic Director 2,62005,"Advertising, Publicity And Marketing",Active Lifestyles - Communities (ex Sports Development)
Cambridge City Council,GPC,31/05/2019,3,PC004064, -   , 32.40 , 32.40 ,FACEBK NCMJSMNHR2,Strategic Director 2,62005,"Advertising, Publicity And Marketing",Active Lifestyles - Communities (ex Sports Development)
Cambridge City Council,GPC,31/05/2019,3,PC004064, -   , 35.26 , 35.26 ,FACEBK NCMJSMNHR2,Strategic Director 2,62005,"Advertising, Publicity And Marketing",Active Lifestyles - Projects
Cambridge City Council,GPC,31/05/2019,5,PC004001, -   , 60.00 , 60.00 ,FACEBK ZFMVPLNAX2,Strategic Director 2,61931,Cambridge Live Social Media,Cambridge Live - Central
Cambridge City Council,GPC,02/06/2019,5,PC004002, -   , 700.13 , 700.13 ,FACEBK *K5DA7K2C92,Strategic Director 2,61931,Cambridge Live Social Media,Cambridge Live - Central
Cambridge City Council,GPC,02/06/2019,3,PC003972, -   , 96.00 , 96.00 ,STAGECOACH SERVICE,Strategic Director 2,60914,Public Transport For Staff And Members,Syrian Resettlement
Cambridge City Council,GPC,03/06/2019,4,PC003962, -   , 19.90 , 19.90 ,34368-8T79S,Chief Executive,63900,Miscellaneous Expenses,Members Support
Cambridge City Council,GPC,03/06/2019,4,PC003920, -   , 4.47 , 4.47 ,TESCO STORE 2065,Strategic Director 1,64200,Subsistence,Cambridge Crematorium
Cambridge City Council,GPC,03/06/2019,3,PC003934, -   , 378.00 , 378.00 ,PAYPAL *LEADERSHIPT,Strategic Director 1,63900,Miscellaneous Expenses,Cambridge Northern Fringe East (CNFE)
Cambridge City Council,GPC,03/06/2019,3,PC004022, -   , 495.00 , 495.00 ,AH MEDIA LTD,Strategic Director 1,63900,Miscellaneous Expenses,Cambridge Northern Fringe East (CNFE)
Cambridge City Council,GPC,03/06/2019,3,PC003966, 14.17 , 70.83 , 85.00 ,PREMIER INN44529755,Strategic Director 1,64300,Conference Expenses,Parking Administration
Cambridge City Council,GPC,03/06/2019,3,PC004042, -   , 95.55 , 95.55 ,INTERIOR GOODS DIRECT,Strategic Director 2,61703,"Purchase - Equipment, Furniture And Materials",Temporary Accommodation
Cambridge City Council,GPC,03/06/2019,4,PC004077, 4.07 , 20.35 , 24.42 ,WWW.FIBREGRID.COM,Strategic Director 2,61703,"Purchase - Equipment, Furniture And Materials",Building Maintenance Response - Direct
Cambridge City Council,GPC,03/06/2019,4,PC004114, -   , 88.96 , 88.96 ,TESCO STORE 2065,Strategic Director 2,61900,Catering And Vending Supplies,The Meadows Community Centre
Cambridge City Council,GPC,03/06/2019,5,PC004003, 15.98 , 79.90 , 95.88 ,Dropbox H6SXL9VC11R8,Strategic Director 2,64800,Membership And Subscriptions,City Events
Cambridge City Council,GPC,04/06/2019,3,PC004043, -   , 200.99 , 200.99 ,ARGOS RETAIL GROUP,Strategic Director 1,61703,"Purchase - Equipment, Furniture And Materials",Housing Revenue Account - Net Cost of Service
Cambridge City Council,GPC,04/06/2019,3,PC004033, 3.33 , 16.65 , 19.98 ,AMZNMktplace,Strategic Director 2,61500,Consumables,Children & Young People's Service
Cambridge City Council,GPC,04/06/2019,3,PC004034, -   , 8.49 , 8.49 ,AMZNMktplace,Strategic Director 2,61500,Consumables,Children & Young People's Service
Cambridge City Council,GPC,04/06/2019,3,PC004035, -   , 142.55 , 142.55 ,HOMEBASE LTD,Strategic Director 2,61703,"Purchase - Equipment, Furniture And Materials",Brown's Field Youth and Community Centre
Cambridge City Council,GPC,04/06/2019,5,PC004004, 1.00 , 5.00 , 6.00 ,LCN.COM LTD,Strategic Director 2,61930,Cambridge Live Website,Cambridge Live - Central
Cambridge City Council,GPC,04/06/2019,5,PC004005, -   , 90.00 , 90.00 ,FACEBK HA6JQLNAX2,Strategic Director 2,61931,Cambridge Live Social Media,Cambridge Live - Central
Cambridge City Council,GPC,04/06/2019,3,PC003954, -   , 20.34 , 20.34 ,AMAZON.CO.UK*M63BJ8CG4 AM,Strategic Director 2,61703,"Purchase - Equipment, Furniture And Materials",Environmental Health Operational Support
Cambridge City Council,GPC,04/06/2019,3,PC004024, -   , 37.96 , 37.96 ,VIOVET,Strategic Director 2,61703,"Purchase - Equipment, Furniture And Materials",S&OS Community Engagement
Cambridge City Council,GPC,04/06/2019,4,PC004078, 1.54 , 7.70 , 9.24 ,AMZNMktplace,Strategic Director 2,61703,"Purchase - Equipment, Furniture And Materials",Building Maintenance Response - Direct
Cambridge City Council,GPC,04/06/2019,4,PC004124, -   , 28.20 , 28.20 ,SumUp  *Glass & Glazing,Strategic Director 2,60201,Cyclical/Planned Maintenance - Building,Guildhall
Cambridge City Council,GPC,05/06/2019,4,PC003963, -   , 2.97 , 2.97 ,MARKS&SPENCER PLC SACA,Chief Executive,63900,Miscellaneous Expenses,Members Support
Cambridge City Council,GPC,05/06/2019,4,PC003932, -   , 8.48 , 8.48 ,AMZNMktplace,Strategic Director 1,62002,Stationery,Cambridge Crematorium
Cambridge City Council,GPC,05/06/2019,4,PC003947, -   , 190.00 , 190.00 ,CIPD MEMBERSHIP RENEWA,Strategic Director 1,64800,Membership And Subscriptions,Human Resources Operations (Staff-General)
Cambridge City Council,GPC,05/06/2019,4,PC003948, -   , 163.00 , 163.00 ,CIPD INTEGRA,Strategic Director 1,64800,Membership And Subscriptions,Human Resources Operations (Staff-General)
Cambridge City Council,GPC,05/06/2019,3,PC004036, -   , 29.98 , 29.98 ,AMZNMktplace,Strategic Director 2,61703,"Purchase - Equipment, Furniture And Materials",Children & Young People's Service
Cambridge City Council,GPC,05/06/2019,3,PC004065, -   , 41.99 , 41.99 ,AMZNMktplace,Strategic Director 2,61703,"Purchase - Equipment, Furniture And Materials",Active Lifestyles - Communities (ex Sports Development)
Cambridge City Council,GPC,05/06/2019,3,PC003953, -   , 20.00 , 20.00 ,COUNTY COURT,Strategic Director 2,63200,Legal Fees,Environmental Health Operational Support
Cambridge City Council,GPC,05/06/2019,4,PC004079, -   ,-59.94 ,-59.94 ,PAYPAL *HOWSAFE LTD,Strategic Director 2,62000,"Clothes, Uniform And Laundry",Technical Services
Cambridge City Council,GPC,05/06/2019,4,PC004097, -   , 22.49 , 22.49 ,GRAND ARCADE CAMBRIDGE,Director of Planning,61703,"Purchase - Equipment, Furniture And Materials",3C Building Control
Cambridge City Council,GPC,06/06/2019,4,PC003921, -   , 6.50 , 6.50 ,POST OFFICE COUNTER,Strategic Director 1,64100,Postage And Courier Services,Cambridge Crematorium
Cambridge City Council,GPC,06/06/2019,4,PC003922, -   , 191.95 , 191.95 ,WWW.CARSCOVERS LTD,Strategic Director 1,61703,"Purchase - Equipment, Furniture And Materials",Bereavement Services Central Costs
Cambridge City Council,GPC,06/06/2019,4,PC004115, -   , 126.00 , 126.00 ,WWW.DORRINGTONS.COM,Strategic Director 2,62900,Events,The Meadows Community Centre
Cambridge City Council,GPC,06/06/2019,3,PC004026, -   , 360.00 , 360.00 ,ST JOHN AMBULANCE,Strategic Director 2,60115,Staff Development And Training,Community Development - Admin
Cambridge City Council,GPC,06/06/2019,3,PC004066, -   , 65.98 , 65.98 ,AMZNMktplace,Strategic Director 2,61703,"Purchase - Equipment, Furniture And Materials",Active Lifestyles - Communities (ex Sports Development)
Cambridge City Council,GPC,06/06/2019,3,PC004045, -   , 49.00 , 49.00 ,CO-OP GROUP 019959,Strategic Director 2,60303,Electricity,Temporary Accommodation
Cambridge City Council,GPC,06/06/2019,3,PC004044, -   , 49.00 , 49.00 ,CO-OP GROUP 019959,Strategic Director 2,60305,Gas,Temporary Accommodation
Cambridge City Council,GPC,06/06/2019,3,PC004046, -   , 49.00 , 49.00 ,CO-OP GROUP 019959,Strategic Director 2,60305,Gas,Temporary Accommodation
Cambridge City Council,GPC,06/06/2019,3,PC004047, -   , 49.00 , 49.00 ,CO-OP GROUP 019959,Strategic Director 2,60305,Gas,Temporary Accommodation
Cambridge City Council,GPC,07/06/2019,4,PC003933, -   , 7.84 , 7.84 ,Amazon.co.uk*M697J14R4,Strategic Director 1,62002,Stationery,Cambridge Crematorium
Cambridge City Council,GPC,07/06/2019,3,PC004013, 2.21 , 11.07 , 13.28 ,SCREWFIX CAMBRIDGE KINGS,Strategic Director 1,61703,"Purchase - Equipment, Furniture And Materials",Bereavement Services
Cambridge City Council,GPC,07/06/2019,3,PC004048, -   , 42.00 , 42.00 ,ARGOS RETAIL GROUP,Strategic Director 1,61703,"Purchase - Equipment, Furniture And Materials",Housing Revenue Account - Net Cost of Service
Cambridge City Council,GPC,07/06/2019,4,PC004080, 4.59 , 22.97 , 27.56 ,AMZNMktplace,Strategic Director 2,61703,"Purchase - Equipment, Furniture And Materials",Building Maintenance Response - Direct
Cambridge City Council,GPC,07/06/2019,4,PC004081, 10.69 , 53.43 , 64.12 ,AMZNMktplace,Strategic Director 2,61703,"Purchase - Equipment, Furniture And Materials",Building Maintenance Response - Direct
Cambridge City Council,GPC,09/06/2019,4,PC003939, -   , 7.97 , 7.97 ,T K MAXX,Strategic Director 2,61702,"Maintenance - Equipment, Furniture And Materials",The Meadows Community Centre
Cambridge City Council,GPC,09/06/2019,5,PC004006, -   , 125.00 , 125.00 ,FACEBK RLHSBL6BX2,Strategic Director 2,61931,Cambridge Live Social Media,Cambridge Live - Central
Cambridge City Council,GPC,09/06/2019,4,PC004082, 7.06 , 35.29 , 42.35 ,AMZNMktplace,Strategic Director 2,61703,"Purchase - Equipment, Furniture And Materials",Building Maintenance Response - Direct
Cambridge City Council,GPC,10/06/2019,3,PC003967, 2.41 , 12.07 , 14.48 ,AMZNMktplace,Strategic Director 1,60401,Service Charges,Grand Arcade Car Park
Cambridge City Council,GPC,10/06/2019,3,PC003935, -   , 339.00 , 339.00 ,WWW.MEMBERS.LANDSCAPEI,Strategic Director 2,64800,Membership And Subscriptions,Head of Streets & Open Spaces
Cambridge City Council,GPC,10/06/2019,5,PC004007, 7.17 , 35.83 , 43.00 ,WWW.INSTANTPRINT.C,Strategic Director 2,62001,Printing,Cambridge Live - Central
Cambridge City Council,GPC,10/06/2019,5,PC004007, -   , 47.00 , 47.00 ,WWW.INSTANTPRINT.C,Strategic Director 2,62001,Printing,Cambridge Live - Central
Cambridge City Council,GPC,10/06/2019,4,PC004116, -   , 61.98 , 61.98 ,TESCO STORE 2065,Strategic Director 2,61900,Catering And Vending Supplies,The Meadows Community Centre
Cambridge City Council,GPC,10/06/2019,3,PC003955, -   , 20.00 , 20.00 ,COUNTY COURT,Strategic Director 2,63200,Legal Fees,Environmental Health Operational Support
Cambridge City Council,GPC,11/06/2019,3,PC003936, 2.20 , 11.00 , 13.20 ,CAPITA GAS,Strategic Director 2,60225,Housing Repairs - Gas Maintenance Contract,Gas Servicing
Cambridge City Council,GPC,11/06/2019,4,PC004125, -   , 124.43 , 124.43 ,AMZNMktplace,Strategic Director 2,61703,"Purchase - Equipment, Furniture And Materials",Admin Building Allocation
Cambridge City Council,GPC,11/06/2019,4,PC004126, -   , 81.76 , 81.76 ,AMZNMktplace,Strategic Director 2,61703,"Purchase - Equipment, Furniture And Materials",Admin Building Allocation
Cambridge City Council,GPC,11/06/2019,3,PC004037, -   , 5.25 , 5.25 ,CO-OP GROUP 019451,Strategic Director 2,61900,Catering And Vending Supplies,Children & Young People's Service
Cambridge City Council,GPC,11/06/2019,3,PC004067, -   , 46.80 , 46.80 ,BOOKWHEN.COM - BOOKING,Strategic Director 2,64800,Membership And Subscriptions,Active Lifestyles - Communities (ex Sports Development)
Cambridge City Council,GPC,11/06/2019,5,PC004008, 4.21 , 21.07 , 25.28 ,ADOBE  PS CREATIVECLD,Strategic Director 2,64071,Ict Software,Cambridge Live - Central
Cambridge City Council,GPC,11/06/2019,4,PC004098, -   , 67.18 , 67.18 ,AMZNMktplace,Director of Planning,61703,"Purchase - Equipment, Furniture And Materials",3C Building Control
Cambridge City Council,GPC,11/06/2019,4,PC004099, -   , 11.90 , 11.90 ,AMZNMktplace,Director of Planning,61703,"Purchase - Equipment, Furniture And Materials",3C Building Control
Cambridge City Council,GPC,12/06/2019,4,PC003923, -   , 10.70 , 10.70 ,GRAND ARCADE CAR PARK,Strategic Director 1,60907,Other Vehicle Costs,Cambridge Crematorium
Cambridge City Council,GPC,12/06/2019,3,PC004095, -   , 6.19 , 6.19 ,MARKS&SPENCER PLC SACA,Strategic Director 1,64200,Subsistence,Business Support - Centralised Overheads
Cambridge City Council,GPC,12/06/2019,4,PC004117, -   , 9.90 , 9.90 ,ONE STOP  5026,Strategic Director 2,61900,Catering And Vending Supplies,The Meadows Community Centre
Cambridge City Council,GPC,12/06/2019,4,PC004120, -   , 9.96 , 9.96 ,Amazon.co.uk*M651833M4,Strategic Director 2,62900,Events,Neighbourhood Community Development
Cambridge City Council,GPC,12/06/2019,4,PC004083, 92.48 , 462.38 , 554.86 ,PLUMBNATION LTD,Strategic Director 2,61703,"Purchase - Equipment, Furniture And Materials",Building Maintenance Response - Direct
Cambridge City Council,GPC,12/06/2019,4,PC004127, -   , 122.63 , 122.63 ,AMZNMktplace,Strategic Director 2,61703,"Purchase - Equipment, Furniture And Materials",Admin Building Allocation
Cambridge City Council,GPC,12/06/2019,4,PC004100, -   , 3.96 , 3.96 ,AMZNMktplace,Director of Planning,61703,"Purchase - Equipment, Furniture And Materials",3C Building Control
Cambridge City Council,GPC,13/06/2019,4,PC004105, -   , 59.90 , 59.90 ,TRAINLINE,Strategic Director 1,60914,Public Transport For Staff And Members,Procurement
Cambridge City Council,GPC,13/06/2019,4,PC003964, 112.80 , 564.00 , 676.80 ,GREEN COFFEE COMPANY,Strategic Director 1,64200,Subsistence,Business Support - Centralised Overheads
Cambridge City Council,GPC,13/06/2019,3,PC003973, -   , 57.60 , 57.60 ,STAGECOACH SERVICE,Strategic Director 2,60914,Public Transport For Staff And Members,Syrian Resettlement
Cambridge City Council,GPC,13/06/2019,3,PC004050, -   , 49.00 , 49.00 ,CO-OP GROUP 019959,Strategic Director 2,60303,Electricity,Temporary Accommodation
Cambridge City Council,GPC,13/06/2019,3,PC004051, -   , 49.00 , 49.00 ,CO-OP GROUP 019959,Strategic Director 2,60303,Electricity,Temporary Accommodation
Cambridge City Council,GPC,13/06/2019,3,PC004049, -   , 49.00 , 49.00 ,CO-OP GROUP 019959,Strategic Director 2,60305,Gas,Temporary Accommodation
Cambridge City Council,GPC,13/06/2019,3,PC004052, -   , 49.00 , 49.00 ,CO-OP GROUP 019959,Strategic Director 2,60305,Gas,Temporary Accommodation
Cambridge City Council,GPC,13/06/2019,3,PC004053, -   , 49.00 , 49.00 ,CO-OP GROUP 019959,Strategic Director 2,60305,Gas,Temporary Accommodation
Cambridge City Council,GPC,13/06/2019,3,PC004054, -   , 49.00 , 49.00 ,CO-OP GROUP 019959,Strategic Director 2,60305,Gas,Temporary Accommodation
Cambridge City Council,GPC,13/06/2019,4,PC004085, 3.99 , 19.96 , 23.95 ,AMZNMKTPLACE AMAZON.CO.UK,Strategic Director 2,61703,"Purchase - Equipment, Furniture And Materials",Building Maintenance Response - Direct
Cambridge City Council,GPC,13/06/2019,4,PC004084, 4.08 , 20.42 , 24.50 ,AMZNMktplace,Strategic Director 2,63900,Miscellaneous Expenses,Building Services - Indirect
Cambridge City Council,GPC,14/06/2019,4,PC004106, -   , 165.00 , 165.00 ,B.com 4430210-ZDXY6 River,Strategic Director 1,64300,Conference Expenses,Procurement
Cambridge City Council,GPC,14/06/2019,5,PC004009, -   , 56.00 , 56.00 ,WWW.INSTANTPRINT.C,Strategic Director 2,62001,Printing,Cambridge Live - Central
Cambridge City Council,GPC,14/06/2019,5,PC004009, -   , 4.99 , 4.99 ,WWW.INSTANTPRINT.C,Strategic Director 2,62001,Printing,Cambridge Live - Central
Cambridge City Council,GPC,14/06/2019,3,PC004055, -   , 11.99 , 11.99 ,AMZNMktplace,Strategic Director 2,64073,ICT Maintenance and Support,Temporary Accommodation
Cambridge City Council,GPC,14/06/2019,3,PC004056, -   , 64.26 , 64.26 ,AMZNMktplace,Strategic Director 2,64073,ICT Maintenance and Support,Temporary Accommodation
Cambridge City Council,GPC,16/06/2019,4,PC003940, -   , 4.00 , 4.00 ,TESCO STORES 4483,Strategic Director 2,62900,Events,The Meadows Community Centre
Cambridge City Council,GPC,16/06/2019,4,PC004086, 1.53 , 7.64 , 9.17 ,AMZNMktplace,Strategic Director 2,61703,"Purchase - Equipment, Furniture And Materials",Building Maintenance Response - Direct
Cambridge City Council,GPC,16/06/2019,4,PC004087, 52.31 , 261.54 , 313.85 ,AMZNMKTPLACE AMAZON.CO.UK,Strategic Director 2,61703,"Purchase - Equipment, Furniture And Materials",Building Maintenance Response - Direct
Cambridge City Council,GPC,17/06/2019,4,PC003924, -   , 92.12 , 92.12 ,B & Q 1239,Strategic Director 1,61703,"Purchase - Equipment, Furniture And Materials",Cambridge Crematorium
Cambridge City Council,GPC,17/06/2019,4,PC004107, -   , 227.50 , 227.50 ,AMZNMktplace,Strategic Director 1,63900,Miscellaneous Expenses,Procurement
Cambridge City Council,GPC,17/06/2019,4,PC004128, -   , 154.50 , 154.50 ,TVLICENSING.CO.UK,Strategic Director 2,60201,Cyclical/Planned Maintenance - Building,Mandela House
Cambridge City Council,GPC,17/06/2019,3,PC004038, -   , 34.93 , 34.93 ,AMZNMktplace,Strategic Director 2,61703,"Purchase - Equipment, Furniture And Materials",Children & Young People's Service
Cambridge City Council,GPC,17/06/2019,4,PC003941, 8.58 , 42.88 , 51.46 ,BOOKER LIMITED CAMBRIDGE,Strategic Director 2,62900,Events,The Meadows Community Centre
Cambridge City Council,GPC,17/06/2019,4,PC003941, -   , 8.99 , 8.99 ,BOOKER LIMITED CAMBRIDGE,Strategic Director 2,62900,Events,The Meadows Community Centre
Cambridge City Council,GPC,17/06/2019,4,PC004118, -   , 50.73 , 50.73 ,TESCO STORE 2065,Strategic Director 2,61900,Catering And Vending Supplies,The Meadows Community Centre
Cambridge City Council,GPC,17/06/2019,3,PC004068, 8.83 , 44.15 , 52.98 ,Wiggle Limited,Strategic Director 2,61703,"Purchase - Equipment, Furniture And Materials",Active Lifestyles - Communities (ex Sports Development)
Cambridge City Council,GPC,17/06/2019,3,PC003965, -   , 374.99 , 374.99 ,CLEARABEE,Strategic Director 2,60804,Other Premises Related Costs,Town Hall Lettings
Cambridge City Council,GPC,18/06/2019,3,PC004040, -   , 10.50 , 10.50 ,CO-OP GROUP 019451,Strategic Director 2,61500,Consumables,Children & Young People's Service
Cambridge City Council,GPC,18/06/2019,3,PC004039, 1.13 , 5.66 , 6.79 ,AMZNMktplace,Strategic Director 2,61703,"Purchase - Equipment, Furniture And Materials",Children & Young People's Service
Cambridge City Council,GPC,18/06/2019,3,PC004041, 8.67 , 43.33 , 52.00 ,Amazon.co.uk*M698B3134,Strategic Director 2,61703,"Purchase - Equipment, Furniture And Materials",Children & Young People's Service
Cambridge City Council,GPC,18/06/2019,4,PC003942, -   , 116.30 , 116.30 ,HOMEBASE,Strategic Director 2,61703,"Purchase - Equipment, Furniture And Materials",The Meadows Community Centre
Cambridge City Council,GPC,18/06/2019,3,PC003968, -   , 29.99 , 29.99 ,AMZNMktplace,Strategic Director 2,62002,Stationery,City Homes Expenditure
Cambridge City Council,GPC,19/06/2019,4,PC003925, -   , 192.00 , 192.00 ,POST OFFICE COUNTER,Strategic Director 1,64100,Postage And Courier Services,Cambridge Crematorium
Cambridge City Council,GPC,19/06/2019,3,PC003930, -   , 41.99 , 41.99 ,AMZNMKTPLACE AMAZON.CO.UK,Strategic Director 1,11312,Assets Under Construction Cost,General Fund Balance Sheet
Cambridge City Council,GPC,19/06/2019,3,PC003969, -   , 21.84 , 21.84 ,AMZNMKTPLACE AMAZON.CO.UK,Strategic Director 2,62002,Stationery,City Homes Expenditure
Cambridge City Council,GPC,19/06/2019,4,PC004090, 3.00 , 14.98 , 17.98 ,WWW.COOPERSOFSTORTFORD,Strategic Director 2,60503,Grounds Maintenance,Grounds Maintenance and Street Cleaning
Cambridge City Council,GPC,19/06/2019,4,PC004091, 8.33 , 41.67 , 50.00 ,WWW.TOOLSTATION.COM,Strategic Director 2,61703,"Purchase - Equipment, Furniture And Materials",Building Maintenance Response - Direct
Cambridge City Council,GPC,19/06/2019,4,PC004088, 3.38 , 16.91 , 20.29 ,AMZNMktplace,Strategic Director 2,61703,"Purchase - Equipment, Furniture And Materials",Building Maintenance Response - Direct
Cambridge City Council,GPC,19/06/2019,4,PC004089, 12.00 , 60.00 , 72.00 ,AVK UK LIMITED,Strategic Director 2,61703,"Purchase - Equipment, Furniture And Materials",Building Maintenance Response - Direct
Cambridge City Council,GPC,19/06/2019,4,PC003943, -   , 23.99 , 23.99 ,BOOKER LIMITED CAMBRIDGE,Strategic Director 2,61900,Catering And Vending Supplies,The Meadows Community Centre
Cambridge City Council,GPC,19/06/2019,4,PC004119, -   , 10.70 , 10.70 ,ONE STOP  5026,Strategic Director 2,61900,Catering And Vending Supplies,The Meadows Community Centre
Cambridge City Council,GPC,19/06/2019,4,PC004092, 8.98 , 44.92 , 53.90 ,SCREWFIX DIRECT,Strategic Director 2,61500,Consumables,Corn Exchange and Guildhalls
Cambridge City Council,GPC,19/06/2019,5,PC004010, -   , 70.00 , 70.00 ,CAMBS CPE,Strategic Director 2,61911,Artist Expenses,Corn Exchange and Guildhalls
Cambridge City Council,GPC,19/06/2019,5,PC004011, -   , 100.00 , 100.00 ,WWW.PARKINGEYE.CO.UK,Strategic Director 2,61911,Artist Expenses,City Events
Cambridge City Council,GPC,19/06/2019,3,PC003974, -   , 57.60 , 57.60 ,STAGECOACH SERVICE,Strategic Director 2,60914,Public Transport For Staff And Members,Syrian Resettlement
Cambridge City Council,GPC,19/06/2019,3,PC003975, -   , 57.60 , 57.60 ,STAGECOACH SERVICE,Strategic Director 2,60914,Public Transport For Staff And Members,Syrian Resettlement
Cambridge City Council,GPC,19/06/2019,3,PC003976, -   , 57.60 , 57.60 ,STAGECOACH SERVICE,Strategic Director 2,60914,Public Transport For Staff And Members,Syrian Resettlement
Cambridge City Council,GPC,19/06/2019,3,PC003977, -   , 369.00 , 369.00 ,AO RETAIL LIMITED,Strategic Director 2,61703,"Purchase - Equipment, Furniture And Materials",Syrian Resettlement
Cambridge City Council,GPC,19/06/2019,4,PC004101, -   , 17.99 , 17.99 ,WWW.DECATHLON.CO.U,Director of Planning,61703,"Purchase - Equipment, Furniture And Materials",3C Building Control
Cambridge City Council,GPC,20/06/2019,3,PC004014, 14.00 , 69.97 , 83.97 ,SCREWFIX CAMBRIDGE KINGS,Strategic Director 1,60207,Health And Safety Supplies And Services,Bereavement Services
Cambridge City Council,GPC,20/06/2019,4,PC004108, -   , 167.00 , 167.00 ,TRAINLINE,Strategic Director 1,60914,Public Transport For Staff And Members,Procurement
Cambridge City Council,GPC,20/06/2019,3,PC003931, -   , 11.38 , 11.38 ,HERON FOODS LTD,Strategic Director 2,62900,Events,Clay Farm Community Centre
Cambridge City Council,GPC,20/06/2019,3,PC003978, -   , 57.60 , 57.60 ,STAGECOACH SERVICE,Strategic Director 2,60914,Public Transport For Staff And Members,Syrian Resettlement
Cambridge City Council,GPC,20/06/2019,3,PC003979, -   , 57.60 , 57.60 ,STAGECOACH SERVICE,Strategic Director 2,60914,Public Transport For Staff And Members,Syrian Resettlement
Cambridge City Council,GPC,20/06/2019,3,PC004057, -   , 49.00 , 49.00 ,CO-OP GROUP 019959,Strategic Director 2,60303,Electricity,Temporary Accommodation
Cambridge City Council,GPC,20/06/2019,3,PC004059, -   , 49.00 , 49.00 ,CO-OP GROUP 019959,Strategic Director 2,60303,Electricity,Temporary Accommodation
Cambridge City Council,GPC,20/06/2019,3,PC004060, -   , 49.00 , 49.00 ,CO-OP GROUP 019959,Strategic Director 2,60303,Electricity,Temporary Accommodation
Cambridge City Council,GPC,20/06/2019,3,PC004062, -   , 49.00 , 49.00 ,CO-OP GROUP 019959,Strategic Director 2,60303,Electricity,Temporary Accommodation
Cambridge City Council,GPC,20/06/2019,3,PC004058, -   , 49.00 , 49.00 ,CO-OP GROUP 019959,Strategic Director 2,60305,Gas,Temporary Accommodation
Cambridge City Council,GPC,20/06/2019,3,PC004061, -   , 49.00 , 49.00 ,CO-OP GROUP 019959,Strategic Director 2,60305,Gas,Temporary Accommodation
Cambridge City Council,GPC,21/06/2019,4,PC004319, -   , 205.00 , 205.00 ,DVSA,Strategic Director 1,61703,"Purchase - Equipment, Furniture And Materials",Fleet Management - Operational
Cambridge City Council,GPC,21/06/2019,4,PC004303, -   , 38.40 , 38.40 ,GREEN COFFEE COMPANY,Strategic Director 1,64200,Subsistence,Business Support - Centralised Overheads
Cambridge City Council,GPC,21/06/2019,4,PC004261, 12.80 , 64.00 , 76.80 ,AMZNMKTPLACE AMAZON.CO.UK,Strategic Director 2,61703,"Purchase - Equipment, Furniture And Materials",Clay Farm Community Centre
Cambridge City Council,GPC,21/06/2019,4,PC004323, -   , 30.00 , 30.00 ,HMCOURTS-SVS.GOV.U,Strategic Director 2,61911,Artist Expenses,Corn Exchange and Guildhalls
Cambridge City Council,GPC,21/06/2019,5,PC004012, -   , 36.37 , 36.37 ,FACEBK 4RY25MJAX2,Strategic Director 2,61931,Cambridge Live Social Media,Cambridge Live - Central
Cambridge City Council,GPC,22/06/2019,4,PC004262, 1.26 , 6.27 , 7.53 ,AMZNMKTPLACE AMAZON.CO.UK,Strategic Director 2,61703,"Purchase - Equipment, Furniture And Materials",Clay Farm Community Centre
Cambridge City Council,GPC,23/06/2019,4,PC004263, 1.84 , 9.22 , 11.06 ,AMZNMKTPLACE AMAZON.CO.UK,Strategic Director 2,61703,"Purchase - Equipment, Furniture And Materials",Clay Farm Community Centre
Cambridge City Council,GPC,23/06/2019,4,PC004263, -   , 8.89 , 8.89 ,AMZNMKTPLACE AMAZON.CO.UK,Strategic Director 2,61703,"Purchase - Equipment, Furniture And Materials",Clay Farm Community Centre
Cambridge City Council,GPC,23/06/2019,4,PC004264, 2.12 , 10.58 , 12.70 ,AMAZON.CO.UK*M688Y8VQ4 AM,Strategic Director 2,61703,"Purchase - Equipment, Furniture And Materials",Clay Farm Community Centre
Cambridge City Council,GPC,23/06/2019,4,PC004357, -   , 3.00 , 3.00 ,POUNDLAND LTD 1364,Strategic Director 2,62900,Events,Leisure Contract Client Costs
Cambridge City Council,GPC,23/06/2019,5,PC004313, -   , 57.60 , 57.60 ,STAGECOACH SERVICE,Strategic Director 2,60914,Public Transport For Staff And Members,Syrian Resettlement
Cambridge City Council,GPC,24/06/2019,4,PC004273, -   , 7.99 , 7.99 ,AMAZON.CO.UK*M64QH1MC4 AM,Strategic Director 1,61702,"Maintenance - Equipment, Furniture And Materials",City Cambridge Cemeteries
Cambridge City Council,GPC,24/06/2019,4,PC004320, -   , 24.99 , 24.99 ,SCREWFIX DIR.LTD,Strategic Director 1,62000,"Clothes, Uniform And Laundry",Fleet Management - Operational
Cambridge City Council,GPC,24/06/2019,5,PC004311, 41.67 , 208.33 , 250.00 ,Hotel on Booking.com Whit,Strategic Director 1,64300,Conference Expenses,Parking Administration
Cambridge City Council,GPC,24/06/2019,4,PC004415, -   , 35.00 , 35.00 ,WWW.INSTANTPRINT.C,Strategic Director 2,62001,Printing,Folk Festival
Cambridge City Council,GPC,24/06/2019,4,PC004415, -   , 58.33 , 58.33 ,WWW.INSTANTPRINT.C,Strategic Director 2,62001,Printing,Folk Festival
Cambridge City Council,GPC,24/06/2019,4,PC004400, -   , 155.13 , 155.13 ,TESCO STORE 2065,Strategic Director 2,61900,Catering And Vending Supplies,The Meadows Community Centre
Cambridge City Council,GPC,24/06/2019,4,PC004358, 17.39 , 86.92 , 104.31 ,AMZNMktplace,Strategic Director 2,61703,"Purchase - Equipment, Furniture And Materials",Active Lifestyles - Communities (ex Sports Development)
Cambridge City Council,GPC,24/06/2019,4,PC004358, 9.66 , 48.29 , 57.95 ,AMZNMktplace,Strategic Director 2,61703,"Purchase - Equipment, Furniture And Materials",Active Lifestyles - Communities (ex Sports Development)
Cambridge City Council,GPC,24/06/2019,4,PC004285, -   , 10.25 , 10.25 ,AMZNMktplace,Strategic Director 2,61703,"Purchase - Equipment, Furniture And Materials",Environmental Health Operational Support
Cambridge City Council,GPC,25/06/2019,4,PC004335, 2.16 , 10.79 , 12.95 ,AMAZON.CO.UK*M69I315P4 AM,Strategic Director 2,60207,Health And Safety Supplies And Services,Children & Young People's Service
Cambridge City Council,GPC,25/06/2019,5,PC004283, -   , 25.88 , 25.88 ,AMAZON.CO.UK*M66C305K4 AM,Strategic Director 2,61009,Materials - General,Children & Young People's Service
Cambridge City Council,GPC,25/06/2019,4,PC004286, -   , 32.19 , 32.19 ,AMZNMktplace,Strategic Director 2,60207,Health And Safety Supplies And Services,Environmental Health Operational Support
Cambridge City Council,GPC,25/06/2019,4,PC004287, -   , 10.69 , 10.69 ,AMZNMktplace,Strategic Director 2,61703,"Purchase - Equipment, Furniture And Materials",Environmental Health Operational Support
Cambridge City Council,GPC,25/06/2019,4,PC004288, -   , 299.39 , 299.39 ,AMZNMktplace,Strategic Director 2,61703,"Purchase - Equipment, Furniture And Materials",Environmental Health Operational Support
Cambridge City Council,GPC,25/06/2019,4,PC004425, 46.33 , 231.67 , 278.00 ,HOLIDAY INN MANCHESTER,Strategic Director 2,64300,Conference Expenses,Housing Strategy
Cambridge City Council,GPC,25/06/2019,4,PC004372, 1.32 , 6.62 , 7.94 ,AMZNMktplace,Strategic Director 2,61703,"Purchase - Equipment, Furniture And Materials",Building Maintenance Response - Direct
Cambridge City Council,GPC,25/06/2019,4,PC004373, 12.00 , 60.00 , 72.00 ,AVK UK LIMITED,Strategic Director 2,61703,"Purchase - Equipment, Furniture And Materials",Building Maintenance Response - Direct
Cambridge City Council,GPC,25/06/2019,4,PC004305, -   , 49.00 , 49.00 ,I AM THE AGENT,Strategic Director 2,60235,Housing Repairs - Other Premises Related Costs,Client Repairs
Cambridge City Council,GPC,25/06/2019,4,PC004306, -   , 49.00 , 49.00 ,I AM THE AGENT,Strategic Director 2,60235,Housing Repairs - Other Premises Related Costs,Client Repairs
Cambridge City Council,GPC,25/06/2019,5,PC004439, -   , 154.50 , 154.50 ,TVLICENSING.CO.UK,Strategic Director 2,60201,Cyclical/Planned Maintenance - Building,130 Cowley Road
Cambridge City Council,GPC,26/06/2019,4,PC004321, 30.00 , 150.00 , 180.00 ,CLIFTON HOTEL MANSFIELD,Strategic Director 1,63900,Miscellaneous Expenses,Fleet Management - Operational
Cambridge City Council,GPC,26/06/2019,4,PC004427, -   , 1.00 , 1.00 ,PP*3664CODE,Strategic Director 1,63900,Miscellaneous Expenses,Corporate Business Support
Cambridge City Council,GPC,26/06/2019,4,PC004428, -   ,-1.00 ,-1.00 ,PP*3664CODE,Strategic Director 1,63900,Miscellaneous Expenses,Corporate Business Support
Cambridge City Council,GPC,26/06/2019,4,PC004274, -   , 88.00 , 88.00 ,HOMEBASE,Strategic Director 2,61703,"Purchase - Equipment, Furniture And Materials",The Meadows Community Centre
Cambridge City Council,GPC,26/06/2019,4,PC004401, -   , 9.25 , 9.25 ,ONE STOP  5026,Strategic Director 2,61900,Catering And Vending Supplies,The Meadows Community Centre
Cambridge City Council,GPC,26/06/2019,4,PC004402, -   , 24.49 , 24.49 ,RJP LTD,Strategic Director 2,61900,Catering And Vending Supplies,The Meadows Community Centre
Cambridge City Council,GPC,26/06/2019,4,PC004289, -   , 22.99 , 22.99 ,AMZNMKTPLACE AMAZON.CO.UK,Strategic Director 2,61703,"Purchase - Equipment, Furniture And Materials",Environmental Health Operational Support
Cambridge City Council,GPC,26/06/2019,4,PC004290, -   , 45.53 , 45.53 ,AMZNMktplace,Strategic Director 2,61703,"Purchase - Equipment, Furniture And Materials",Environmental Health Operational Support
Cambridge City Council,GPC,26/06/2019,4,PC004291, -   , 30.25 , 30.25 ,AMZNMktplace,Strategic Director 2,61703,"Purchase - Equipment, Furniture And Materials",Environmental Health Operational Support
Cambridge City Council,GPC,26/06/2019,4,PC004292, -   , 30.26 , 30.26 ,AMZNMktplace,Strategic Director 2,61703,"Purchase - Equipment, Furniture And Materials",Environmental Health Operational Support
Cambridge City Council,GPC,26/06/2019,4,PC004293, -   , 30.26 , 30.26 ,AMZNMktplace,Strategic Director 2,61703,"Purchase - Equipment, Furniture And Materials",Environmental Health Operational Support
Cambridge City Council,GPC,26/06/2019,4,PC004426, 23.17 , 115.83 , 139.00 ,HOLIDAY INN MANCHESTER,Strategic Director 2,64300,Conference Expenses,Housing Strategy
Cambridge City Council,GPC,26/06/2019,4,PC004375, 5.30 , 26.51 , 31.81 ,WWW.PIPESTOCK.COM,Strategic Director 2,61703,"Purchase - Equipment, Furniture And Materials",Building Maintenance Response - Direct
Cambridge City Council,GPC,27/06/2019,4,PC004382, -   , 11.00 , 11.00 ,MARKS&SPENCER PLC SACA,Strategic Director 1,64200,Subsistence,Business Support - Centralised Overheads
Cambridge City Council,GPC,27/06/2019,4,PC004336, 6.17 , 30.82 , 36.99 ,AMZNMktplace,Strategic Director 2,61703,"Purchase - Equipment, Furniture And Materials",Children & Young People's Service
Cambridge City Council,GPC,27/06/2019,4,PC004302, -   , 101.33 , 101.33 ,TESCO STORE 2065,Strategic Director 2,61400,Goods For Resale,Buchan Street Community Facility
Cambridge City Council,GPC,27/06/2019,4,PC004276, -   , 72.99 , 72.99 ,SCOTSDALES (HORNINGSEA),Strategic Director 2,60503,Grounds Maintenance,The Meadows Community Centre
Cambridge City Council,GPC,27/06/2019,4,PC004275, -   , 25.39 , 25.39 ,TESCO STORE 2889,Strategic Director 2,62900,Events,The Meadows Community Centre
Cambridge City Council,GPC,27/06/2019,4,PC004411, -   , 28.96 , 28.96 ,TESCO STORE 2555,Strategic Director 2,62900,Events,Neighbourhood Community Development
Cambridge City Council,GPC,27/06/2019,4,PC004359, -   , 13.05 , 13.05 ,WILKO CAMBRIDGE,Strategic Director 2,62900,Events,Leisure Contract Client Costs
Cambridge City Council,GPC,27/06/2019,4,PC004294, -   , 27.25 , 27.25 ,AMZNMktplace,Strategic Director 2,60207,Health And Safety Supplies And Services,Environmental Health Operational Support
Cambridge City Council,GPC,27/06/2019,4,PC004295, -   , 30.25 , 30.25 ,AMZNMktplace,Strategic Director 2,61703,"Purchase - Equipment, Furniture And Materials",Environmental Health Operational Support
Cambridge City Council,GPC,27/06/2019,5,PC004314, -   , 57.60 , 57.60 ,STAGECOACH SERVICE,Strategic Director 2,60914,Public Transport For Staff And Members,Syrian Resettlement
Cambridge City Council,GPC,27/06/2019,4,PC004312, -   , 9.20 , 9.20 ,AMZNMktplace,Strategic Director 2,62002,Stationery,City Homes Expenditure
Cambridge City Council,GPC,27/06/2019,4,PC004419, -   , 375.00 , 375.00 ,BORNEY UK LTD,Strategic Director 2,62001,Printing,City Events
Cambridge City Council,GPC,27/06/2019,4,PC004420, -   , 148.55 , 148.55 ,BORNEY UK LTD,Strategic Director 2,62001,Printing,City Events
Cambridge City Council,GPC,27/06/2019,4,PC004418, -   , 34.08 , 34.08 ,PAYPAL *WADEBUILDIN,Strategic Director 2,61703,"Purchase - Equipment, Furniture And Materials",City Events
Cambridge City Council,GPC,27/06/2019,4,PC004416, -   , 149.94 , 149.94 ,WWW.HIVIS.NET,Strategic Director 2,62002,Stationery,City Events
Cambridge City Council,GPC,27/06/2019,4,PC004417, -   , 11.20 , 11.20 ,WWW.ANGAL.CO.UK,Strategic Director 2,62002,Stationery,City Events
Cambridge City Council,GPC,28/06/2019,4,PC004322, 22.50 , 112.50 , 135.00 ,CLIFTON HOTEL MANSFIELD,Strategic Director 1,63900,Miscellaneous Expenses,Fleet Management - Operational
Cambridge City Council,GPC,28/06/2019,4,PC004339, -   , 7.50 , 7.50 ,SPORTSDIRECT 227,Strategic Director 2,61703,"Purchase - Equipment, Furniture And Materials",Children & Young People's Service
Cambridge City Council,GPC,28/06/2019,4,PC004338, -   , 9.20 , 9.20 ,CO-OP GROUP 019451,Strategic Director 2,61900,Catering And Vending Supplies,Children & Young People's Service
Cambridge City Council,GPC,28/06/2019,4,PC004340, 19.08 , 95.40 , 114.48 ,BOOKER LIMITED CAMBRIDGE,Strategic Director 2,61900,Catering And Vending Supplies,Children & Young People's Service
Cambridge City Council,GPC,28/06/2019,4,PC004337, -   , 190.00 , 190.00 ,SUMUP  *BIG DEAL COMEDY,Strategic Director 2,62900,Events,Children & Young People's Service
Cambridge City Council,GPC,28/06/2019,4,PC004277, -   , 11.93 , 11.93 ,TESCO STORES 2228,Strategic Director 2,62900,Events,The Meadows Community Centre
Cambridge City Council,GPC,28/06/2019,4,PC004297, -   , 102.51 , 102.51 ,AMZNMktplace,Strategic Director 2,60207,Health And Safety Supplies And Services,Environmental Health Operational Support
Cambridge City Council,GPC,28/06/2019,4,PC004296, -   , 22.99 , 22.99 ,AMZNMktplace,Strategic Director 2,61703,"Purchase - Equipment, Furniture And Materials",Environmental Health Operational Support
Cambridge City Council,GPC,28/06/2019,5,PC004412, -   , 36.95 , 36.95 ,HOMEBASE LTD,Strategic Director 2,60503,Grounds Maintenance,City Homes Estate Management
Cambridge City Council,GPC,28/06/2019,4,PC004377, -   , 7.98 , 7.98 ,Amazon.co.uk*M62RQ48I4,Strategic Director 2,61703,"Purchase - Equipment, Furniture And Materials",Building Maintenance Response - Direct
Cambridge City Council,GPC,29/06/2019,4,PC004278, -   , 24.90 , 24.90 ,TESCO STORES 4483,Strategic Director 2,62900,Events,The Meadows Community Centre
Cambridge City Council,GPC,30/06/2019,5,PC004332, -   , 2.00 , 2.00 ,3C_*CAMBRIDGE LEISURE,Chief Executive,60914,Public Transport For Staff And Members,Civic Affairs and Twinning
Cambridge City Council,GPC,30/06/2019,4,PC004360, -   , 31.91 , 31.91 ,FACEBK REKA7MEHR2,Strategic Director 2,62005,"Advertising, Publicity And Marketing",Active Lifestyles - Communities (ex Sports Development)
Cambridge City Council,GPC,30/06/2019,4,PC004360, -   , 6.60 , 6.60 ,FACEBK REKA7MEHR2,Strategic Director 2,62005,"Advertising, Publicity And Marketing",Active Lifestyles - Communities (ex Sports Development)
Cambridge City Council,GPC,30/06/2019,4,PC004360, -   , 95.11 , 95.11 ,FACEBK REKA7MEHR2,Strategic Director 2,62005,"Advertising, Publicity And Marketing",Active Lifestyles - Communities (ex Sports Development)
Cambridge City Council,GPC,30/06/2019,4,PC004360, -   , 10.00 , 10.00 ,FACEBK REKA7MEHR2,Strategic Director 2,62005,"Advertising, Publicity And Marketing",Active Lifestyles - Communities (ex Sports Development)
Cambridge City Council,GPC,30/06/2019,4,PC004324, -   , 305.64 , 305.64 ,FACEBK *PS265SSC92,Strategic Director 2,61931,Cambridge Live Social Media,Cambridge Live - Central
Cambridge City Council,GPC,30/06/2019,4,PC004298, -   , 17.51 , 17.51 ,AMZNMktplace,Strategic Director 2,61703,"Purchase - Equipment, Furniture And Materials",Environmental Health Operational Support
Cambridge City Council,GPC,01/07/2019,4,PC004254, -   , 20.20 , 20.20 ,TESCO STORE 2065,Strategic Director 1,61703,"Purchase - Equipment, Furniture And Materials",Cambridge Crematorium
Cambridge City Council,GPC,01/07/2019,4,PC004253, -   , 122.00 , 122.00 ,POST OFFICE COUNTER,Strategic Director 1,64100,Postage And Courier Services,Cambridge Crematorium
Cambridge City Council,GPC,01/07/2019,4,PC004403, -   , 55.87 , 55.87 ,TESCO STORE 2065,Strategic Director 2,61900,Catering And Vending Supplies,The Meadows Community Centre
Cambridge City Council,GPC,01/07/2019,4,PC004378, 14.83 , 74.17 , 89.00 ,AMZNMKTPLACE AMAZON.CO.UK,Strategic Director 2,61703,"Purchase - Equipment, Furniture And Materials",Building Maintenance Response - Direct
Cambridge City Council,GPC,01/07/2019,4,PC004421, -   , 21.00 , 21.00 ,CAMBRIDGE CITY COUNCIL,Strategic Director 2,60410,Licences,Folk Festival
Cambridge City Council,GPC,02/07/2019,4,PC004304, -   , 31.96 , 31.96 ,LAKELAND LIMITED,Chief Executive,63900,Miscellaneous Expenses,Members Support
Cambridge City Council,GPC,02/07/2019,4,PC004395, -   , 14.55 , 14.55 ,TRAINLINE,Strategic Director 1,60115,Staff Development And Training,Procurement
Cambridge City Council,GPC,02/07/2019,4,PC004300, 32.50 , 162.50 , 195.00 ,HOMERTON COLLEGE CAMBR,Strategic Director 1,63900,Miscellaneous Expenses,Cambridge Northern Fringe East (CNFE)
Cambridge City Council,GPC,02/07/2019,4,PC004301,-32.50 ,-162.50 ,-195.00 ,HOMERTON COLLEGE CAMBR,Strategic Director 1,63900,Miscellaneous Expenses,Cambridge Northern Fringe East (CNFE)
Cambridge City Council,GPC,02/07/2019,4,PC004255, -   , 108.74 , 108.74 ,CAMBS CLIFTON,Strategic Director 1,60207,Health And Safety Supplies And Services,Bereavement Services Central Costs
Cambridge City Council,GPC,02/07/2019,4,PC004341, 14.78 , 73.89 , 88.67 ,AMZNMKTPLACE AMAZON.CO.UK,Strategic Director 2,61703,"Purchase - Equipment, Furniture And Materials",Children & Young People's Service
Cambridge City Council,GPC,02/07/2019,4,PC004342, 9.62 , 48.10 , 57.72 ,AMZNMKTPLACE AMAZON.CO.UK,Strategic Director 2,61703,"Purchase - Equipment, Furniture And Materials",Children & Young People's Service
Cambridge City Council,GPC,02/07/2019,4,PC004279, -   , 8.00 , 8.00 ,TESCO STORES 4483,Strategic Director 2,62900,Events,The Meadows Community Centre
Cambridge City Council,GPC,02/07/2019,4,PC004361, -   , 110.00 , 110.00 ,AMAZON.CO.UK*M65UD3SG4 AM,Strategic Director 2,62900,Events,Active Lifestyles - Communities (ex Sports Development)
Cambridge City Council,GPC,02/07/2019,5,PC004315, -   , 96.00 , 96.00 ,STAGECOACH SERVICE,Strategic Director 2,60914,Public Transport For Staff And Members,Syrian Resettlement
Cambridge City Council,GPC,02/07/2019,5,PC004282, 29.34 , 146.69 , 176.03 ,LINKEDIN-473*0171273,Strategic Director 2,60116,Staff Recruitment Costs,Environmental Health Operational Support
Cambridge City Council,GPC,02/07/2019,5,PC004440, -   , 56.03 , 56.03 ,Amazon.co.uk*M63WL9SO4,Strategic Director 2,61703,"Purchase - Equipment, Furniture And Materials",Admin Building Allocation
Cambridge City Council,GPC,02/07/2019,5,PC004441, -   , 112.06 , 112.06 ,Amazon.co.uk*M654G0DX4,Strategic Director 2,61703,"Purchase - Equipment, Furniture And Materials",Admin Building Allocation
Cambridge City Council,GPC,03/07/2019,4,PC004256, -   , 11.99 , 11.99 ,CAMBS CLIFTON,Strategic Director 1,60207,Health And Safety Supplies And Services,Bereavement Services Central Costs
Cambridge City Council,GPC,03/07/2019,4,PC004404, -   , 8.80 , 8.80 ,ONE STOP  5026,Strategic Director 2,61900,Catering And Vending Supplies,The Meadows Community Centre
Cambridge City Council,GPC,03/07/2019,4,PC004362, 4.00 , 20.00 , 24.00 ,SPORTSDIRECT 227,Strategic Director 2,61703,"Purchase - Equipment, Furniture And Materials",Active Lifestyles - Communities (ex Sports Development)
Cambridge City Council,GPC,03/07/2019,4,PC004326, 25.99 , 129.95 , 155.94 ,BORNEY UK LTD,Strategic Director 2,62001,Printing,Folk Festival
Cambridge City Council,GPC,03/07/2019,4,PC004325, -   , 200.00 , 200.00 ,FACEBK 2EC5XL2BX2,Strategic Director 2,61931,Cambridge Live Social Media,Cambridge Live - Central
Cambridge City Council,GPC,03/07/2019,5,PC004445, -   , 64.36 , 64.36 ,Amazon.co.uk*M60QC4S64,Strategic Director 2,60201,Cyclical/Planned Maintenance - Building,Guildhall
Cambridge City Council,GPC,03/07/2019,5,PC004444, -   , 22.90 , 22.90 ,WILKO CAMBRIDGE,Strategic Director 2,61703,"Purchase - Equipment, Furniture And Materials",Guildhall
Cambridge City Council,GPC,03/07/2019,5,PC004442, -   , 119.20 , 119.20 ,AMZNMktplace,Strategic Director 2,61703,"Purchase - Equipment, Furniture And Materials",Admin Building Allocation
Cambridge City Council,GPC,03/07/2019,5,PC004443, -   , 29.92 , 29.92 ,AMZNMktplace,Strategic Director 2,61703,"Purchase - Equipment, Furniture And Materials",Admin Building Allocation
Cambridge City Council,GPC,04/07/2019,4,PC004383, -   , 9.00 , 9.00 ,MARKS&SPENCER PLC SACA,Chief Executive,64500,Members Allowances,Civic Affairs and Twinning
Cambridge City Council,GPC,04/07/2019,4,PC004396, -   , 162.71 , 162.71 ,AMZNMktplace,Strategic Director 1,62003,"Books, Publications And Resources",Procurement
Cambridge City Council,GPC,04/07/2019,4,PC004363, -   , 3.00 , 3.00 ,TESCO STORE 2065,Strategic Director 2,62900,Events,Leisure Contract Client Costs
Cambridge City Council,GPC,04/07/2019,4,PC004347, -   , 49.00 , 49.00 ,CO-OP GROUP 019959,Strategic Director 2,60303,Electricity,Temporary Accommodation
Cambridge City Council,GPC,04/07/2019,4,PC004348, -   , 49.00 , 49.00 ,CO-OP GROUP 019959,Strategic Director 2,60303,Electricity,Temporary Accommodation
Cambridge City Council,GPC,04/07/2019,4,PC004351, -   , 49.00 , 49.00 ,CO-OP GROUP 019959,Strategic Director 2,60303,Electricity,Temporary Accommodation
Cambridge City Council,GPC,04/07/2019,4,PC004349, -   , 49.00 , 49.00 ,CO-OP GROUP 019959,Strategic Director 2,60305,Gas,Temporary Accommodation
Cambridge City Council,GPC,04/07/2019,4,PC004350, -   , 49.00 , 49.00 ,CO-OP GROUP 019959,Strategic Director 2,60305,Gas,Temporary Accommodation
Cambridge City Council,GPC,04/07/2019,5,PC004446, -   , 137.26 , 137.26 ,PREMIER PLUMBING,Strategic Director 2,60201,Cyclical/Planned Maintenance - Building,Mandela House
Cambridge City Council,GPC,04/07/2019,5,PC004447, -   , 73.41 , 73.41 ,Amazon.co.uk*M67YU82O4,Strategic Director 2,61703,"Purchase - Equipment, Furniture And Materials",Admin Building Allocation
Cambridge City Council,GPC,04/07/2019,5,PC004429, -   , 163.50 , 163.50 ,SP * RINKIT.COM,Strategic Director 2,62002,Stationery,Folk Festival
Cambridge City Council,GPC,05/07/2019,4,PC004364, -   , 17.25 , 17.25 ,B&M RETAIL LTD,Strategic Director 2,62900,Events,Leisure Contract Client Costs
Cambridge City Council,GPC,05/07/2019,5,PC004413, -   , 48.39 , 48.39 ,B & Q 1239,Strategic Director 2,60503,Grounds Maintenance,City Homes Estate Management
Cambridge City Council,GPC,05/07/2019,5,PC004390, -   , 2.99 , 2.99 ,JARROLD,Director of Planning,61702,"Maintenance - Equipment, Furniture And Materials",3C Building Control
Cambridge City Council,GPC,05/07/2019,4,PC004391, -   , 336.00 , 336.00 ,PREMIER INN44521815,Director of Planning,64300,Conference Expenses,3C Building Control
Cambridge City Council,GPC,05/07/2019,4,PC004392, -   , 104.50 , 104.50 ,PREMIER INN44521815,Director of Planning,64300,Conference Expenses,3C Building Control
Cambridge City Council,GPC,05/07/2019,4,PC004393, -   , 249.50 , 249.50 ,PREMIER INN44521815,Director of Planning,64300,Conference Expenses,3C Building Control
Cambridge City Council,GPC,06/07/2019,4,PC004365, -   , 2.50 , 2.50 ,CAFE ARENA,Strategic Director 2,62900,Events,Leisure Contract Client Costs
Cambridge City Council,GPC,06/07/2019,4,PC004366, -   , 7.00 , 7.00 ,CAFE ARENA,Strategic Director 2,62900,Events,Leisure Contract Client Costs
Cambridge City Council,GPC,06/07/2019,4,PC004367, -   , 31.75 , 31.75 ,STARBUCKS COFFEE,Strategic Director 2,62900,Events,Leisure Contract Client Costs
Cambridge City Council,GPC,06/07/2019,4,PC004368, -   , 4.95 , 4.95 ,STARBUCKS COFFEE,Strategic Director 2,62900,Events,Leisure Contract Client Costs
Cambridge City Council,GPC,06/07/2019,4,PC004327, 45.50 , 227.50 , 273.00 ,CAMBRIDGE CITY,Strategic Director 2,61911,Artist Expenses,City Events
Cambridge City Council,GPC,06/07/2019,4,PC004434, -   , 19.98 , 19.98 ,ARGOS RETAIL GROUP,Strategic Director 2,62002,Stationery,City Events
Cambridge City Council,GPC,06/07/2019,4,PC004435, -   , 34.98 , 34.98 ,ARGOS RETAIL GROUP,Strategic Director 2,62002,Stationery,City Events
Cambridge City Council,GPC,06/07/2019,4,PC004436, -   , 34.99 , 34.99 ,ARGOS RETAIL GROUP,Strategic Director 2,62002,Stationery,City Events
Cambridge City Council,GPC,06/07/2019,4,PC004437, -   , 34.23 , 34.23 ,SCREWFIX DIRECT,Strategic Director 2,62002,Stationery,City Events
Cambridge City Council,GPC,07/07/2019,4,PC004330, 31.37 , 156.83 , 188.20 ,WWW.STONEWAREHOUSE.CO.UK,Strategic Director 1,61400,Goods For Resale,Commemoration
Cambridge City Council,GPC,07/07/2019,5,PC004448, -   , 19.99 , 19.99 ,AMZNMktplace,Strategic Director 2,61703,"Purchase - Equipment, Furniture And Materials",Admin Building Allocation
Cambridge City Council,GPC,07/07/2019,5,PC004449, -   , 12.98 , 12.98 ,AMZNMKTPLACE AMAZON.CO.UK,Strategic Director 2,61703,"Purchase - Equipment, Furniture And Materials",Admin Building Allocation
Cambridge City Council,GPC,07/07/2019,4,PC004438, -   , 20.00 , 20.00 ,TOMS CAKES,Strategic Director 2,61905,Purchases - Bar,City Events
Cambridge City Council,GPC,07/07/2019,5,PC004430, -   , 103.96 , 103.96 ,AMZNMKTPLACE AMAZON.CO.UK,Strategic Director 2,61906,Purchases - Merchandise,Folk Festival
Cambridge City Council,GPC,07/07/2019,5,PC004431, -   , 93.54 , 93.54 ,AMZNMKTPLACE AMAZON.CO.UK,Strategic Director 2,61906,Purchases - Merchandise,Folk Festival
Cambridge City Council,GPC,08/07/2019,4,PC004343, -   , 201.41 , 201.41 ,TESCO STORE 2877,Strategic Director 2,61900,Catering And Vending Supplies,Children & Young People's Service
Cambridge City Council,GPC,08/07/2019,4,PC004344, -   ,-2.70 ,-2.70 ,TESCO STORE 2877,Strategic Director 2,61900,Catering And Vending Supplies,Children & Young People's Service
Cambridge City Council,GPC,08/07/2019,4,PC004405, -   , 48.34 , 48.34 ,TESCO STORE 2065,Strategic Director 2,61900,Catering And Vending Supplies,The Meadows Community Centre
Cambridge City Council,GPC,08/07/2019,5,PC004414, -   , 55.68 , 55.68 ,RIDGEONS NORMAN WAY,Strategic Director 2,60503,Grounds Maintenance,City Homes Estate Management
Cambridge City Council,GPC,08/07/2019,4,PC004379, 1.60 , 7.97 , 9.57 ,AMZNMKTPLACE AMAZON.CO.UK,Strategic Director 2,61703,"Purchase - Equipment, Furniture And Materials",Building Maintenance Response - Direct
Cambridge City Council,GPC,08/07/2019,5,PC004450, -   , 6.93 , 6.93 ,AMZNMktplace,Strategic Director 2,61703,"Purchase - Equipment, Furniture And Materials",Admin Building Allocation
Cambridge City Council,GPC,08/07/2019,5,PC004394, -   , 19.98 , 19.98 ,CAMBS CLIFTON,Director of Planning,61703,"Purchase - Equipment, Furniture And Materials",3C Building Control
Cambridge City Council,GPC,09/07/2019,4,PC004384, -   , 6.00 , 6.00 ,MARKS&SPENCER PLC SACA,Chief Executive,64500,Members Allowances,Civic Affairs and Twinning
Cambridge City Council,GPC,09/07/2019,4,PC004385, -   , 34.28 , 34.28 ,MARKS&SPENCER PLC SACA,Chief Executive,64500,Members Allowances,Civic Affairs and Twinning
Cambridge City Council,GPC,09/07/2019,4,PC004397, -   , 43.00 , 43.00 ,TRAINLINE,Strategic Director 1,60115,Staff Development And Training,Procurement
Cambridge City Council,GPC,09/07/2019,4,PC004257, -   , 35.14 , 35.14 ,POST OFFICE COUNTER,Strategic Director 1,64100,Postage And Courier Services,Cambridge Crematorium
Cambridge City Council,GPC,09/07/2019,4,PC004258, -   , 46.00 , 46.00 ,TESCO STORE 2065,Strategic Director 1,61703,"Purchase - Equipment, Furniture And Materials",Bereavement Services Central Costs
Cambridge City Council,GPC,09/07/2019,4,PC004331, 5.00 , 24.99 , 29.99 ,OAKINGTON GARDEN,Strategic Director 1,61400,Goods For Resale,Commemoration
Cambridge City Council,GPC,09/07/2019,4,PC004280, -   , 17.97 , 17.97 ,T K MAXX,Strategic Director 2,61703,"Purchase - Equipment, Furniture And Materials",The Meadows Community Centre
Cambridge City Council,GPC,09/07/2019,4,PC004328, -   , 200.00 , 200.00 ,FACEBK KHS6EMJAX2,Strategic Director 2,61931,Cambridge Live Social Media,Folk Festival
Cambridge City Council,GPC,09/07/2019,4,PC004380, 49.17 , 245.83 , 295.00 ,PAYPAL *HARTHOMEINT,Strategic Director 2,61703,"Purchase - Equipment, Furniture And Materials",Building Maintenance Response - Direct
Cambridge City Council,GPC,09/07/2019,4,PC004410, 3.82 , 19.08 , 22.90 ,B&M RETAIL LTD,Strategic Director 2,61703,"Purchase - Equipment, Furniture And Materials",Street Cleaning - Old
Cambridge City Council,GPC,10/07/2019,4,PC004260, -   , 9.86 , 9.86 ,B&M RETAIL LTD,Strategic Director 1,61300,Cleaning Materials,Cambridge Crematorium
Cambridge City Council,GPC,10/07/2019,4,PC004259, -   , 3.00 , 3.00 ,HOBBYCRAFT,Strategic Director 1,62002,Stationery,Bereavement Services Central Costs
Cambridge City Council,GPC,10/07/2019,4,PC004406, -   , 10.70 , 10.70 ,ONE STOP  5026,Strategic Director 2,61900,Catering And Vending Supplies,The Meadows Community Centre
Cambridge City Council,GPC,10/07/2019,4,PC004265, 5.66 , 28.32 , 33.98 ,AMZNMktplace,Strategic Director 2,61703,"Purchase - Equipment, Furniture And Materials",Clay Farm Community Centre
Cambridge City Council,GPC,10/07/2019,4,PC004266, 5.74 , 28.70 , 34.44 ,WWW.THECARDNETWORK.CO.,Strategic Director 2,63800,Security Services (Excluding Premises),Clay Farm Community Centre
Cambridge City Council,GPC,10/07/2019,4,PC004369, -   , 75.00 , 75.00 ,Amazon.co.uk*M63RO6R44,Strategic Director 2,62005,"Advertising, Publicity And Marketing",Active Lifestyles - Communities (ex Sports Development)
Cambridge City Council,GPC,10/07/2019,4,PC004353, -   , 80.00 , 80.00 ,EB *THE GLOBAL LEADERS,Strategic Director 2,64300,Conference Expenses,Housing Advice Service
Cambridge City Council,GPC,10/07/2019,4,PC004352, -   , 59.97 , 59.97 ,AMZNMKTPLACE AMAZON.CO.UK,Strategic Director 2,64073,ICT Maintenance and Support,Temporary Accommodation
Cambridge City Council,GPC,10/07/2019,4,PC004353, -   , 40.00 , 40.00 ,EB *THE GLOBAL LEADERS,Strategic Director 2,64300,Conference Expenses,Temporary Accommodation
Cambridge City Council,GPC,11/07/2019,4,PC004398, -   , 47.00 , 47.00 ,TRAINLINE,Strategic Director 1,60115,Staff Development And Training,Procurement
Cambridge City Council,GPC,11/07/2019,5,PC004284, -   , 40.00 , 40.00 ,WWW.EASTSUFFOLK.GOV.UK,Strategic Director 2,60115,Staff Development And Training,Children & Young People's Service
Cambridge City Council,GPC,11/07/2019,4,PC004370, 3.90 , 19.50 , 23.40 ,BOOKWHEN.COM - BOOKING,Strategic Director 2,62005,"Advertising, Publicity And Marketing",Children & Young People's Service
Cambridge City Council,GPC,11/07/2019,4,PC004407, -   , 32.59 , 32.59 ,TESCO STORE 2065,Strategic Director 2,61900,Catering And Vending Supplies,The Meadows Community Centre
Cambridge City Council,GPC,11/07/2019,4,PC004269, -   , 9.95 , 9.95 ,B&M RETAIL LTD,Strategic Director 2,61703,"Purchase - Equipment, Furniture And Materials",Clay Farm Community Centre
Cambridge City Council,GPC,11/07/2019,4,PC004267, -   , 2.29 , 2.29 ,AMZNMktplace,Strategic Director 2,62900,Events,Clay Farm Community Centre
Cambridge City Council,GPC,11/07/2019,4,PC004268, -   , 4.25 , 4.25 ,AMZNMktplace,Strategic Director 2,62900,Events,Clay Farm Community Centre
Cambridge City Council,GPC,11/07/2019,4,PC004370, 3.90 , 19.50 , 23.40 ,BOOKWHEN.COM - BOOKING,Strategic Director 2,64800,Membership And Subscriptions,Active Lifestyles - Communities (ex Sports Development)
Cambridge City Council,GPC,11/07/2019,4,PC004329, 4.21 , 21.07 , 25.28 ,ADOBE  PS CREATIVE CLD,Strategic Director 2,64071,Ict Software,Cambridge Live - Central
Cambridge City Council,GPC,11/07/2019,4,PC004354, -   , 49.00 , 49.00 ,CO-OP GROUP 019959,Strategic Director 2,60303,Electricity,Temporary Accommodation
Cambridge City Council,GPC,11/07/2019,4,PC004381, 6.04 , 30.20 , 36.24 ,AMZNMktplace,Strategic Director 2,61703,"Purchase - Equipment, Furniture And Materials",Building Maintenance Response - Direct
Cambridge City Council,GPC,11/07/2019,5,PC004432, -   , 414.00 , 414.00 ,THE BRANDING TEAM,Strategic Director 2,61906,Purchases - Merchandise,Folk Festival
Cambridge City Council,GPC,12/07/2019,4,PC004355, -   , 142.94 , 142.94 ,WWW.ARGOS.CO.UK,Strategic Director 1,61703,"Purchase - Equipment, Furniture And Materials",Housing Revenue Account - Net Cost of Service
Cambridge City Council,GPC,12/07/2019,4,PC004356, -   ,-142.94 ,-142.94 ,WWW.ARGOS.CO.UK,Strategic Director 1,61703,"Purchase - Equipment, Furniture And Materials",Housing Revenue Account - Net Cost of Service
Cambridge City Council,GPC,12/07/2019,4,PC004270, 36.60 , 183.00 , 219.60 ,WWW.OFFICEFURNITUREONL,Strategic Director 2,61703,"Purchase - Equipment, Furniture And Materials",Clay Farm Community Centre
Cambridge City Council,GPC,12/07/2019,4,PC004299, -   , 15.38 , 15.38 ,AMZNMktplace,Strategic Director 2,61703,"Purchase - Equipment, Furniture And Materials",Environmental Health Operational Support
Cambridge City Council,GPC,13/07/2019,5,PC004316, -   , 57.60 , 57.60 ,STAGECOACH SERVICE,Strategic Director 2,60914,Public Transport For Staff And Members,Syrian Resettlement
Cambridge City Council,GPC,15/07/2019,4,PC004399, -   , 51.30 , 51.30 ,TRAINLINE,Strategic Director 1,60115,Staff Development And Training,Procurement
Cambridge City Council,GPC,15/07/2019,4,PC004408, -   , 36.05 , 36.05 ,TESCO STORE 2065,Strategic Director 2,61900,Catering And Vending Supplies,The Meadows Community Centre
Cambridge City Council,GPC,15/07/2019,4,PC004307, -   , 49.99 , 49.99 ,CLEARABEE LIMITED,Strategic Director 2,60201,Cyclical/Planned Maintenance - Building,Town Hall Lettings
Cambridge City Council,GPC,15/07/2019,5,PC004433, -   , 90.85 , 90.85 ,PLAN-IT REPROGRAPHICS,Strategic Director 2,62001,Printing,Folk Festival
Cambridge City Council,GPC,16/07/2019,4,PC004409, -   , 3.80 , 3.80 ,ONE STOP  5026,Strategic Director 2,61900,Catering And Vending Supplies,The Meadows Community Centre
Cambridge City Council,GPC,16/07/2019,5,PC004317, -   , 43.80 , 43.80 ,AMZNMktplace,Strategic Director 2,62900,Events,Syrian Resettlement
Cambridge City Council,GPC,16/07/2019,5,PC004318, -   , 23.80 , 23.80 ,AMZNMktplace,Strategic Director 2,62900,Events,Syrian Resettlement
Cambridge City Council,GPC,16/07/2019,4,PC004422, -   , 120.45 , 120.45 ,BORNEY UK LTD,Strategic Director 2,62001,Printing,Folk Festival
Cambridge City Council,GPC,17/07/2019,5,PC004333, 74.69 , 373.45 , 448.14 ,SOLARWINDS,Chief Executive,64073,ICT Maintenance and Support,Corporate Marketing
Cambridge City Council,GPC,17/07/2019,4,PC004308, -   , 22.15 , 22.15 ,BOLAGSVERKET INTERNET,Strategic Director 2,60235,Housing Repairs - Other Premises Related Costs,Client Repairs
Cambridge City Council,GPC,18/07/2019,4,PC004386, -   , 20.00 , 20.00 ,MARKS&SPENCER PLC SACA,Chief Executive,64500,Members Allowances,Civic Affairs and Twinning
Cambridge City Council,GPC,18/07/2019,4,PC004387, -   , 25.00 , 25.00 ,MARKS&SPENCER PLC SACA,Chief Executive,64500,Members Allowances,Civic Affairs and Twinning
Cambridge City Council,GPC,18/07/2019,4,PC004389, -   , 5.00 , 5.00 ,CAMBRIDGE NEWS,Chief Executive,62001,Printing,Committee Management
Cambridge City Council,GPC,18/07/2019,4,PC004388, -   , 12.40 , 12.40 ,MARKS&SPENCER PLC SACA,Strategic Director 1,64200,Subsistence,Business Support - Centralised Overheads
Cambridge City Council,GPC,18/07/2019,4,PC004345, -   , 66.20 , 66.20 ,TESCO STORE 2889,Strategic Director 2,61500,Consumables,Children & Young People's Service
Cambridge City Council,GPC,18/07/2019,4,PC004346, -   , 50.53 , 50.53 ,AMZNMktplace,Strategic Director 2,61703,"Purchase - Equipment, Furniture And Materials",Children & Young People's Service
Cambridge City Council,GPC,18/07/2019,4,PC004281, -   , 150.12 , 150.12 ,Come Clean Limited,Strategic Director 2,61300,Cleaning Materials,The Meadows Community Centre
Cambridge City Council,GPC,18/07/2019,4,PC004271, 6.20 , 31.01 , 37.21 ,AMZNMKTPLACE AMAZON.CO.UK,Strategic Director 2,61703,"Purchase - Equipment, Furniture And Materials",Clay Farm Community Centre
Cambridge City Council,GPC,18/07/2019,4,PC004271, -   ,-2.24 ,-2.24 ,AMZNMKTPLACE AMAZON.CO.UK,Strategic Director 2,61703,"Purchase - Equipment, Furniture And Materials",Clay Farm Community Centre
Cambridge City Council,GPC,18/07/2019,4,PC004272, 6.20 , 31.01 , 37.21 ,AMZNMKTPLACE AMAZON.CO.UK,Strategic Director 2,61703,"Purchase - Equipment, Furniture And Materials",Clay Farm Community Centre
Cambridge City Council,GPC,18/07/2019,4,PC004272, -   ,-2.24 ,-2.24 ,AMZNMKTPLACE AMAZON.CO.UK,Strategic Director 2,61703,"Purchase - Equipment, Furniture And Materials",Clay Farm Community Centre
Cambridge City Council,GPC,18/07/2019,4,PC004371, -   , 60.00 , 60.00 ,AMAZON.CO.UK*MH3GJ3NV4 AM,Strategic Director 2,62005,"Advertising, Publicity And Marketing",Active Lifestyles - Communities (ex Sports Development)
Cambridge City Council,GPC,18/07/2019,4,PC004309, -   , 655.00 , 655.00 ,CLEARABEE LIMITED,Strategic Director 2,60201,Cyclical/Planned Maintenance - Building,Town Hall Lettings
Cambridge City Council,GPC,18/07/2019,4,PC004310, -   , 30.00 , 30.00 ,CO-OP GROUP 171601,Strategic Director 2,60201,Cyclical/Planned Maintenance - Building,Town Hall Lettings
Cambridge City Council,GPC,18/07/2019,4,PC004423, -   , 210.00 , 210.00 ,WWW.HOTLINE.CO.UK,Strategic Director 2,62001,Printing,Folk Festival
Cambridge City Council,GPC,18/07/2019,4,PC004424, -   , 210.00 , 210.00 ,WWW.HOTLINE.CO.UK,Strategic Director 2,62001,Printing,Folk Festival
Cambridge City Council,GPC,19/07/2019,6,PC004519, 1.49 , 7.43 , 8.92 ,B & Q 1239,Strategic Director 1,61703,"Purchase - Equipment, Furniture And Materials",Cambridge Crematorium
Cambridge City Council,GPC,19/07/2019,6,PC004527, -   , 15.47 , 15.47 ,AMZNMktplace,Strategic Director 2,61703,"Purchase - Equipment, Furniture And Materials",Children & Young People's Service
Cambridge City Council,GPC,19/07/2019,6,PC004528, 0.96 , 4.79 , 5.75 ,AMZNMktplace,Strategic Director 2,61703,"Purchase - Equipment, Furniture And Materials",Children & Young People's Service
Cambridge City Council,GPC,19/07/2019,6,PC004529, -   , 5.89 , 5.89 ,AMZNMktplace,Strategic Director 2,61703,"Purchase - Equipment, Furniture And Materials",Children & Young People's Service
Cambridge City Council,GPC,19/07/2019,6,PC004530, -   , 2.49 , 2.49 ,AMZNMktplace,Strategic Director 2,61703,"Purchase - Equipment, Furniture And Materials",Children & Young People's Service
Cambridge City Council,GPC,19/07/2019,6,PC004531, -   , 7.99 , 7.99 ,AMZNMktplace,Strategic Director 2,61703,"Purchase - Equipment, Furniture And Materials",Children & Young People's Service
Cambridge City Council,GPC,19/07/2019,6,PC004532, -   , 1.86 , 1.86 ,AMZNMktplace,Strategic Director 2,61703,"Purchase - Equipment, Furniture And Materials",Children & Young People's Service
Cambridge City Council,GPC,19/07/2019,6,PC004533, 4.06 , 20.30 , 24.36 ,LONDONEMBLE,Strategic Director 2,61703,"Purchase - Equipment, Furniture And Materials",Children & Young People's Service
Cambridge City Council,GPC,19/07/2019,5,PC004637, -   , 30.00 , 30.00 ,GO OUTDOORS,Strategic Director 2,62900,Events,Neighbourhood Community Development
Cambridge City Council,GPC,19/07/2019,5,PC004526, 12.79 , 63.95 , 76.74 ,POSTURITE LTD,Strategic Director 2,60207,Health And Safety Supplies And Services,Customer Access Strategy - Customer Service Centre
Cambridge City Council,GPC,19/07/2019,6,PC004498, -   , 57.60 , 57.60 ,STAGECOACH SERVICE,Strategic Director 2,60914,Public Transport For Staff And Members,Syrian Resettlement
Cambridge City Council,GPC,19/07/2019,6,PC004499, -   , 57.60 , 57.60 ,STAGECOACH SERVICE,Strategic Director 2,60914,Public Transport For Staff And Members,Syrian Resettlement
Cambridge City Council,GPC,19/07/2019,6,PC004500, -   , 57.60 , 57.60 ,STAGECOACH SERVICE,Strategic Director 2,60914,Public Transport For Staff And Members,Syrian Resettlement
Cambridge City Council,GPC,19/07/2019,5,PC004592, -   , 42.99 , 42.99 ,SCREWFIX DIRECT,Strategic Director 2,60503,Grounds Maintenance,City Homes Estate Management
Cambridge City Council,GPC,20/07/2019,6,PC004501, -   , 57.60 , 57.60 ,STAGECOACH SERVICE,Strategic Director 2,60914,Public Transport For Staff And Members,Syrian Resettlement
Cambridge City Council,GPC,20/07/2019,6,PC004502, -   , 57.60 , 57.60 ,STAGECOACH SERVICE,Strategic Director 2,60914,Public Transport For Staff And Members,Syrian Resettlement
Cambridge City Council,GPC,20/07/2019,6,PC004654, -   , 3.19 , 3.19 ,B & Q 1239,Strategic Director 2,61703,"Purchase - Equipment, Furniture And Materials",Folk Festival
Cambridge City Council,GPC,20/07/2019,6,PC004655, -   , 26.93 , 26.93 ,B&M RETAIL LTD,Strategic Director 2,61703,"Purchase - Equipment, Furniture And Materials",Folk Festival
Cambridge City Council,GPC,21/07/2019,6,PC004611, -   , 25.25 , 25.25 ,TRAINLINE,Strategic Director 1,60914,Public Transport For Staff And Members,Procurement
Cambridge City Council,GPC,21/07/2019,6,PC004534, -   , 39.11 , 39.11 ,AMZNMktplace,Strategic Director 2,61703,"Purchase - Equipment, Furniture And Materials",Children & Young People's Service
Cambridge City Council,GPC,21/07/2019,6,PC004515, -   , 253.07 , 253.07 ,FACEBK VX93YL6BX2,Strategic Director 2,61931,Cambridge Live Social Media,Corn Exchange and Guildhalls
Cambridge City Council,GPC,21/07/2019,5,PC004593, -   , 82.00 , 82.00 ,Amazon.co.uk*MH8TJ0JB4,Strategic Director 2,61703,"Purchase - Equipment, Furniture And Materials",Building Maintenance Response - Direct
Cambridge City Council,GPC,21/07/2019,6,PC004656, -   , 18.00 , 18.00 ,AMZNMKTPLACE AMAZON.CO.UK,Strategic Director 2,62002,Stationery,Folk Festival
Cambridge City Council,GPC,21/07/2019,6,PC004659, -   , 4.93 , 4.93 ,AMZNMKTPLACE AMAZON.CO.UK,Strategic Director 2,62002,Stationery,Folk Festival
Cambridge City Council,GPC,21/07/2019,6,PC004657, -   , 3.87 , 3.87 ,AMZNMKTPLACE AMAZON.CO.UK,Strategic Director 2,61703,"Purchase - Equipment, Furniture And Materials",Folk Festival
Cambridge City Council,GPC,21/07/2019,6,PC004658, -   , 3.88 , 3.88 ,AMZNMKTPLACE AMAZON.CO.UK,Strategic Director 2,61703,"Purchase - Equipment, Furniture And Materials",Folk Festival
Cambridge City Council,GPC,22/07/2019,6,PC004535, 0.58 , 2.91 , 3.49 ,AMZNMktplace,Strategic Director 2,61703,"Purchase - Equipment, Furniture And Materials",Children & Young People's Service
Cambridge City Council,GPC,22/07/2019,6,PC004536, 1.66 , 8.28 , 9.94 ,AMZNMktplace,Strategic Director 2,61703,"Purchase - Equipment, Furniture And Materials",Children & Young People's Service
Cambridge City Council,GPC,22/07/2019,6,PC004537, -   , 79.00 , 79.00 ,AMAZON PRIME*MH0C72TZ4 AM,Strategic Director 2,64800,Membership And Subscriptions,Children & Young People's Service
Cambridge City Council,GPC,22/07/2019,5,PC004618, -   , 45.38 , 45.38 ,TESCO STORE 2065,Strategic Director 2,61900,Catering And Vending Supplies,The Meadows Community Centre
Cambridge City Council,GPC,22/07/2019,5,PC004619, -   , 1.85 , 1.85 ,ONE STOP  5026,Strategic Director 2,61900,Catering And Vending Supplies,The Meadows Community Centre
Cambridge City Council,GPC,22/07/2019,5,PC004587, -   , 190.00 , 190.00 ,Amazon.co.uk*MH07K1TG4,Strategic Director 2,62900,Events,Active Lifestyles - Communities (ex Sports Development)
Cambridge City Council,GPC,22/07/2019,6,PC004664, -   , 5.56 , 5.56 ,AMZNMKTPLACE AMAZON.CO.UK,Strategic Director 2,62002,Stationery,Folk Festival
Cambridge City Council,GPC,22/07/2019,6,PC004660, -   , 133.83 , 133.83 ,AMZNMKTPLACE AMAZON.CO.UK,Strategic Director 2,61703,"Purchase - Equipment, Furniture And Materials",Folk Festival
Cambridge City Council,GPC,22/07/2019,6,PC004661, -   , 17.75 , 17.75 ,AMZNMKTPLACE AMAZON.CO.UK,Strategic Director 2,61703,"Purchase - Equipment, Furniture And Materials",Folk Festival
Cambridge City Council,GPC,22/07/2019,6,PC004662, -   , 254.49 , 254.49 ,AMZNMKTPLACE AMAZON.CO.UK,Strategic Director 2,61703,"Purchase - Equipment, Furniture And Materials",Folk Festival
Cambridge City Council,GPC,22/07/2019,6,PC004663, -   , 38.30 , 38.30 ,AMZNMKTPLACE AMAZON.CO.UK,Strategic Director 2,61703,"Purchase - Equipment, Furniture And Materials",Folk Festival
Cambridge City Council,GPC,23/07/2019,5,PC004562, -   , 400.66 , 400.66 ,INTERIOR GOODS DIRECT,Strategic Director 1,61703,"Purchase - Equipment, Furniture And Materials",Housing Revenue Account - Net Cost of Service
Cambridge City Council,GPC,23/07/2019,6,PC004520, 11.33 , 56.62 , 67.95 ,SCREWFIX CAMBRIDGE KINGS,Strategic Director 1,60503,Grounds Maintenance,Cambridge Crematorium
Cambridge City Council,GPC,23/07/2019,5,PC004596, -   , 56.96 , 56.96 ,SCREWFIX DIRECT,Strategic Director 1,61703,"Purchase - Equipment, Furniture And Materials",Cambridge Crematorium
Cambridge City Council,GPC,23/07/2019,6,PC004538, -   , 13.25 , 13.25 ,AMZNMktplace,Strategic Director 2,61500,Consumables,Children & Young People's Service
Cambridge City Council,GPC,23/07/2019,6,PC004540, -   , 4.99 , 4.99 ,AMZNMktplace,Strategic Director 2,61500,Consumables,Children & Young People's Service
Cambridge City Council,GPC,23/07/2019,6,PC004539, -   , 24.99 , 24.99 ,AMZNMktplace,Strategic Director 2,61703,"Purchase - Equipment, Furniture And Materials",Children & Young People's Service
Cambridge City Council,GPC,23/07/2019,5,PC004456,-4.96 ,-24.80 ,-29.76 ,WWW.THECARDNETWORK.CO.,Strategic Director 2,60248,Security Of Premises,Clay Farm Community Centre
Cambridge City Council,GPC,23/07/2019,5,PC004588, 124.63 , 623.12 , 747.75 ,DECATHLON UK VAD,Strategic Director 2,61703,"Purchase - Equipment, Furniture And Materials",Sport - Street Games
Cambridge City Council,GPC,23/07/2019,6,PC004503, -   , 57.60 , 57.60 ,STAGECOACH SERVICE,Strategic Director 2,60914,Public Transport For Staff And Members,Syrian Resettlement
Cambridge City Council,GPC,23/07/2019,5,PC004597, -   , 42.99 , 42.99 ,SCREWFIX DIRECT,Strategic Director 2,60503,Grounds Maintenance,City Homes Estate Management
Cambridge City Council,GPC,23/07/2019,5,PC004594, -   , 26.99 , 26.99 ,AMZNMktplace,Strategic Director 2,61703,"Purchase - Equipment, Furniture And Materials",Building Maintenance Response - Direct
Cambridge City Council,GPC,23/07/2019,5,PC004466, -   , 68.00 , 68.00 ,AMZNMktplace,Strategic Director 2,61703,"Purchase - Equipment, Furniture And Materials",Admin Building Allocation
Cambridge City Council,GPC,23/07/2019,6,PC004665, -   , 11.64 , 11.64 ,AMZNMKTPLACE AMAZON.CO.UK,Strategic Director 2,61703,"Purchase - Equipment, Furniture And Materials",Folk Festival
Cambridge City Council,GPC,23/07/2019,6,PC004666, -   , 19.35 , 19.35 ,AMZNMKTPLACE AMAZON.CO.UK,Strategic Director 2,61703,"Purchase - Equipment, Furniture And Materials",Folk Festival
Cambridge City Council,GPC,23/07/2019,5,PC004595, -   , 15.20 , 15.20 ,B & Q 1237,Strategic Director 2,60201,Cyclical/Planned Maintenance - Building,Cowley Road Compound
Cambridge City Council,GPC,23/07/2019,5,PC004598, -   , 30.00 , 30.00 ,ARGOS RETAIL GROUP,Strategic Director 2,60201,Cyclical/Planned Maintenance - Building,Cowley Road Compound
Cambridge City Council,GPC,24/07/2019,5,PC004479, -   , 129.00 , 129.00 ,ACOWTANCY.COM,Strategic Director 1,60115,Staff Development And Training,Accountancy and Support Services
Cambridge City Council,GPC,24/07/2019,5,PC004452, -   , 31.98 , 31.98 ,ARGOS LTD,Strategic Director 1,61703,"Purchase - Equipment, Furniture And Materials",Cambridge Crematorium
Cambridge City Council,GPC,24/07/2019,5,PC004451, -   , 84.99 , 84.99 ,CURRYS,Strategic Director 1,62002,Stationery,Cambridge Crematorium
Cambridge City Council,GPC,24/07/2019,5,PC004453, -   , 5.90 , 5.90 ,GRAND ARCADE CAR PARK,Strategic Director 1,60907,Other Vehicle Costs,Bereavement Services Central Costs
Cambridge City Council,GPC,24/07/2019,6,PC004541, 0.82 , 4.08 , 4.90 ,AMZNMktplace,Strategic Director 2,61500,Consumables,Children & Young People's Service
Cambridge City Council,GPC,24/07/2019,6,PC004542, -   , 1.93 , 1.93 ,AMZNMktplace,Strategic Director 2,61500,Consumables,Children & Young People's Service
Cambridge City Council,GPC,24/07/2019,6,PC004545, 0.87 , 4.37 , 5.24 ,Amazon.co.uk*MH0UD9074,Strategic Director 2,61500,Consumables,Children & Young People's Service
Cambridge City Council,GPC,24/07/2019,6,PC004543, 3.96 , 19.79 , 23.75 ,Amazon.co.uk*MH8UH6EW4,Strategic Director 2,61703,"Purchase - Equipment, Furniture And Materials",Children & Young People's Service
Cambridge City Council,GPC,24/07/2019,6,PC004544, 5.25 , 26.24 , 31.49 ,Amazon.co.uk*MH8OX9EI4,Strategic Director 2,61703,"Purchase - Equipment, Furniture And Materials",Children & Young People's Service
Cambridge City Council,GPC,24/07/2019,5,PC004485, -   , 19.98 , 19.98 ,AMZNMktplace,Strategic Director 2,60201,Cyclical/Planned Maintenance - Building,Town Hall Lettings
Cambridge City Council,GPC,24/07/2019,5,PC004599, -   , 304.99 , 304.99 ,ST NICHOLAS HEATING,Strategic Director 2,61703,"Purchase - Equipment, Furniture And Materials",Building Maintenance Response - Direct
Cambridge City Council,GPC,24/07/2019,5,PC004467, -   , 68.00 , 68.00 ,AMZNMKTPLACE AMAZON.CO.UK,Strategic Director 2,61703,"Purchase - Equipment, Furniture And Materials",Admin Building Allocation
Cambridge City Council,GPC,24/07/2019,6,PC004668, -   , 9.27 , 9.27 ,AMZNMKTPLACE AMAZON.CO.UK,Strategic Director 2,62002,Stationery,Folk Festival
Cambridge City Council,GPC,24/07/2019,5,PC004643, -   , 90.83 , 90.83 ,WWW.INSTANTPRINT.COM,Strategic Director 2,61906,Purchases - Merchandise,Folk Festival
Cambridge City Council,GPC,24/07/2019,5,PC004643, -   , 20.00 , 20.00 ,WWW.INSTANTPRINT.C,Strategic Director 2,61906,Purchases - Merchandise,Folk Festival
Cambridge City Council,GPC,24/07/2019,5,PC004643, -   , 102.50 , 102.50 ,WWW.INSTANTPRINT.C,Strategic Director 2,61906,Purchases - Merchandise,Folk Festival
Cambridge City Council,GPC,24/07/2019,5,PC004643, -   , 19.00 , 19.00 ,WWW.INSTANTPRINT.C,Strategic Director 2,61906,Purchases - Merchandise,Folk Festival
Cambridge City Council,GPC,24/07/2019,5,PC004643, -   , 30.83 , 30.83 ,WWW.INSTANTPRINT.C,Strategic Director 2,61906,Purchases - Merchandise,Folk Festival
Cambridge City Council,GPC,24/07/2019,6,PC004667, -   , 109.28 , 109.28 ,AMZNMKTPLACE AMAZON.CO.UK,Strategic Director 2,61703,"Purchase - Equipment, Furniture And Materials",Folk Festival
Cambridge City Council,GPC,24/07/2019,5,PC004709, -   , 218.00 , 218.00 ,B & Q 1237,Strategic Director 2,61703,"Purchase - Equipment, Furniture And Materials",Cowley Road Compound
Cambridge City Council,GPC,25/07/2019,6,PC004612, -   , 13.00 , 13.00 ,TRAINLINE,Strategic Director 1,60914,Public Transport For Staff And Members,Procurement
Cambridge City Council,GPC,25/07/2019,6,PC004700, 19.83 , 99.17 , 119.00 ,ARGOS LTD,Strategic Director 2,61703,"Purchase - Equipment, Furniture And Materials",Corn Exchange and Guildhalls
Cambridge City Council,GPC,25/07/2019,5,PC004486, -   , 14.99 , 14.99 ,AMZNMktplace,Strategic Director 2,60207,Health And Safety Supplies And Services,Housing Advice Service
Cambridge City Council,GPC,25/07/2019,5,PC004487, -   , 14.99 , 14.99 ,AMZNMktplace,Strategic Director 2,60207,Health And Safety Supplies And Services,Housing Advice Service
Cambridge City Council,GPC,25/07/2019,5,PC004488, -   , 10.99 , 10.99 ,SCREWFIX DIRECT,Strategic Director 2,61703,"Purchase - Equipment, Furniture And Materials",Town Hall Lettings
Cambridge City Council,GPC,25/07/2019,5,PC004564, -   , 49.00 , 49.00 ,CO-OP GROUP 019959,Strategic Director 2,60303,Electricity,Temporary Accommodation
Cambridge City Council,GPC,25/07/2019,5,PC004563, -   , 49.00 , 49.00 ,CO-OP GROUP 019959,Strategic Director 2,60305,Gas,Temporary Accommodation
Cambridge City Council,GPC,26/07/2019,5,PC004512, -   , 205.00 , 205.00 ,DVSA,Strategic Director 1,61703,"Purchase - Equipment, Furniture And Materials",Fleet Management - Operational
Cambridge City Council,GPC,26/07/2019,5,PC004457, 11.74 , 58.69 , 70.43 ,BOOKER LIMITED CAMBRIDGE,Strategic Director 2,62900,Events,Clay Farm Community Centre
Cambridge City Council,GPC,26/07/2019,5,PC004457, -   , 18.79 , 18.79 ,BOOKER LIMITED CAMBRIDGE,Strategic Director 2,62900,Events,Clay Farm Community Centre
Cambridge City Council,GPC,26/07/2019,5,PC004644, -   , 155.00 , 155.00 ,WWW.INSTANTPRINT.C,Strategic Director 2,62001,Printing,Corn Exchange and Guildhalls
Cambridge City Council,GPC,26/07/2019,6,PC004669, -   , 41.58 , 41.58 ,SCREWFIX DIRECT,Strategic Director 2,61703,"Purchase - Equipment, Furniture And Materials",Folk Festival
Cambridge City Council,GPC,27/07/2019,5,PC004620, -   , 38.25 , 38.25 ,WWW.ICELAND.CO.UK,Strategic Director 2,61900,Catering And Vending Supplies,The Meadows Community Centre
Cambridge City Council,GPC,27/07/2019,6,PC004504, -   , 57.60 , 57.60 ,STAGECOACH SERVICE,Strategic Director 2,60914,Public Transport For Staff And Members,Syrian Resettlement
Cambridge City Council,GPC,28/07/2019,6,PC004670, -   , 33.95 , 33.95 ,B&M RETAIL LTD,Strategic Director 2,61703,"Purchase - Equipment, Furniture And Materials",Folk Festival
Cambridge City Council,GPC,29/07/2019,6,PC004546, -   , 69.25 , 69.25 ,TESCO STORES 2228,Strategic Director 2,63900,Miscellaneous Expenses,Children & Young People's Service
Cambridge City Council,GPC,29/07/2019,5,PC004621, -   , 52.54 , 52.54 ,TESCO STORE 2065,Strategic Director 2,61900,Catering And Vending Supplies,The Meadows Community Centre
Cambridge City Council,GPC,29/07/2019,5,PC004621, -   , 75.80 , 75.80 ,TESCO STORE 2065,Strategic Director 2,61900,Catering And Vending Supplies,The Meadows Community Centre
Cambridge City Council,GPC,29/07/2019,5,PC004710, -   , 107.40 , 107.40 ,WWW.ANCHORPUMPS.COM,Strategic Director 2,60201,Cyclical/Planned Maintenance - Building,Guildhall
Cambridge City Council,GPC,29/07/2019,6,PC004671, -   , 11.64 , 11.64 ,AMZNMKTPLACE AMAZON.CO.UK,Strategic Director 2,61703,"Purchase - Equipment, Furniture And Materials",Folk Festival
Cambridge City Council,GPC,29/07/2019,5,PC004711, -   , 141.56 , 141.56 ,CAMBS CLIFTON,Strategic Director 2,61703,"Purchase - Equipment, Furniture And Materials",Facilities Management
Cambridge City Council,GPC,30/07/2019,6,PC004613, -   , 25.00 , 25.00 ,TRAINLINE,Strategic Director 1,60914,Public Transport For Staff And Members,Procurement
Cambridge City Council,GPC,30/07/2019,4,PCARD, -   , 20.00 , 20.00 ,Purchase Card System,Strategic Director 1,80009,Disbursement Control - Events,General Fund Balance Sheet
Cambridge City Council,GPC,30/07/2019,4,LEDGER EV, -   ,-20.00 ,-20.00 ,Purchase Card System,Strategic Director 1,80009,Disbursement Control - Events,General Fund Balance Sheet
Cambridge City Council,GPC,30/07/2019,4,PCARD, -   , 124.18 , 124.18 ,Purchase Card System,Strategic Director 1,80009,Disbursement Control - Events,General Fund Balance Sheet
Cambridge City Council,GPC,30/07/2019,4,LEDGER EV, -   ,-124.18 ,-124.18 ,Purchase Card System,Strategic Director 1,80009,Disbursement Control - Events,General Fund Balance Sheet
Cambridge City Council,GPC,30/07/2019,4,PCARD, -   ," 1,373.55 "," 1,373.55 ",Purchase Card System,Strategic Director 1,80009,Disbursement Control - Events,General Fund Balance Sheet
Cambridge City Council,GPC,30/07/2019,4,LEDGER EV, -   ,"-1,373.55 ","-1,373.55 ",Purchase Card System,Strategic Director 1,80009,Disbursement Control - Events,General Fund Balance Sheet
Cambridge City Council,GPC,30/07/2019,5,PC004513, 21.50 , 107.50 , 129.00 ,KMR ENGINEERING,Strategic Director 1,61703,"Purchase - Equipment, Furniture And Materials",Garage- External Work
Cambridge City Council,GPC,30/07/2019,6,PC004547, -   , 80.32 , 80.32 ,TESCO STORE 2889,Strategic Director 2,61900,Catering And Vending Supplies,Neighbourhood Community Development
Cambridge City Council,GPC,30/07/2019,5,PC004633, -   , 10.38 , 10.38 ,TESCO STORE 2065,Strategic Director 2,61703,"Purchase - Equipment, Furniture And Materials",S&OS Community Engagement
Cambridge City Council,GPC,30/07/2019,5,PC004634, -   , 21.98 , 21.98 ,CHEF CENTRAL CAMBRIDGE,Strategic Director 2,61703,"Purchase - Equipment, Furniture And Materials",S&OS Community Engagement
Cambridge City Council,GPC,31/07/2019,6,PC004614, -   , 25.00 , 25.00 ,TRAINLINE,Strategic Director 1,60914,Public Transport For Staff And Members,Procurement
Cambridge City Council,GPC,31/07/2019,5,PC004566, -   , 99.99 , 99.99 ,ARGOS RETAIL GROUP,Strategic Director 1,61703,"Purchase - Equipment, Furniture And Materials",Housing Revenue Account - Net Cost of Service
Cambridge City Council,GPC,31/07/2019,5,PC004454, -   , 4.10 , 4.10 ,TESCO STORE 2065,Strategic Director 1,61300,Cleaning Materials,Cambridge Crematorium
Cambridge City Council,GPC,31/07/2019,6,PC004548, -   , 7.04 , 7.04 ,AMZNMktplace,Strategic Director 2,61500,Consumables,Children & Young People's Service
Cambridge City Council,GPC,31/07/2019,6,PC004549, -   , 4.95 , 4.95 ,AMZNMktplace,Strategic Director 2,61500,Consumables,Children & Young People's Service
Cambridge City Council,GPC,31/07/2019,6,PC004550, -   ,-69.25 ,-69.25 ,TESCO STORES 2228,Strategic Director 2,63900,Miscellaneous Expenses,Children & Young People's Service
Cambridge City Council,GPC,31/07/2019,5,PC004480, -   , 106.11 , 106.11 ,TESCO STORE 2065,Strategic Director 2,64200,Subsistence,Buchan Street Community Facility
Cambridge City Council,GPC,31/07/2019,5,PC004590, -   , 57.06 , 57.06 ,FACEBK 6AN72NEJR2,Strategic Director 2,62005,"Advertising, Publicity And Marketing",Active Lifestyles - Communities (ex Sports Development)
Cambridge City Council,GPC,31/07/2019,5,PC004590, -   , 10.00 , 10.00 ,FACEBK 6AN72NEJR2,Strategic Director 2,62005,"Advertising, Publicity And Marketing",Active Lifestyles - Communities (ex Sports Development)
Cambridge City Council,GPC,31/07/2019,5,PC004590, -   , 24.89 , 24.89 ,FACEBK 6AN72NEJR2,Strategic Director 2,62005,"Advertising, Publicity And Marketing",Active Lifestyles - Communities (ex Sports Development)
Cambridge City Council,GPC,31/07/2019,5,PC004589, 6.50 , 32.50 , 39.00 ,PLAYFOOTBALL OBO BETTE,Strategic Director 2,53702,Pitch Hire,Active Lifestyles - Communities (ex Sports Development)
Cambridge City Council,GPC,31/07/2019,5,PC004590, -   , 19.99 , 19.99 ,FACEBK 6AN72NEJR2,Strategic Director 2,62005,"Advertising, Publicity And Marketing",Active Lifestyles - Projects
Cambridge City Council,GPC,31/07/2019,5,PC004590, -   , 27.84 , 27.84 ,FACEBK 6AN72NEJR2,Strategic Director 2,62005,"Advertising, Publicity And Marketing",Active Lifestyles - Projects
Cambridge City Council,GPC,31/07/2019,6,PC004516, -   , 94.36 , 94.36 ,FACEBK *K7Y33LWC92,Strategic Director 2,61931,Cambridge Live Social Media,Corn Exchange and Guildhalls
Cambridge City Council,GPC,31/07/2019,5,PC004489, -   , 49.00 , 49.00 ,I AM THE AGENT,Strategic Director 2,62005,"Advertising, Publicity And Marketing",Town Hall Lettings
Cambridge City Council,GPC,31/07/2019,5,PC004490, -   , 34.16 , 34.16 ,SCREWFIX DIRECT,Strategic Director 2,60201,Cyclical/Planned Maintenance - Building,Town Hall Lettings
Cambridge City Council,GPC,31/07/2019,5,PC004565, -   , 7.15 , 7.15 ,WAITROSE 108,Strategic Director 2,61703,"Purchase - Equipment, Furniture And Materials",Temporary Accommodation
Cambridge City Council,GPC,31/07/2019,5,PC004600, -   , 220.00 , 220.00 ,B & Q 1237,Strategic Director 2,61703,"Purchase - Equipment, Furniture And Materials",Building Maintenance Response - Direct
Cambridge City Council,GPC,31/07/2019,6,PC004675, -   , 3.00 , 3.00 ,HOMEBASE LTD,Strategic Director 2,62002,Stationery,Folk Festival
Cambridge City Council,GPC,31/07/2019,6,PC004678, -   , 11.38 , 11.38 ,MRH ORCHARD SERVICE STATI,Strategic Director 2,64200,Subsistence,Folk Festival
Cambridge City Council,GPC,31/07/2019,6,PC004672, -   , 26.50 , 26.50 ,AMZNMktplace,Strategic Director 2,61703,"Purchase - Equipment, Furniture And Materials",Folk Festival
Cambridge City Council,GPC,31/07/2019,6,PC004673, -   , 186.89 , 186.89 ,CURRYS,Strategic Director 2,61703,"Purchase - Equipment, Furniture And Materials",Folk Festival
Cambridge City Council,GPC,31/07/2019,6,PC004674, -   , 44.98 , 44.98 ,CAMBS CLIFTON,Strategic Director 2,61703,"Purchase - Equipment, Furniture And Materials",Folk Festival
Cambridge City Council,GPC,31/07/2019,6,PC004676, -   , 31.60 , 31.60 ,HOMEBASE LTD,Strategic Director 2,61703,"Purchase - Equipment, Furniture And Materials",Folk Festival
Cambridge City Council,GPC,31/07/2019,6,PC004677, -   , 52.50 , 52.50 ,HOMEBASE LTD,Strategic Director 2,61703,"Purchase - Equipment, Furniture And Materials",Folk Festival
Cambridge City Council,GPC,01/08/2019,5,PC004650, -   , 234.00 , 234.00 ,WWW.PLANNINGPORTAL.CO.,Strategic Director 1,11312,Assets Under Construction Cost,General Fund Balance Sheet
Cambridge City Council,GPC,01/08/2019,5,PC004650, -   , 25.00 , 25.00 ,WWW.PLANNINGPORTAL.CO.,Strategic Director 1,11312,Assets Under Construction Cost,General Fund Balance Sheet
Cambridge City Council,GPC,01/08/2019,6,PC004615, -   , 19.00 , 19.00 ,TRAINLINE,Strategic Director 1,60914,Public Transport For Staff And Members,Procurement
Cambridge City Council,GPC,01/08/2019,5,PC004462, -   , 142.42 , 142.42 ,B & Q 1239,Strategic Director 1,60201,Cyclical/Planned Maintenance - Building,Cambridge Crematorium
Cambridge City Council,GPC,01/08/2019,6,PC004551, 0.50 , 2.49 , 2.99 ,AMZNMktplace,Strategic Director 2,61500,Consumables,Children & Young People's Service
Cambridge City Council,GPC,01/08/2019,5,PC004458, -   , 46.12 , 46.12 ,B&M RETAIL LTD,Strategic Director 2,61300,Cleaning Materials,Clay Farm Community Centre
Cambridge City Council,GPC,01/08/2019,5,PC004567, -   , 10.00 , 10.00 ,TIMPSON LTD,Strategic Director 2,61703,"Purchase - Equipment, Furniture And Materials",Temporary Accommodation
Cambridge City Council,GPC,01/08/2019,6,PC004679, -   , 257.60 , 257.60 ,DUNELM LTD,Strategic Director 2,61703,"Purchase - Equipment, Furniture And Materials",Folk Festival
Cambridge City Council,GPC,01/08/2019,6,PC004680, -   , 60.00 , 60.00 ,B&M RETAIL LTD,Strategic Director 2,61703,"Purchase - Equipment, Furniture And Materials",Folk Festival
Cambridge City Council,GPC,01/08/2019,6,PC004681, -   , 151.89 , 151.89 ,B&M RETAIL LTD,Strategic Director 2,61703,"Purchase - Equipment, Furniture And Materials",Folk Festival
Cambridge City Council,GPC,01/08/2019,6,PC004682, -   , 1.00 , 1.00 ,B&M RETAIL LTD,Strategic Director 2,61703,"Purchase - Equipment, Furniture And Materials",Folk Festival
Cambridge City Council,GPC,01/08/2019,6,PC004683, -   , 44.97 , 44.97 ,B&M RETAIL LTD,Strategic Director 2,61703,"Purchase - Equipment, Furniture And Materials",Folk Festival
Cambridge City Council,GPC,01/08/2019,6,PC004684, -   , 109.95 , 109.95 ,B&M RETAIL LTD,Strategic Director 2,61703,"Purchase - Equipment, Furniture And Materials",Folk Festival
Cambridge City Council,GPC,02/08/2019,5,PC004514, -   , 50.00 , 50.00 ,D4DRIVERS,Strategic Director 1,63900,Miscellaneous Expenses,Fleet Management - Operational
Cambridge City Council,GPC,02/08/2019,6,PC004553, 1.36 , 6.82 , 8.18 ,Amazon.co.uk*MH0F41HJ4,Strategic Director 2,61500,Consumables,Children & Young People's Service
Cambridge City Council,GPC,02/08/2019,6,PC004552, -   , 3.99 , 3.99 ,AMZNMktplace,Strategic Director 2,61703,"Purchase - Equipment, Furniture And Materials",Children & Young People's Service
Cambridge City Council,GPC,02/08/2019,5,PC004468, 6.33 , 31.65 , 37.98 ,SCREWFIX DIRECT,Strategic Director 2,61703,"Purchase - Equipment, Furniture And Materials",The Meadows Community Centre
Cambridge City Council,GPC,02/08/2019,5,PC004622, -   , 2.00 , 2.00 ,TESCO-STORES 2225,Strategic Director 2,61900,Catering And Vending Supplies,The Meadows Community Centre
Cambridge City Council,GPC,02/08/2019,5,PC004459, 3.49 , 17.47 , 20.96 ,LAKELAND.LIMITED,Strategic Director 2,61300,Cleaning Materials,Clay Farm Community Centre
Cambridge City Council,GPC,02/08/2019,6,PC004701, 12.94 , 64.72 , 77.66 ,BOOKER LIMITED CAMBRIDGE,Strategic Director 2,51600,Catering Income (S),Corn Exchange and Guildhalls
Cambridge City Council,GPC,02/08/2019,6,PC004505, -   , 96.00 , 96.00 ,STAGECOACH SERVICE,Strategic Director 2,60914,Public Transport For Staff And Members,Syrian Resettlement
Cambridge City Council,GPC,02/08/2019,5,PC004568, -   , 12.00 , 12.00 ,Amazon.co.uk*MH2UY4HB4,Strategic Director 2,61703,"Purchase - Equipment, Furniture And Materials",Temporary Accommodation
Cambridge City Council,GPC,02/08/2019,5,PC004601, -   , 286.56 , 286.56 ,WWW.CODELOCKS.CO.UK,Strategic Director 2,61703,"Purchase - Equipment, Furniture And Materials",Building Maintenance Response - Direct
Cambridge City Council,GPC,02/08/2019,5,PC004602, -   ,-286.56 ,-286.56 ,WWW.CODELOCKS.CO.UK,Strategic Director 2,61703,"Purchase - Equipment, Furniture And Materials",Building Maintenance Response - Direct
Cambridge City Council,GPC,02/08/2019,6,PC004688, -   , 1.67 , 1.67 ,THE WORKS,Strategic Director 2,62002,Stationery,Folk Festival
Cambridge City Council,GPC,02/08/2019,6,PC004689, -   , 1.67 , 1.67 ,THE WORKS,Strategic Director 2,62002,Stationery,Folk Festival
Cambridge City Council,GPC,02/08/2019,6,PC004686, -   , 3.49 , 3.49 ,NISBETS PLC,Strategic Director 2,61703,"Purchase - Equipment, Furniture And Materials",Folk Festival
Cambridge City Council,GPC,02/08/2019,6,PC004690, -   , 17.97 , 17.97 ,B&M RETAIL LTD,Strategic Director 2,61703,"Purchase - Equipment, Furniture And Materials",Folk Festival
Cambridge City Council,GPC,02/08/2019,6,PC004685, -   , 9.52 , 9.52 ,ASDA STORES,Strategic Director 2,64200,Subsistence,Folk Festival
Cambridge City Council,GPC,02/08/2019,6,PC004687, -   , 7.99 , 7.99 ,KUMAR PHARMACY,Strategic Director 2,64200,Subsistence,Folk Festival
Cambridge City Council,GPC,03/08/2019,5,PC004569, -   , 11.80 , 11.80 ,AMZNMktplace,Strategic Director 2,61703,"Purchase - Equipment, Furniture And Materials",Temporary Accommodation
Cambridge City Council,GPC,03/08/2019,5,PC004570, -   , 61.00 , 61.00 ,THE POST OFFICE,Strategic Director 2,64100,Postage And Courier Services,Temporary Accommodation
Cambridge City Council,GPC,03/08/2019,6,PC004702, -   , 13.16 , 13.16 ,MARKS&SPENCER PLC SACA,Strategic Director 2,51601,Catering Income (B),Corn Exchange and Guildhalls
Cambridge City Council,GPC,05/08/2019,5,PC004605, -   , 83.50 , 83.50 ,MARKS&SPENCER PLC,Chief Executive,64500,Members Allowances,Civic Affairs and Twinning
Cambridge City Council,GPC,05/08/2019,6,PC004470, -   , 20.00 , 20.00 ,DUNCAN & TODD - Eye Care Vo,Strategic Director 1,63900,Miscellaneous Expenses,Human Resources Operations (Staff-General)
Cambridge City Council,GPC,05/08/2019,6,PC004470, -   , 25.00 , 25.00 ,DUNCAN & TODD- Eye care,Strategic Director 1,60207,Health And Safety Supplies And Services,Business Support - Centralised Overheads
Cambridge City Council,GPC,05/08/2019,6,PC004470, -   , 20.00 , 20.00 ,DUNCAN & TODD - Eye Care Vouchers,Strategic Director 1,60207,Health And Safety Supplies And Services,Property Services
Cambridge City Council,GPC,05/08/2019,6,PC004470, -   , 25.00 , 25.00 ,DUNCAN & TODD - Eye Care,Strategic Director 1,60207,Health And Safety Supplies And Services,Accountancy and Support Services
Cambridge City Council,GPC,05/08/2019,6,PC004470, -   , 20.00 , 20.00 ,DUNCAN & TODD - Eye Care Vo,Strategic Director 1,63900,Miscellaneous Expenses,Corporate Business Support
Cambridge City Council,GPC,05/08/2019,6,PC004554, 0.70 , 3.48 , 4.18 ,AMZNMktplace,Strategic Director 2,61500,Consumables,Children & Young People's Service
Cambridge City Council,GPC,05/08/2019,6,PC004470, -   , 25.00 , 25.00 ,DUNCAN & TODD- Eye care,Strategic Director 2,60207,Health And Safety Supplies And Services,Engagement and Inclusion (previously Community Projects now
Cambridge City Council,GPC,05/08/2019,5,PC004623, -   , 27.59 , 27.59 ,TESCO STORE 2065,Strategic Director 2,61900,Catering And Vending Supplies,The Meadows Community Centre
Cambridge City Council,GPC,05/08/2019,5,PC004625, -   , 6.90 , 6.90 ,ONE STOP  5026,Strategic Director 2,61900,Catering And Vending Supplies,The Meadows Community Centre
Cambridge City Council,GPC,05/08/2019,5,PC004623, -   , 97.11 , 97.11 ,TESCO STORE 2065,Strategic Director 2,61900,Catering And Vending Supplies,The Meadows Community Centre
Cambridge City Council,GPC,05/08/2019,5,PC004624, -   , 35.00 , 35.00 ,TESCO STORE 2065,Strategic Director 2,61900,Catering And Vending Supplies,The Meadows Community Centre
Cambridge City Council,GPC,05/08/2019,5,PC004460, -   , 6.92 , 6.92 ,ALDI 84 776,Strategic Director 2,62900,Events,Clay Farm Community Centre
Cambridge City Council,GPC,05/08/2019,6,PC004470, -   , 20.00 , 20.00 ,DUNCAN & TODD - Eye Care VoUNCAN & TODD,Strategic Director 2,60207,Health And Safety Supplies And Services,Customer Access Strategy - Customer Service Centre
Cambridge City Council,GPC,05/08/2019,6,PC004470, -   , 25.00 , 25.00 ,DUNCAN & TODD- Eye care,Strategic Director 2,60207,Health And Safety Supplies And Services,Customer Access Strategy - Customer Service Centre
Cambridge City Council,GPC,05/08/2019,6,PC004470, -   , 25.00 , 25.00 ,DUNCAN & TODD- Eye care,Strategic Director 2,63900,Miscellaneous Expenses,Syrian Resettlement
Cambridge City Council,GPC,05/08/2019,6,PC004470, -   , 25.00 , 25.00 ,DUNCAN & TODD-- Eye care,Strategic Director 2,63900,Miscellaneous Expenses,Syrian Resettlement
Cambridge City Council,GPC,05/08/2019,6,PC004470, -   , 20.00 , 20.00 ,DUNCAN & TODD - Eye Care Vo,Strategic Director 2,60117,Staff Other Expenses,Housing Advice Service
Cambridge City Council,GPC,05/08/2019,5,PC004491, -   , 360.00 , 360.00 ,SHELTER,Strategic Director 2,64300,Conference Expenses,Housing Advice Service
Cambridge City Council,GPC,05/08/2019,6,PC004470, -   , 25.00 , 25.00 ,DUNCAN & TODD - Eye care,Strategic Director 2,60117,Staff Other Expenses,Environmental Health Operational Support
Cambridge City Council,GPC,05/08/2019,5,PC004471, -   , 390.00 , 390.00 ,CHARTERED INSTITUTE OF EN,Strategic Director 2,64300,Conference Expenses,Environmental Health Operational Support
Cambridge City Council,GPC,05/08/2019,6,PC004470, -   , 20.00 , 20.00 ,DUNCAN & TODD- Eye Care Vo,Strategic Director 2,63900,Miscellaneous Expenses,Resident Involvement
Cambridge City Council,GPC,05/08/2019,5,PC004572, -   , 39.98 , 39.98 ,AMZNMktplace,Strategic Director 2,62000,"Clothes, Uniform And Laundry",City Homes Expenditure
Cambridge City Council,GPC,05/08/2019,5,PC004571, -   , 11.97 , 11.97 ,AMZNMktplace,Strategic Director 2,61703,"Purchase - Equipment, Furniture And Materials",Temporary Accommodation
Cambridge City Council,GPC,05/08/2019,5,PC004573, -   , 24.02 , 24.02 ,AMZNMktplace,Strategic Director 2,61703,"Purchase - Equipment, Furniture And Materials",Temporary Accommodation
Cambridge City Council,GPC,05/08/2019,6,PC004470, -   , 25.00 , 25.00 ,DUNCAN & TODD- Eye care,Strategic Director 2,60207,Health And Safety Supplies And Services,Independent Living Services
Cambridge City Council,GPC,05/08/2019,5,PC004712, -   , 79.99 , 79.99 ,WWW.PESTCONTROLSUPERMA,Strategic Director 2,60201,Cyclical/Planned Maintenance - Building,Guildhall
Cambridge City Council,GPC,05/08/2019,6,PC004470, -   , 20.00 , 20.00 ,DUNCAN & TODD - Eye Care Vo,Strategic Director 2,60207,Health And Safety Supplies And Services,Housing Benefits
Cambridge City Council,GPC,05/08/2019,6,PC004470, -   , 25.00 , 25.00 ,DUNCAN & TODD-- Eye care,Strategic Director 2,60207,Health And Safety Supplies And Services,Housing Benefits
Cambridge City Council,GPC,05/08/2019,6,PC004470, -   , 20.00 , 20.00 ,DUNCAN & TODD - Eye Care Vo,Strategic Director 2,63900,Miscellaneous Expenses,Street Cleaning - Old
Cambridge City Council,GPC,05/08/2019,6,PC004470, -   , 20.00 , 20.00 ,DUNCAN & TODD - Eye Care Vo,Strategic Director 2,63900,Miscellaneous Expenses,Public Realm Enforcement
Cambridge City Council,GPC,05/08/2019,6,PC004470, -   , 25.00 , 25.00 ,DUNCAN & TODD-- Eye care,Strategic Director 2,60117,Staff Other Expenses,S&OS Community Engagement
Cambridge City Council,GPC,06/08/2019,6,PC004521, 3.47 , 17.34 , 20.81 ,TP COTTENHAM,Strategic Director 1,60503,Grounds Maintenance,Cambridge Crematorium
Cambridge City Council,GPC,06/08/2019,6,PC004555, -   , 27.60 , 27.60 ,TESCO STORE 2889,Strategic Director 2,61900,Catering And Vending Supplies,Children & Young People's Service
Cambridge City Council,GPC,06/08/2019,5,PC004481, -   , 12.43 , 12.43 ,Amazon.co.uk*MH9OB0QU4,Strategic Director 2,61703,"Purchase - Equipment, Furniture And Materials",Buchan Street Community Facility
Cambridge City Council,GPC,06/08/2019,5,PC004638, -   , 68.80 , 68.80 ,GREATER ANGLIA,Strategic Director 2,60914,Public Transport For Staff And Members,Neighbourhood Community Development
Cambridge City Council,GPC,06/08/2019,5,PC004713, -   , 69.88 , 69.88 ,CAMBS CLIFTON,Strategic Director 2,60201,Cyclical/Planned Maintenance - Building,Admin Building Allocation
Cambridge City Council,GPC,06/08/2019,6,PC004703, -   , 24.41 , 24.41 ,MARKS&SPENCER PLC SACA,Strategic Director 2,51601,Catering Income (B),Corn Exchange and Guildhalls
Cambridge City Council,GPC,06/08/2019,6,PC004704, -   , 10.40 , 10.40 ,MARKS&SPENCER PLC SACA,Strategic Director 2,51601,Catering Income (B),Corn Exchange and Guildhalls
Cambridge City Council,GPC,06/08/2019,6,PC004705, -   , 13.20 , 13.20 ,SAINSBURYS S/MKTS,Strategic Director 2,51601,Catering Income (B),Corn Exchange and Guildhalls
Cambridge City Council,GPC,06/08/2019,6,PC004691, -   ,-51.96 ,-51.96 ,CURRYS,Strategic Director 2,61703,"Purchase - Equipment, Furniture And Materials",Folk Festival
Cambridge City Council,GPC,06/08/2019,6,PC004692, -   ,-12.60 ,-12.60 ,HOMEBASE LTD,Strategic Director 2,61703,"Purchase - Equipment, Furniture And Materials",Folk Festival
Cambridge City Council,GPC,07/08/2019,5,PCARD, -   , 865.85 , 865.85 ,Purchase Card System,Strategic Director 1,80009,Disbursement Control - Events,General Fund Balance Sheet
Cambridge City Council,GPC,07/08/2019,5,LEDGER EV, -   ,-865.85 ,-865.85 ,Purchase Card System,Strategic Director 1,80009,Disbursement Control - Events,General Fund Balance Sheet
Cambridge City Council,GPC,07/08/2019,5,PC004455, -   , 31.32 , 31.32 ,BERRYCROFT STORES,Strategic Director 1,61703,"Purchase - Equipment, Furniture And Materials",Cambridge Crematorium
Cambridge City Council,GPC,07/08/2019,6,PC004556, -   , 7.98 , 7.98 ,AMZNMktplace,Strategic Director 2,61500,Consumables,Children & Young People's Service
Cambridge City Council,GPC,07/08/2019,5,PC004482, -   , 112.07 , 112.07 ,TESCO STORE 2065,Strategic Director 2,64200,Subsistence,Buchan Street Community Facility
Cambridge City Council,GPC,07/08/2019,5,PC004591, 12.86 , 64.32 , 77.18 ,AMZNMktplace,Strategic Director 2,61703,"Purchase - Equipment, Furniture And Materials",Sport - Ex Ref
Cambridge City Council,GPC,07/08/2019,5,PC004603, -   , 35.97 , 35.97 ,AMZNMktplace,Strategic Director 2,62002,Stationery,Building Services - Indirect
Cambridge City Council,GPC,07/08/2019,6,PC004694, -   , 10.37 , 10.37 ,POSTOFFICE SELFSERVICE,Strategic Director 2,64100,Postage And Courier Services,City Events
Cambridge City Council,GPC,08/08/2019,5,PC004493, -   , 20.00 , 20.00 ,B & Q 1237,Strategic Director 2,60804,Other Premises Related Costs,Town Hall Lettings
Cambridge City Council,GPC,08/08/2019,5,PC004492, -   , 12.99 , 12.99 ,SCREWFIX DIRECT,Strategic Director 2,60201,Cyclical/Planned Maintenance - Building,Town Hall Lettings
Cambridge City Council,GPC,08/08/2019,5,PC004574, -   , 49.00 , 49.00 ,CO-OP GROUP 019959,Strategic Director 2,60303,Electricity,Temporary Accommodation
Cambridge City Council,GPC,08/08/2019,5,PC004577, -   , 49.00 , 49.00 ,CO-OP GROUP 019959,Strategic Director 2,60303,Electricity,Temporary Accommodation
Cambridge City Council,GPC,08/08/2019,5,PC004578, -   , 49.00 , 49.00 ,CO-OP GROUP 019959,Strategic Director 2,60303,Electricity,Temporary Accommodation
Cambridge City Council,GPC,08/08/2019,5,PC004581, -   , 49.00 , 49.00 ,CO-OP GROUP 019959,Strategic Director 2,60303,Electricity,Temporary Accommodation
Cambridge City Council,GPC,08/08/2019,5,PC004575, -   , 49.00 , 49.00 ,CO-OP GROUP 019959,Strategic Director 2,60305,Gas,Temporary Accommodation
Cambridge City Council,GPC,08/08/2019,5,PC004576, -   , 49.00 , 49.00 ,CO-OP GROUP 019959,Strategic Director 2,60305,Gas,Temporary Accommodation
Cambridge City Council,GPC,08/08/2019,5,PC004579, -   , 49.00 , 49.00 ,CO-OP GROUP 019959,Strategic Director 2,60305,Gas,Temporary Accommodation
Cambridge City Council,GPC,08/08/2019,5,PC004580, -   , 49.00 , 49.00 ,CO-OP GROUP 019959,Strategic Director 2,60305,Gas,Temporary Accommodation
Cambridge City Council,GPC,08/08/2019,5,PC004716, -   , 66.17 , 66.17 ,Amazon.co.uk*MH98L5DR4,Strategic Director 2,60201,Cyclical/Planned Maintenance - Building,Guildhall
Cambridge City Council,GPC,08/08/2019,5,PC004717, -   , 31.64 , 31.64 ,Amazon.co.uk*MH8KI5D04,Strategic Director 2,60201,Cyclical/Planned Maintenance - Building,Guildhall
Cambridge City Council,GPC,08/08/2019,5,PC004715, -   , 10.00 , 10.00 ,WILKO CAMBRIDGE,Strategic Director 2,61703,"Purchase - Equipment, Furniture And Materials",Mandela House
Cambridge City Council,GPC,08/08/2019,5,PC004714, -   , 107.88 , 107.88 ,AMZNMktplace,Strategic Director 2,61703,"Purchase - Equipment, Furniture And Materials",Admin Building Allocation
Cambridge City Council,GPC,08/08/2019,6,PC004695, -   , 3.32 , 3.32 ,WH SMITH,Strategic Director 2,64100,Postage And Courier Services,City Events
Cambridge City Council,GPC,08/08/2019,6,PC004696, -   , 9.17 , 9.17 ,POSTOFFICE SELFSERVICE,Strategic Director 2,64100,Postage And Courier Services,City Events
Cambridge City Council,GPC,08/08/2019,6,PC004697, -   , 9.17 , 9.17 ,POSTOFFICE SELFSERVICE,Strategic Director 2,64100,Postage And Courier Services,City Events
Cambridge City Council,GPC,09/08/2019,6,PC004616, -   , 13.80 , 13.80 ,TRAINLINE,Strategic Director 1,60914,Public Transport For Staff And Members,Procurement
Cambridge City Council,GPC,09/08/2019,5,PC004628, 3.40 , 17.00 , 20.40 ,CAMBRIDGE CITY COUNCIL,Strategic Director 2,61100,Mileage Allowances,The Meadows Community Centre
Cambridge City Council,GPC,09/08/2019,5,PC004626, 6.50 , 32.50 , 39.00 ,MARKS&SPENCER PLC SACA,Strategic Director 2,61703,"Purchase - Equipment, Furniture And Materials",The Meadows Community Centre
Cambridge City Council,GPC,09/08/2019,5,PC004627, 10.85 , 54.25 , 65.10 ,DEBENHAMS,Strategic Director 2,61703,"Purchase - Equipment, Furniture And Materials",The Meadows Community Centre
Cambridge City Council,GPC,09/08/2019,6,PC004706, 33.59 , 167.94 , 201.53 ,BOOKER LIMITED CAMBRIDGE,Strategic Director 2,51600,Catering Income (S),Corn Exchange and Guildhalls
Cambridge City Council,GPC,09/08/2019,5,PC004651, 1.76 , 8.80 , 10.56 ,CAPITA GAS,Strategic Director 2,60225,Housing Repairs - Gas Maintenance Contract,Gas Servicing
Cambridge City Council,GPC,09/08/2019,6,PC004698, -   , 30.82 , 30.82 ,WORLD OF BOOKS,Strategic Director 2,62002,Stationery,City Events
Cambridge City Council,GPC,09/08/2019,6,PC004693, -   , 16.62 , 16.62 ,PARCELFORCE WORLDWIDE,Strategic Director 2,64100,Postage And Courier Services,Folk Festival
Cambridge City Council,GPC,10/08/2019,5,PC004495, 0.66 , 3.27 , 3.93 ,JUSTPARK,Strategic Director 1,60914,Public Transport For Staff And Members,Parking Administration
Cambridge City Council,GPC,11/08/2019,5,PC004483, -   , 9.95 , 9.95 ,AMZNMKTPLACE AMAZON.CO.UK,Strategic Director 2,61703,"Purchase - Equipment, Furniture And Materials",Buchan Street Community Facility
Cambridge City Council,GPC,11/08/2019,5,PC004645, 4.21 , 21.07 , 25.28 ,ADOBE  PS CREATIVE CLD,Strategic Director 2,64800,Membership And Subscriptions,Corn Exchange and Guildhalls
Cambridge City Council,GPC,12/08/2019,5,PC004606, -   , 15.80 , 15.80 ,MARKS&SPENCER PLC SACA,Chief Executive,64500,Members Allowances,Civic Affairs and Twinning
Cambridge City Council,GPC,12/08/2019,5,PC004629, -   , 29.03 , 29.03 ,TESCO STORE 2065,Strategic Director 2,61900,Catering And Vending Supplies,The Meadows Community Centre
Cambridge City Council,GPC,12/08/2019,5,PC004629, -   , 151.16 , 151.16 ,TESCO STORE 2065,Strategic Director 2,61900,Catering And Vending Supplies,The Meadows Community Centre
Cambridge City Council,GPC,12/08/2019,5,PC004494, -   , 9.82 , 9.82 ,SCREWFIX DIRECT,Strategic Director 2,60804,Other Premises Related Costs,Town Hall Lettings
Cambridge City Council,GPC,12/08/2019,6,PC004608, -   , 40.00 , 40.00 ,HUNTINGDONSHIRE D C,Director of Planning,64200,Subsistence,3C Building Control
Cambridge City Council,GPC,13/08/2019,6,PC004557, -   , 52.98 , 52.98 ,PETES QUALITY MEATS,Strategic Director 2,61900,Catering And Vending Supplies,Neighbourhood Community Development
Cambridge City Council,GPC,13/08/2019,6,PC004558, -   , 81.58 , 81.58 ,TESCO STORE 2889,Strategic Director 2,61900,Catering And Vending Supplies,Neighbourhood Community Development
Cambridge City Council,GPC,13/08/2019,6,PC004517, -   ,-62.96 ,-62.96 ,FACEBK *PS265SSC92,Strategic Director 2,61931,Cambridge Live Social Media,Corn Exchange and Guildhalls
Cambridge City Council,GPC,13/08/2019,6,PC004707, 11.03 , 55.14 , 66.17 ,BOOKER LIMITED CAMBRIDGE,Strategic Director 2,51600,Catering Income (S),Corn Exchange and Guildhalls
Cambridge City Council,GPC,13/08/2019,6,PC004506, -   , 57.60 , 57.60 ,STAGECOACH SERVICE,Strategic Director 2,60914,Public Transport For Staff And Members,Syrian Resettlement
Cambridge City Council,GPC,13/08/2019,5,PC004472, -   , 240.00 , 240.00 ,CHARTERED INSTITUTE OF EN,Strategic Director 2,64300,Conference Expenses,Environmental Health Operational Support
Cambridge City Council,GPC,13/08/2019,5,PC004525, -   , 1.50 , 1.50 ,WWW.GOV.UK,Strategic Director 2,63900,Miscellaneous Expenses,Local Taxation
Cambridge City Council,GPC,13/08/2019,6,PC004609, 5.60 , 27.99 , 33.59 ,AMZNMktplace,Director of Planning,61703,"Purchase - Equipment, Furniture And Materials",3C Building Control
Cambridge City Council,GPC,13/08/2019,6,PC004610, 1.24 , 6.20 , 7.44 ,AMZNMktplace,Director of Planning,61703,"Purchase - Equipment, Furniture And Materials",3C Building Control
Cambridge City Council,GPC,14/08/2019,6,PC004617, -   , 25.00 , 25.00 ,TRAINLINE,Strategic Director 1,60914,Public Transport For Staff And Members,Procurement
Cambridge City Council,GPC,14/08/2019,5,PC004484, -   , 113.80 , 113.80 ,TESCO STORE 2065,Strategic Director 2,64200,Subsistence,Buchan Street Community Facility
Cambridge City Council,GPC,14/08/2019,5,PC004469, -   , 60.10 , 60.10 ,WWW.DORRINGTONS.COM,Strategic Director 2,64200,Subsistence,The Meadows Community Centre
Cambridge City Council,GPC,14/08/2019,5,PC004461, 9.04 , 45.17 , 54.21 ,WWW.NISBETS.COM,Strategic Director 2,61703,"Purchase - Equipment, Furniture And Materials",Clay Farm Community Centre
Cambridge City Council,GPC,14/08/2019,5,PC004640, -   , 54.55 , 54.55 ,AMAZON.CO.UK*MH9D44UI4 AM,Strategic Director 2,61703,"Purchase - Equipment, Furniture And Materials",Clay Farm Community Centre
Cambridge City Council,GPC,14/08/2019,5,PC004476, -   , 20.00 , 20.00 ,COUNTY COURT,Strategic Director 2,63200,Legal Fees,Environmental Health Operational Support
Cambridge City Council,GPC,14/08/2019,5,PC004604, -   , 177.61 , 177.61 ,WWW.DOORCONTROLSDIRECT,Strategic Director 2,61703,"Purchase - Equipment, Furniture And Materials",Building Maintenance Response - Direct
Cambridge City Council,GPC,14/08/2019,5,PC004465, -   , 2.00 , 2.00 ,CAMBRIDGE CITY COUNCIL,Strategic Director 2,51501,Car Parking Fees - Off Street Income,Open Space Asset Management
Cambridge City Council,GPC,15/08/2019,5,PC004641, -   , 62.00 , 62.00 ,DUNELM LTD,Strategic Director 1,61703,"Purchase - Equipment, Furniture And Materials",Housing Revenue Account - Net Cost of Service
Cambridge City Council,GPC,15/08/2019,5,PC004464, -   , 183.00 , 183.00 ,POST OFFICE COUNTER,Strategic Director 1,64100,Postage And Courier Services,Cambridge Crematorium
Cambridge City Council,GPC,15/08/2019,5,PC004463, -   , 22.00 , 22.00 ,CAMBRIDGE REGISTER,Strategic Director 1,63900,Miscellaneous Expenses,Cambridge Crematorium
Cambridge City Council,GPC,15/08/2019,5,PC004639, -   , 25.47 , 25.47 ,AMZNMKTPLACE AMAZON.CO.UK,Strategic Director 2,61703,"Purchase - Equipment, Furniture And Materials",Clay Farm Community Centre
Cambridge City Council,GPC,15/08/2019,5,PC004582, -   , 49.00 , 49.00 ,CO-OP GROUP 019959,Strategic Director 2,60303,Electricity,Temporary Accommodation
Cambridge City Council,GPC,15/08/2019,5,PC004584, -   , 49.00 , 49.00 ,CO-OP GROUP 019959,Strategic Director 2,60303,Electricity,Temporary Accommodation
Cambridge City Council,GPC,15/08/2019,5,PC004583, -   , 49.00 , 49.00 ,CO-OP GROUP 019959,Strategic Director 2,60305,Gas,Temporary Accommodation
Cambridge City Council,GPC,15/08/2019,5,PC004585, -   , 49.00 , 49.00 ,CO-OP GROUP 019959,Strategic Director 2,60305,Gas,Temporary Accommodation
Cambridge City Council,GPC,15/08/2019,5,PC004652, 0.88 , 4.40 , 5.28 ,CAPITA GAS,Strategic Director 2,60225,Housing Repairs - Gas Maintenance Contract,Gas Servicing
Cambridge City Council,GPC,15/08/2019,5,PC004635, -   , 33.57 , 33.57 ,CHEF CENTRAL CAMBRIDGE,Strategic Director 2,61703,"Purchase - Equipment, Furniture And Materials",Street Cleaning - Old
Cambridge City Council,GPC,16/08/2019,5,PC004646, 82.50 , 412.50 , 495.00 ,FALMOUTH FLEXIBLE,Strategic Director 2,60115,Staff Development And Training,City Events
Cambridge City Council,GPC,16/08/2019,5,PC004477, -   , 114.00 , 114.00 ,WWW.CIRIA.ORG,Strategic Director 2,64300,Conference Expenses,Environmental Health Operational Support
Cambridge City Council,GPC,17/08/2019,5,PC004647, -   , 82.21 , 82.21 ,FACEBK BVZLZMJAX2,Strategic Director 2,61931,Cambridge Live Social Media,Corn Exchange and Guildhalls
Cambridge City Council,GPC,17/08/2019,5,PC004647, -   , 99.76 , 99.76 ,FACEBK BVZLZMJAX2,Strategic Director 2,61931,Cambridge Live Social Media,Corn Exchange and Guildhalls
Cambridge City Council,GPC,17/08/2019,5,PC004647, -   , 24.53 , 24.53 ,FACEBK BVZLZMJAX2,Strategic Director 2,61931,Cambridge Live Social Media,Corn Exchange and Guildhalls
Cambridge City Council,GPC,17/08/2019,5,PC004647, -   , 37.44 , 37.44 ,FACEBK BVZLZMJAX2,Strategic Director 2,61931,Cambridge Live Social Media,Corn Exchange and Guildhalls
Cambridge City Council,GPC,17/08/2019,5,PC004647, -   , 6.06 , 6.06 ,FACEBK BVZLZMJAX2,Strategic Director 2,61931,Cambridge Live Social Media,City Events
Cambridge City Council,GPC,17/08/2019,5,PC004647, -   , 50.00 , 50.00 ,FACEBK BVZLZMJAX2,Strategic Director 2,61931,Cambridge Live Social Media,Folk Festival
Cambridge City Council,GPC,18/08/2019,6,PC004518, 1.67 , 8.32 , 9.99 ,Spotify P0C5519180,Strategic Director 2,61931,Cambridge Live Social Media,Folk Festival
Cambridge City Council,GPC,18/08/2019,5,PC004648, -   , 8.32 , 8.32 ,Spotify UK,Strategic Director 2,61950,D�cor,Folk Festival
Cambridge City Council,GPC,19/08/2019,5,PC004607, -   , 15.90 , 15.90 ,MARKS&SPENCER PLC SACA,Chief Executive,64500,Members Allowances,Civic Affairs and Twinning
Cambridge City Council,GPC,19/08/2019,6,PC004522, 1.50 , 7.50 , 9.00 ,WILKO RETAIL LIMITED,Strategic Director 1,60503,Grounds Maintenance,Cambridge Crematorium
Cambridge City Council,GPC,19/08/2019,6,PC004524, 8.33 , 41.66 , 49.99 ,SCREWFIX CAMBRIDGE KINGS,Strategic Director 1,60503,Grounds Maintenance,Cambridge Crematorium
Cambridge City Council,GPC,19/08/2019,6,PC004523, 4.65 , 23.25 , 27.90 ,HOMEBASE LTD,Strategic Director 1,61702,"Maintenance - Equipment, Furniture And Materials",Cambridge Crematorium
Cambridge City Council,GPC,19/08/2019,5,PC004630, -   , 39.68 , 39.68 ,TESCO STORE 2065,Strategic Director 2,61900,Catering And Vending Supplies,The Meadows Community Centre
Cambridge City Council,GPC,19/08/2019,5,PC004630, -   , 87.61 , 87.61 ,TESCO STORE 2065,Strategic Director 2,61900,Catering And Vending Supplies,The Meadows Community Centre
Cambridge City Council,GPC,19/08/2019,6,PC004559, -   , 126.30 , 126.30 ,BOOKER LIMITED CAMBRIDGE,Strategic Director 2,61900,Catering And Vending Supplies,Neighbourhood Community Development
Cambridge City Council,GPC,19/08/2019,6,PC004559, 7.39 , 36.95 , 44.34 ,BOOKER LIMITED CAMBRIDGE,Strategic Director 2,61900,Catering And Vending Supplies,Neighbourhood Community Development
Cambridge City Council,GPC,19/08/2019,6,PC004507, -   , 57.60 , 57.60 ,STAGECOACH SERVICE,Strategic Director 2,60914,Public Transport For Staff And Members,Syrian Resettlement
Cambridge City Council,GPC,19/08/2019,6,PC004508, -   , 57.60 , 57.60 ,STAGECOACH SERVICE,Strategic Director 2,60914,Public Transport For Staff And Members,Syrian Resettlement
Cambridge City Council,GPC,19/08/2019,6,PC004509, -   , 57.60 , 57.60 ,STAGECOACH SERVICE,Strategic Director 2,60914,Public Transport For Staff And Members,Syrian Resettlement
Cambridge City Council,GPC,20/08/2019,5,PC004586, -   , 11.64 , 11.64 ,DUNELM LTD,Strategic Director 1,61703,"Purchase - Equipment, Furniture And Materials",Housing Revenue Account - Net Cost of Service
Cambridge City Council,GPC,20/08/2019,6,PC004560, -   , 5.99 , 5.99 ,AMZNMktplace,Strategic Director 2,61500,Consumables,Children & Young People's Service
Cambridge City Council,GPC,20/08/2019,5,PC004631, -   , 4.10 , 4.10 ,TESCO STORE 2065,Strategic Director 2,61900,Catering And Vending Supplies,The Meadows Community Centre
Cambridge City Council,GPC,20/08/2019,5,PC004632, -   , 28.80 , 28.80 ,CHEF CENTRAL CAMBRIDGE,Strategic Director 2,61900,Catering And Vending Supplies,The Meadows Community Centre
Cambridge City Council,GPC,20/08/2019,6,PC004561, -   , 3.00 , 3.00 ,CO-OP GROUP 019451,Strategic Director 2,61900,Catering And Vending Supplies,Neighbourhood Community Development
Cambridge City Council,GPC,20/08/2019,6,PC004510, -   , 57.60 , 57.60 ,STAGECOACH SERVICE,Strategic Director 2,60914,Public Transport For Staff And Members,Syrian Resettlement
Cambridge City Council,GPC,20/08/2019,6,PC004511, -   , 57.60 , 57.60 ,STAGECOACH SERVICE,Strategic Director 2,60914,Public Transport For Staff And Members,Syrian Resettlement
Cambridge City Council,GPC,20/08/2019,5,PC004478, -   , 280.00 , 280.00 ,CHARTERED INSTITUTE OF EN,Strategic Director 2,64300,Conference Expenses,Environmental Health Operational Support
Cambridge City Council,GPC,20/08/2019,5,PC004496, -   , 0.99 , 0.99 ,PAYPAL *WITTICPRINT,Strategic Director 2,62002,Stationery,City Homes Expenditure
Cambridge City Council,GPC,20/08/2019,5,PC004497, -   , 143.96 , 143.96 ,PAYPAL *HODGEPODGEI,Strategic Director 2,62002,Stationery,City Homes Expenditure
Cambridge City Council,GPC,20/08/2019,5,PC004642, -   , 48.25 , 48.25 ,BIMBLE SOLAR,Strategic Director 2,60503,Grounds Maintenance,City Homes Estate Management
Cambridge City Council,GPC,20/08/2019,5,PC004653, -   , 380.50 , 380.50 ,TRAVELODGE GB0000,Strategic Director 2,64200,Subsistence,Revenue Overheads
Cambridge City Council,GPC,20/08/2019,6,PC004867, -   , 274.80 , 274.80 ,PREMIER INN 44537425,Strategic Director 2,64300,Conference Expenses,Revenue Overheads
Cambridge City Council,GPC,20/08/2019,5,PC004636, -   , 32.00 , 32.00 ,DVLA TACHOGRAPH WEB,Strategic Director 2,61703,"Purchase - Equipment, Furniture And Materials",Grounds Maintenance & Street Cleaning
Cambridge City Council,GPC,20/08/2019,6,PC004699, -   , 6.98 , 6.98 ,WH SMITH,Strategic Director 2,62002,Stationery,City Events
Cambridge City Council,GPC,20/08/2019,5,PC004718, -   , 10.47 , 10.47 ,AMZNMKTPLACE AMAZON.CO.UK,Strategic Director 2,61703,"Purchase - Equipment, Furniture And Materials",Facilities Management
Cambridge City Council,GPC,21/08/2019,6,PC004831, -   , 19.97 , 19.97 ,WWW.POPPYSHOP.ORG.UK,Chief Executive,60804,Other Premises Related Costs,Civic Affairs and Twinning
Cambridge City Council,GPC,21/08/2019,6,PC004832, -   , 118.50 , 118.50 ,WWW.POPPYLOTTERY.SAFEA,Chief Executive,60804,Other Premises Related Costs,Civic Affairs and Twinning
Cambridge City Council,GPC,21/08/2019,6,PC004830, -   , 112.00 , 112.00 ,MARKS&SPENCER PLC,Chief Executive,64500,Members Allowances,Civic Affairs and Twinning
Cambridge City Council,GPC,21/08/2019,6,PC004749, -   , 92.21 , 92.21 ,TESCO STORE 2065,Strategic Director 2,64200,Subsistence,Buchan Street Community Facility
Cambridge City Council,GPC,21/08/2019,7,PC004752, -   , 1.95 , 1.95 ,AMZNMktplace,Strategic Director 2,61703,"Purchase - Equipment, Furniture And Materials",Town Hall Lettings
Cambridge City Council,GPC,21/08/2019,6,PC004760, -   , 79.99 , 79.99 ,AMZNMKTPLACE AMAZON.CO.UK,Strategic Director 2,62002,Stationery,City Homes Expenditure
Cambridge City Council,GPC,21/08/2019,7,PC004816, -   ," 1,418.23 "," 1,418.23 ",WWW.FIRSTFENCE.CO.UK,Strategic Director 2,61703,"Purchase - Equipment, Furniture And Materials",Building Maintenance Response - Direct
Cambridge City Council,GPC,21/08/2019,7,PC004861, -   , 60.21 , 60.21 ,FACEBK WWN5YMNAX2,Strategic Director 2,61931,Cambridge Live Social Media,Corn Exchange and Guildhalls
Cambridge City Council,GPC,21/08/2019,7,PC004861, -   , 27.94 , 27.94 ,FACEBK WWN5YMNAX2,Strategic Director 2,61931,Cambridge Live Social Media,Corn Exchange and Guildhalls
Cambridge City Council,GPC,21/08/2019,7,PC004861, -   , 5.14 , 5.14 ,FACEBK WWN5YMNAX2,Strategic Director 2,61931,Cambridge Live Social Media,Corn Exchange and Guildhalls
Cambridge City Council,GPC,22/08/2019,6,PC004833, -   , 33.66 , 33.66 ,MARKS&SPENCER PLC SACA,Chief Executive,64500,Members Allowances,Civic Affairs and Twinning
Cambridge City Council,GPC,22/08/2019,6,PC004834, -   , 19.50 , 19.50 ,MARKS&SPENCER PLC SACA,Chief Executive,64500,Members Allowances,Civic Affairs and Twinning
Cambridge City Council,GPC,22/08/2019,7,PC004794, -   , 267.05 , 267.05 ,ARGOS RETAIL GROUP,Strategic Director 1,61703,"Purchase - Equipment, Furniture And Materials",Housing Revenue Account - Net Cost of Service
Cambridge City Council,GPC,22/08/2019,7,PC004862, 12.00 , 59.99 , 71.99 ,WWW.INSTANTPRINT.C,Strategic Director 2,62001,Printing,Corn Exchange and Guildhalls
Cambridge City Council,GPC,22/08/2019,6,PC004739, -   , 25.00 , 25.00 ,DISCLOSURE AND BARRING,Strategic Director 2,60116,Staff Recruitment Costs,Customer Access Strategy - Customer Service Centre
Cambridge City Council,GPC,22/08/2019,7,PC004791, -   , 49.00 , 49.00 ,CO-OP GROUP 019959,Strategic Director 2,60303,Electricity,Temporary Accommodation
Cambridge City Council,GPC,22/08/2019,7,PC004792, -   , 49.00 , 49.00 ,CO-OP GROUP 019959,Strategic Director 2,60305,Gas,Temporary Accommodation
Cambridge City Council,GPC,22/08/2019,7,PC004793, -   , 49.00 , 49.00 ,CO-OP GROUP 019959,Strategic Director 2,60305,Gas,Temporary Accommodation
Cambridge City Council,GPC,22/08/2019,7,PC004817, -   , 79.18 , 79.18 ,CENTRAL SOURCE LTD,Strategic Director 2,61703,"Purchase - Equipment, Furniture And Materials",Building Maintenance Response - Direct
Cambridge City Council,GPC,22/08/2019,6,PC004879, -   , 199.20 , 199.20 ,WWW.OFFICEFURNITUREONL,Strategic Director 2,61703,"Purchase - Equipment, Furniture And Materials",Admin Building Allocation
Cambridge City Council,GPC,23/08/2019,6,PC004785, -   , 17.60 , 17.60 ,TESCO STORE 2889,Strategic Director 2,61900,Catering And Vending Supplies,Neighbourhood Community Development
Cambridge City Council,GPC,23/08/2019,7,PC004763, -   , 57.60 , 57.60 ,STAGECOACH SERVICE,Strategic Director 2,60914,Public Transport For Staff And Members,Syrian Resettlement
Cambridge City Council,GPC,23/08/2019,6,PC004743, -   , 26.99 , 26.99 ,AMZNMktplace,Strategic Director 2,60207,Health And Safety Supplies And Services,Environmental Health Operational Support
Cambridge City Council,GPC,27/08/2019,6,PC004845, -   , 94.73 , 94.73 ,TESCO STORE 2065,Strategic Director 2,61900,Catering And Vending Supplies,The Meadows Community Centre
Cambridge City Council,GPC,27/08/2019,6,PC004786, -   , 63.49 , 63.49 ,TESCO STORES 4483,Strategic Director 2,61900,Catering And Vending Supplies,Neighbourhood Community Development
Cambridge City Council,GPC,27/08/2019,6,PC004787, -   , 10.35 , 10.35 ,CO-OP GROUP 019451,Strategic Director 2,61900,Catering And Vending Supplies,Neighbourhood Community Development
Cambridge City Council,GPC,27/08/2019,7,PC004809, 6.50 , 32.50 , 39.00 ,PLAYFOOTBALL OBO BETTE,Strategic Director 2,53702,Pitch Hire,Active Lifestyles - Communities (ex Sports Development)
Cambridge City Council,GPC,27/08/2019,7,PC004764, -   , 57.60 , 57.60 ,STAGECOACH SERVICE,Strategic Director 2,60914,Public Transport For Staff And Members,Syrian Resettlement
Cambridge City Council,GPC,27/08/2019,7,PC004818, -   , 129.04 , 129.04 ,AMZNMktplace,Strategic Director 2,62003,"Books, Publications And Resources",Building Services - Indirect
Cambridge City Council,GPC,28/08/2019,6,PC004745, -   , 157.00 , 157.00 ,WWW.AAT-ORG.UK,Strategic Director 1,64800,Membership And Subscriptions,Accountancy and Support Services
Cambridge City Council,GPC,28/08/2019,6,PC004746, -   , 158.00 , 158.00 ,WWW.AAT-ORG.UK,Strategic Director 1,64800,Membership And Subscriptions,Accountancy and Support Services
Cambridge City Council,GPC,29/08/2019,5,PCARD, -   , 726.48 , 726.48 ,Purchase Card System,Strategic Director 1,80009,Disbursement Control - Events,General Fund Balance Sheet
Cambridge City Council,GPC,29/08/2019,5,LEDGER EV, -   ,-726.48 ,-726.48 ,Purchase Card System,Strategic Director 1,80009,Disbursement Control - Events,General Fund Balance Sheet
Cambridge City Council,GPC,29/08/2019,6,PC004780, -   , 134.98 , 134.98 ,SCREWFIX DIRECT,Strategic Director 1,62000,"Clothes, Uniform And Laundry",Fleet Management - Operational
Cambridge City Council,GPC,29/08/2019,6,PC004750, -   , 76.64 , 76.64 ,TESCO STORE 2065,Strategic Director 2,61400,Goods For Resale,Buchan Street Community Facility
Cambridge City Council,GPC,29/08/2019,6,PC004751, -   ,-1.79 ,-1.79 ,TESCO STORE 2065,Strategic Director 2,61400,Goods For Resale,Buchan Street Community Facility
Cambridge City Council,GPC,29/08/2019,7,PC004811, -   , 162.00 , 162.00 ,ST JOHN AMBULANCE,Strategic Director 2,60115,Staff Development And Training,Sport & Recreation Administration
Cambridge City Council,GPC,29/08/2019,7,PC004810, -   , 244.80 , 244.80 ,FURNITURE@WORK LIMITED,Strategic Director 2,61703,"Purchase - Equipment, Furniture And Materials",Sport - Ex Ref
Cambridge City Council,GPC,29/08/2019,7,PC004795, -   , 49.00 , 49.00 ,CO-OP GROUP 019959,Strategic Director 2,60305,Gas,Temporary Accommodation
Cambridge City Council,GPC,29/08/2019,7,PC004796, -   , 49.00 , 49.00 ,CO-OP GROUP 019959,Strategic Director 2,60305,Gas,Temporary Accommodation
Cambridge City Council,GPC,30/08/2019,7,PC004819, -   , 86.62 , 86.62 ,AMZNMktplace,Strategic Director 1,11600,Consumable Stores,General Fund Balance Sheet
Cambridge City Council,GPC,30/08/2019,6,PC004876, -   , 109.95 , 109.95 ,AMZNMktplace,Strategic Director 2,60207,Health And Safety Supplies And Services,Customer Access Strategy - Customer Service Centre
Cambridge City Council,GPC,30/08/2019,6,PC004877, -   , 109.95 , 109.95 ,AMZNMktplace,Strategic Director 2,60207,Health And Safety Supplies And Services,Customer Access Strategy - Customer Service Centre
Cambridge City Council,GPC,30/08/2019,7,PC004753, -   , 6.75 , 6.75 ,TIMPSON LTD,Strategic Director 2,60232,Housing Repairs - Rechargeable Repairs,Town Hall Lettings
Cambridge City Council,GPC,30/08/2019,7,PC004754, -   , 79.99 , 79.99 ,SCREWFIX DIRECT,Strategic Director 2,60804,Other Premises Related Costs,Town Hall Lettings
Cambridge City Council,GPC,30/08/2019,7,PC004820, -   , 48.11 , 48.11 ,WWW.FIRESEALSDIRECT.COM,Strategic Director 2,61703,"Purchase - Equipment, Furniture And Materials",Building Maintenance Response - Direct
Cambridge City Council,GPC,30/08/2019,6,PC004740, -   , 25.00 , 25.00 ,DISCLOSURE AND BARRING,Strategic Director 2,60116,Staff Recruitment Costs,Housing Benefits
Cambridge City Council,GPC,30/08/2019,7,PC004863, -   , 105.40 , 105.40 ,FACEBK QT3C8NJAX2,Strategic Director 2,61931,Cambridge Live Social Media,Corn Exchange and Guildhalls
Cambridge City Council,GPC,30/08/2019,7,PC004863, -   , 47.53 , 47.53 ,FACEBK QT3C8NJAX2,Strategic Director 2,61931,Cambridge Live Social Media,Corn Exchange and Guildhalls
Cambridge City Council,GPC,30/08/2019,7,PC004863, -   , 102.35 , 102.35 ,FACEBK QT3C8NJAX2,Strategic Director 2,61931,Cambridge Live Social Media,Corn Exchange and Guildhalls
Cambridge City Council,GPC,30/08/2019,7,PC004863, -   , 19.10 , 19.10 ,FACEBK QT3C8NJAX2,Strategic Director 2,61931,Cambridge Live Social Media,Corn Exchange and Guildhalls
Cambridge City Council,GPC,30/08/2019,7,PC004863, -   , 0.62 , 0.62 ,FACEBK QT3C8NJAX2,Strategic Director 2,61931,Cambridge Live Social Media,Corn Exchange and Guildhalls
Cambridge City Council,GPC,30/08/2019,7,PC004863, -   , 25.00 , 25.00 ,FACEBK QT3C8NJAX2,Strategic Director 2,61931,Cambridge Live Social Media,City Events
Cambridge City Council,GPC,31/08/2019,7,PC004812, -   , 16.32 , 16.32 ,FACEBK QEGMQNWHR2,Strategic Director 2,62404,Instructors/Tutors,Active Lifestyles - Communities (ex Sports Development)
Cambridge City Council,GPC,31/08/2019,7,PC004812, -   , 6.34 , 6.34 ,FACEBK QEGMQNWHR2,Strategic Director 2,62404,Instructors/Tutors,Active Lifestyles - Communities (ex Sports Development)
Cambridge City Council,GPC,31/08/2019,7,PC004812, -   , 27.17 , 27.17 ,FACEBK QEGMQNWHR2,Strategic Director 2,62404,Instructors/Tutors,Active Lifestyles - Projects
Cambridge City Council,GPC,31/08/2019,6,PC004761, -   , 28.04 , 28.04 ,AMZNMktplace,Strategic Director 2,62002,Stationery,City Homes Expenditure
Cambridge City Council,GPC,01/09/2019,6,PC004762, -   , 22.50 , 22.50 ,AMAZON.CO.UK*MA2EX8TM4 AM,Strategic Director 2,62002,Stationery,City Homes Expenditure
Cambridge City Council,GPC,02/09/2019,6,PCARD, -   , 61.17 , 61.17 ,Purchase Card System,Strategic Director 1,80009,Disbursement Control - Events,General Fund Balance Sheet
Cambridge City Council,GPC,02/09/2019,6,LEDGER EV, -   ,-61.17 ,-61.17 ,Purchase Card System,Strategic Director 1,80009,Disbursement Control - Events,General Fund Balance Sheet
Cambridge City Council,GPC,02/09/2019,6,PC004733, -   , 26.31 , 26.31 ,WAITROSE 674,Strategic Director 2,61900,Catering And Vending Supplies,The Meadows Community Centre
Cambridge City Council,GPC,02/09/2019,6,PC004846, -   , 68.60 , 68.60 ,TESCO STORE 2065,Strategic Director 2,61900,Catering And Vending Supplies,The Meadows Community Centre
Cambridge City Council,GPC,02/09/2019,6,PC004871, 9.85 , 49.22 , 59.07 ,VISTAPR*VistaPrint.com,Strategic Director 2,62001,Printing,Corn Exchange and Guildhalls
Cambridge City Council,GPC,02/09/2019,7,PC004765, -   , 96.00 , 96.00 ,STAGECOACH SERVICE,Strategic Director 2,60914,Public Transport For Staff And Members,Syrian Resettlement
Cambridge City Council,GPC,02/09/2019,7,PC004821, -   , 633.73 , 633.73 ,PLUMBNATION LTD,Strategic Director 2,61703,"Purchase - Equipment, Furniture And Materials",Building Maintenance Response - Direct
Cambridge City Council,GPC,02/09/2019,7,PC004822, -   ,-633.73 ,-633.73 ,PLUMBNATION LTD,Strategic Director 2,61703,"Purchase - Equipment, Furniture And Materials",Building Maintenance Response - Direct
Cambridge City Council,GPC,02/09/2019,8,PC004853, -   , 15.00 , 15.00 ,HALFORDS 0995,Strategic Director 2,60901,Fleet Management,Grounds Maintenance & Street Cleaning
Cambridge City Council,GPC,03/09/2019,7,PC004725, -   , 11.00 , 11.00 ,CAMBRIDGE REGISTER,Strategic Director 1,63900,Miscellaneous Expenses,Cambridge Crematorium
Cambridge City Council,GPC,03/09/2019,7,PC004719, -   , 58.58 , 58.58 ,CHEF CENTRAL CAMBRIDGE,Strategic Director 1,64200,Subsistence,Bereavement Services Central Costs
Cambridge City Council,GPC,03/09/2019,6,PC004872, 9.60 , 48.01 , 57.61 ,MACKAYS OF CAMBS,Strategic Director 2,61703,"Purchase - Equipment, Furniture And Materials",Corn Exchange and Guildhalls
Cambridge City Council,GPC,03/09/2019,7,PC004797, -   , 218.00 , 218.00 ,B & Q,Strategic Director 2,61703,"Purchase - Equipment, Furniture And Materials",Tenancy Support
Cambridge City Council,GPC,03/09/2019,7,PC004858, -   , 87.19 , 87.19 ,SCOTSDALES NURSY GDN CN,Strategic Director 2,64040,Tree Works,City Homes Estate Management
Cambridge City Council,GPC,04/09/2019,6,PC004841, -   , 25.00 , 25.00 ,TRAINLINE,Strategic Director 1,60914,Public Transport For Staff And Members,Procurement
Cambridge City Council,GPC,04/09/2019,7,PC004782, 7.58 , 37.92 , 45.50 ,TP COTTENHAM,Strategic Director 1,61703,"Purchase - Equipment, Furniture And Materials",Cambridge Crematorium
Cambridge City Council,GPC,04/09/2019,6,PC004734, 11.51 , 57.56 , 69.07 ,BOOKER LIMITED CAMBRIDGE,Strategic Director 2,61703,"Purchase - Equipment, Furniture And Materials",The Meadows Community Centre
Cambridge City Council,GPC,04/09/2019,6,PC004734, -   , 35.63 , 35.63 ,BOOKER LIMITED CAMBRIDGE,Strategic Director 2,61900,Catering And Vending Supplies,The Meadows Community Centre
Cambridge City Council,GPC,04/09/2019,7,PC004856, -   , 5.50 , 5.50 ,TESCO STORE 2555,Strategic Director 2,62900,Events,Neighbourhood Community Development
Cambridge City Council,GPC,04/09/2019,7,PC004813, 26.81 , 134.07 , 160.88 ,AMAZON.CO.UK*MA8SG6P04 AM,Strategic Director 2,61703,"Purchase - Equipment, Furniture And Materials",Sport - Ex Ref
Cambridge City Council,GPC,05/09/2019,7,PC004720, -   , 12.75 , 12.75 ,ASDA STORES,Strategic Director 1,61300,Cleaning Materials,Cambridge Crematorium
Cambridge City Council,GPC,05/09/2019,7,PC004726, -   , 0.80 , 0.80 ,3C_*CAMBRIDGE CITY COU,Strategic Director 1,63900,Miscellaneous Expenses,Cambridge Crematorium
Cambridge City Council,GPC,05/09/2019,6,PC004873, 4.51 , 22.53 , 27.04 ,B & Q 1239,Strategic Director 2,61703,"Purchase - Equipment, Furniture And Materials",Corn Exchange and Guildhalls
Cambridge City Council,GPC,05/09/2019,7,PC004859, -   , 100.00 , 100.00 ,SCOTSDALES (HORNINGSEA),Strategic Director 2,61703,"Purchase - Equipment, Furniture And Materials",Resident Involvement
Cambridge City Council,GPC,05/09/2019,7,PC004798, -   , 49.00 , 49.00 ,CO-OP GROUP 019959,Strategic Director 2,60303,Electricity,Temporary Accommodation
Cambridge City Council,GPC,05/09/2019,7,PC004799, -   , 49.00 , 49.00 ,CO-OP GROUP 019959,Strategic Director 2,60305,Gas,Temporary Accommodation
Cambridge City Council,GPC,05/09/2019,8,PC004854, -   , 20.37 , 20.37 ,MACHINE MART LIMITED,Strategic Director 2,60901,Fleet Management,Street Cleaning - Old
Cambridge City Council,GPC,05/09/2019,7,PC004757, 21.63 , 108.15 , 129.78 ,EMAP PUBLISHING LTD,Director of Planning,64800,Membership And Subscriptions,Urban Design & Conservation
Cambridge City Council,GPC,06/09/2019,7,PC004727, -   , 187.55 , 187.55 ,POST OFFICE COUNTER,Strategic Director 1,53006,Bereavement  - Fees And Charges (E),Cambridge Crematorium
Cambridge City Council,GPC,06/09/2019,7,PC004864, 10.33 , 51.66 , 61.99 ,WWW.INSTANTPRINT.C,Strategic Director 2,62001,Printing,Corn Exchange and Guildhalls
Cambridge City Council,GPC,06/09/2019,6,PC004874, 10.23 , 51.12 , 61.35 ,MARKS&SPENCER PLC SACA,Strategic Director 2,61905,Purchases - Bar,Corn Exchange and Guildhalls
